Authority,Department,Spending Area,Expense Type,Posting Date,Reference,Amount,Supplier
OXFORDSHIRE CC,ADULTS,CSS WITNEY,CATERING PROVISIONS,26/01/2024,11328781681,35.70,MILK AND MORE (RECUR
OXFORDSHIRE CC,CUSTOMER AND CULTURE,SAMUELSON HOUSE,CATERING PROVISIONS,26/01/2024,11328780957,53.55,MILK AND MORE (RECUR
OXFORDSHIRE CC,CUSTOMER AND CULTURE,HOLTON SITE,CATERING PROVISIONS,26/01/2024,11328780685,17.50,MILK AND MORE (RECUR
OXFORDSHIRE CC,ENVIRONMENT AND PLACE,FLEET OPERATIONS,CATERING PROVISIONS,26/01/2024,11328781005,20.00,MILK AND MORE (RECUR
OXFORDSHIRE CC,CUSTOMER AND CULTURE,MUSEUMS COLLECTIONS,CATERING PROVISIONS,26/01/2024,11328781477,4.62,MILK AND MORE (RECUR
OXFORDSHIRE CC,CHILDREN'S & EDUCATION,40 THE MOORS,FIXTURES & FITTINGS,26/01/2024,11328782211,87.95,WWW.ARGOS.CO.UK
OXFORDSHIRE CC,ADULTS,CSS WITNEY,MATERIALS,26/01/2024,11328781703,8.78,AMZNMKTPLACE
OXFORDSHIRE CC,CHILDREN'S & EDUCATION,THAME E&A HOME,CATERING PROVISIONS,26/01/2024,11328781067,4.10,OXFORD W H SMITH
OXFORDSHIRE CC,CHILDREN'S & EDUCATION,40 THE MOORS,CATERING,26/01/2024,11328782213,11.00,TESCO STORES 2788
OXFORDSHIRE CC,PUBLIC HEALTH,WITNEY,CATERING PROVISIONS,26/01/2024,11328780535,7.89,SAINSBURYS S/MKTS
OXFORDSHIRE CC,CUSTOMER AND CULTURE,"MARKETING, COMMUNICATIONS & ENGAGEMENT","PUBLICITY, PROMOTIONS AND ADVERTISEMENT",26/01/2024,11328781859,500.00,FACEBK  9LQMCY3AZ2
OXFORDSHIRE CC,CHILDREN'S & EDUCATION,DIDCOT MOVE-ON HOME,CATERING PROVISIONS,26/01/2024,11328781047,9.79,SAINSBURYS S/MKTS
OXFORDSHIRE CC,CHILDREN'S & EDUCATION,"	LEAVING CARE NORTH",CATERING PROVISIONS,26/01/2024,11328782129,10.00,TESCO GIFT CARD
OXFORDSHIRE CC,CHILDREN'S & EDUCATION,"	LEAVING CARE CITY 2",OTHER EXPENSES,26/01/2024,11328780665,15.00,TESCO GIFT CARD
OXFORDSHIRE CC,ENVIRONMENT AND PLACE,CIRCULAR ECONOMY PROJECT,PAYMENTS TO TRANSPORT OPERATORS,26/01/2024,11328780765,120.13,TRAINLINE
OXFORDSHIRE CC,ENVIRONMENT AND PLACE,CIRCULAR ECONOMY PROJECT,PAYMENTS TO TRANSPORT OPERATORS,26/01/2024,11328780769,75.70,TRAINLINE
OXFORDSHIRE CC,CHILDREN'S & EDUCATION,"	SEN/ICT EQUIPMENT",PURCHASE OF IT EQUIPMENT,26/01/2024,11328782317,45.10,AMAZON.CO.UK VJ7IB6NV5
OXFORDSHIRE CC,CUSTOMER AND CULTURE,OCCG GRANT,MATERIALS,26/01/2024,11328782353,10.00,WWW.ARGOS.CO.UK
OXFORDSHIRE CC,CUSTOMER AND CULTURE,OCCG GRANT,MATERIALS,26/01/2024,11328782355,13.50,WWW.ARGOS.CO.UK
OXFORDSHIRE CC,CHILDREN'S & EDUCATION,THAME E&A HOME,CATERING PROVISIONS,26/01/2024,11328781127,6.75,SUPERDRUG STORES PLC
OXFORDSHIRE CC,CHILDREN'S & EDUCATION,PAUSE PROGRAMME,CATERING,26/01/2024,11328781141,7.85,COSTA COFFEE 43010890
OXFORDSHIRE CC,CUSTOMER AND CULTURE,LIBRARY COLLECTIONS,STATIONERY,26/01/2024,11328781401,793.44,WF EDUCATION GROUP LTD
OXFORDSHIRE CC,CHILDREN'S & EDUCATION,THAME E&A HOME,CATERING PROVISIONS,26/01/2024,11328781125,27.80,SAINSBURYS SUPERMA
OXFORDSHIRE CC,RESOURCES,CHILDREN & FAMILY LEGAL TEAM,LEGAL COSTS,26/01/2024,11328782227,44.00,OXFORDSHIRE CC WEB1
OXFORDSHIRE CC,ADULTS,FAMILY SOLUTIONS PLUS NON-STAFF - SOUTH,PAYMENTS TO TRANSPORT OPERATORS,26/01/2024,11328781275,219.89,TRAINLINE
OXFORDSHIRE CC,CHILDREN'S & EDUCATION,PAUSE PROGRAMME,CATERING,26/01/2024,11328781157,7.99,"KFC OXFORD, TEMPLARS S"
OXFORDSHIRE CC,CHILDREN'S & EDUCATION,"	OCCG GRANT",HARDWARE AND CROCKERY,26/01/2024,11328780891,16.80,ASDA STORE 4442
OXFORDSHIRE CC,ENVIRONMENT AND PLACE,TREE MAINT OPS,PAYMENTS TO TRANSPORT OPERATORS,26/01/2024,11328782095,38.90,WWW.GWR.COM
OXFORDSHIRE CC,ADULTS,CSS WITNEY,MATERIALS,26/01/2024,11328781689,19.95,AMZNMKTPLACE
OXFORDSHIRE CC,CHILDREN'S & EDUCATION,FAMILY SOLUTIONS PLUS NON-STAFF - NORTH,TELEPHONE - EQUIPMENT,26/01/2024,11328782171,10.00,GIFFGAFF
OXFORDSHIRE CC,ADULTS,CSS WITNEY,MATERIALS,26/01/2024,11328781675,42.99,AMZNMKTPLACE
OXFORDSHIRE CC,CHILDREN'S & EDUCATION,40 THE MOORS,HARDWARE AND CROCKERY,26/01/2024,11328780807,14.49,AMAZON  206-1066028-72
OXFORDSHIRE CC,CUSTOMER AND CULTURE,BERINSFIELD LIBRARY,CATERING EQUIPMENT,26/01/2024,11328782299,36.99,AMZNMKTPLACE
OXFORDSHIRE CC,CUSTOMER AND CULTURE,"MARKETING, COMMUNICATIONS & ENGAGEMENT","PUBLICITY, PROMOTIONS AND ADVERTISEMENT",26/01/2024,11328781855,13.64,CREATIVE MARKET
OXFORDSHIRE CC,CHILDREN'S & EDUCATION,"	MALTFIELD HOUSE",FURNITURE,26/01/2024,11328782035,464.70,DUNELM SOFT FURNISHIN
OXFORDSHIRE CC,CUSTOMER AND CULTURE,DIDOCT LIBRARY,DRUGS AND MEDICAL SUPPLIES,26/01/2024,11328781097,27.80,AMZNMKTPLACE
OXFORDSHIRE CC,CUSTOMER AND CULTURE,REGISTRAR,MATERIALS,26/01/2024,11328780937,22.30,AMZNMKTPLACE
OXFORDSHIRE CC,CHILDREN'S & EDUCATION,VIRTUAL SCHOOL POST 16 PPP,EDUCATIONAL AND VOCATIONAL TRAINING ,26/01/2024,11328781117,219.00,ACTIVATE LEARNING -CC
OXFORDSHIRE CC,CUSTOMER AND CULTURE,DIDOCT LIBRARY,DRUGS AND MEDICAL SUPPLIES,26/01/2024,11328781095,11.09,AMZNMKTPLACE
OXFORDSHIRE CC,CUSTOMER AND CULTURE,BERINSFIELD LIBRARY,CATERING EQUIPMENT,26/01/2024,11328782305,31.79,AMZNMKTPLACE
OXFORDSHIRE CC,ADULTS,CSS WITNEY,MATERIALS,26/01/2024,11328781685,16.51,AMZNMKTPLACE
OXFORDSHIRE CC,ADULTS,CSS - BANBURY,MATERIALS,26/01/2024,11328782133,8.88,AMAZON.CO.UK 9554207J5
OXFORDSHIRE CC,CHILDREN'S & EDUCATION,OTFC TEAM,OTHER TRANSPORT ARRANGEMENTS,26/01/2024,11328782169,1.20,CAR PARK CHARGES
OXFORDSHIRE CC,CHILDREN'S & EDUCATION,OTFC TEAM,MATERIALS,26/01/2024,11328782165,3.49,WH SMITH BANBURY
OXFORDSHIRE CC,ADULTS,CSS WITNEY,MATERIALS,26/01/2024,11328781699,9.31,AMZNMKTPLACE
OXFORDSHIRE CC,ADULTS,CSS WITNEY,MATERIALS,26/01/2024,11328781693,9.31,AMZNMKTPLACE
OXFORDSHIRE CC,ADULTS,CSS BICESTER,MATERIALS,26/01/2024,11328780591,7.70,AMZNMKTPLACE
OXFORDSHIRE CC,ADULTS,CSS WANTAGE,ENTERTAINMENT EXPENSES,26/01/2024,11328781715,10.95,HOLLYWOOD BOWL
OXFORDSHIRE CC,ADULTS,CSS WANTAGE,ENTERTAINMENT EXPENSES,26/01/2024,11328781711,14.60,HOLLYWOOD BOWL
OXFORDSHIRE CC,CHILDREN'S & EDUCATION,OTFC TEAM,CATERING,26/01/2024,11328782167,18.10,COSTA COFFEE 43010605
OXFORDSHIRE CC,CUSTOMER AND CULTURE,"MARKETING, COMMUNICATIONS & ENGAGEMENT",LICENCES,26/01/2024,11328781853,167.44,ADOBE SYSTEMS SOFTWARE
OXFORDSHIRE CC,CHILDREN'S & EDUCATION,"	MALTFIELD HOUSE",FURNITURE,26/01/2024,11328782039,138.45,HOME BARGAINS
OXFORDSHIRE CC,CHILDREN'S & EDUCATION,ATV ADOPTION WOODLEY,POSTAGE AND DELIVERY,26/01/2024,11328780523,5.50,POST OFFICE COUNTER
OXFORDSHIRE CC,CUSTOMER AND CULTURE,OXFORDSHIRE MUSEUM,MATERIALS,26/01/2024,11328781589,9.32,AMAZON  204-8251059-89
OXFORDSHIRE CC,CHILDREN'S & EDUCATION,"	LEAVING CARE CITY 2",OTHER EXPENSES,26/01/2024,11328780663,156.40,WWW.BIGYELLOW.CO.UK
OXFORDSHIRE CC,CHILDREN'S & EDUCATION,C&I BASE ST ANDREWS,"SUPPLIES, STATIONERY AND MATERIALS",26/01/2024,11328780825,17.49,AMZNMKTPLACE
OXFORDSHIRE CC,CHILDREN'S & EDUCATION,C&I BASE ST ANDREWS,"SUPPLIES, STATIONERY AND MATERIALS",26/01/2024,11328780821,12.97,AMZNMKTPLACE
OXFORDSHIRE CC,ADULTS,CSS - ABINGDON,CATERING PROVISIONS,26/01/2024,11328780543,1.80,TESCO STORES 6519
OXFORDSHIRE CC,CUSTOMER AND CULTURE,OCCG GRANT,CATERING,26/01/2024,11328782351,7.55,BBS BAKERS AND BARISTA
OXFORDSHIRE CC,CHILDREN'S & EDUCATION,C&I BASE ST ANDREWS,"SUPPLIES, STATIONERY AND MATERIALS",26/01/2024,11328780829,15.97,AMZNMKTPLACE
OXFORDSHIRE CC,CUSTOMER AND CULTURE,WALLINGFORD LIBRARY,MATERIALS,26/01/2024,11328782151,14.99,CHAMPIONS & CO WALLING
OXFORDSHIRE CC,CHILDREN'S & EDUCATION,"	OCCG GRANT",OTHER EXPENSES,26/01/2024,11328780905,7.50,B&M 236 - COWLEY
OXFORDSHIRE CC,CHILDREN'S & EDUCATION,"	LEAVING CARE NORTH",OTHER TRANSPORT ARRANGEMENTS,26/01/2024,11328782119,2.70,UNION STREET CAR PARK
OXFORDSHIRE CC,CHILDREN'S & EDUCATION,"	OCCG GRANT",OTHER EXPENSES,26/01/2024,11328780901,1.50,POUNDLAND LTD - 2035
OXFORDSHIRE CC,CHILDREN'S & EDUCATION,"	OCCG GRANT",CATERING PROVISIONS,26/01/2024,11328781069,1.50,ASDA SUPERSTORE
OXFORDSHIRE CC,ADULTS,CSS WANTAGE,PAYMENTS TO OTHER ESTABLISHMENTS,26/01/2024,11328781721,26.00,ZETTLE_ JANET LYNN FOO
OXFORDSHIRE CC,ADULTS,CSS WANTAGE,PAYMENTS TO OTHER ESTABLISHMENTS,26/01/2024,11328781719,26.00,ZETTLE_ JANET LYNN FOO
OXFORDSHIRE CC,CHILDREN'S & EDUCATION,"	OCCG GRANT",OTHER EXPENSES,26/01/2024,11328780909,5.07,LIDL GB
OXFORDSHIRE CC,CHILDREN'S & EDUCATION,KINGFISHER,PAYMENTS TO TRANSPORT OPERATORS,26/01/2024,11328780577,71.20,TRAINLINE
OXFORDSHIRE CC,ADULTS,MANAGEMENT RECHARGES,SUBSCRIPTIONS,26/01/2024,11328782345,199.00,CVAA UK LTD
OXFORDSHIRE CC,CHILDREN'S & EDUCATION,"	OCCG GRANT",OTHER EXPENSES,26/01/2024,11328780899,12.00,POUNDLAND LTD - 1586
OXFORDSHIRE CC,CHILDREN'S & EDUCATION,"	LAC PUPIL PREMIUM",CATERING PROVISIONS,26/01/2024,11328782229,1.99,GROUP CARDS
OXFORDSHIRE CC,CHILDREN'S & EDUCATION,PAUSE PROGRAMME,CATERING,26/01/2024,11328782383,7.99,J D WETHERSPOON PLC
OXFORDSHIRE CC,CUSTOMER AND CULTURE,OXFORDSHIRE MUSEUM,MATERIALS,26/01/2024,11328781593,6.96,AMZNMKTPLACE
OXFORDSHIRE CC,CHILDREN'S & EDUCATION,"	LEAVING CARE CITY 2",VEHICLE FUEL,26/01/2024,11328781195,30.90,SAINSBURYS PETROL
OXFORDSHIRE CC,RESOURCES,ICT OPERATIONS & MAI,PURCHASE OF IT EQUIPMENT,26/01/2024,11328782239,"5,320.00",AMZNMKTPLACE
OXFORDSHIRE CC,CHILDREN'S & EDUCATION,UASC 16&17,CLOTHING AND UNIFORMS,26/01/2024,11328782259,47.96,SPORTS DIRECT
OXFORDSHIRE CC,ADULTS,CSS WITNEY,CATERING PROVISIONS,26/01/2024,11328781309,16.54,LIDL GB WITNEY
OXFORDSHIRE CC,CHILDREN'S & EDUCATION,UASC 16&17,CLOTHING AND UNIFORMS,26/01/2024,11328782261,47.96,SPORTSDIRECT.COM
OXFORDSHIRE CC,ADULTS,CSS BICESTER,EDUCATIONAL AND VOCATIONAL TRAINING ,26/01/2024,11328780677,365.00,WWW.PECS.ORG.UK
OXFORDSHIRE CC,RESOURCES,SCHOOLS FM CATERING AREA 2,CATERING PROVISIONS,26/01/2024,11328782143,15.60,SAINSBURYS S/MKTS
OXFORDSHIRE CC,ADULTS,CSS WALLINGFORD,"SUPPLIES, STATIONERY AND MATERIALS",26/01/2024,11328780549,19.00,WAITROSE 675
OXFORDSHIRE CC,ADULTS,CSS - OXFORD,DAY ACTIVITIES,26/01/2024,11328780611,5.95,WWW.BETTER.ORG.UK
OXFORDSHIRE CC,CUSTOMER AND CULTURE,MEMBERS ALLOWANCES,MATERIALS,26/01/2024,11328780683,59.94,AMZNMKTPLACE
OXFORDSHIRE CC,ENVIRONMENT AND PLACE,ROW MAINT,EQUIPMENT,26/01/2024,11328781163,41.92,SHELL DUCKLINGTON
OXFORDSHIRE CC,CHILDREN'S & EDUCATION,"	LEAVING CARE NORTH",MATERIALS,26/01/2024,11328782105,297.00,AMZNMKTPLACE
OXFORDSHIRE CC,ADULTS,CNTL EARLY HELP-BRTN,REGISTRATION AND INSPECTION FEES,26/01/2024,11328782371,564.56,CSL
OXFORDSHIRE CC,ADULTS,CSS WANTAGE,CATERING PROVISIONS,26/01/2024,11328782331,7.10,SAINSBURYS S/MKTS
OXFORDSHIRE CC,CUSTOMER AND CULTURE,SCHOOLS FM CATERING AREA 2,CATERING PROVISIONS,26/01/2024,11328781249,6.70,TESCO STORES 2994
OXFORDSHIRE CC,ENVIRONMENT AND PLACE,NAT TRAILS GENERAL,CATERING PROVISIONS,26/01/2024,11328781287,3.50,CO OPERATIVE FOOD
OXFORDSHIRE CC,ENVIRONMENT AND PLACE,NAT TRAILS GENERAL,CATERING PROVISIONS,26/01/2024,11328781283,3.50,CO OPERATIVE FOOD
OXFORDSHIRE CC,CUSTOMER AND CULTURE,SCHOOLS FM CATERING AREA 1,CATERING PROVISIONS,26/01/2024,11328782173,7.20,TESCO STORES
OXFORDSHIRE CC,CUSTOMER AND CULTURE,THAME LIBRARY,"NEWSPAPERS, PERIODICALS AND PUBLICATIONS",26/01/2024,11328782013,5.80,SAINSBURYS S/MKTS
OXFORDSHIRE CC,ENVIRONMENT AND PLACE,NAT TRAILS GENERAL,EQUIPMENT,26/01/2024,11328781291,31.09,DIDCOT PLANT LIMITED
OXFORDSHIRE CC,CORPORATE CORE,,STATIONERY,26/01/2024,11328782061,238.21,LYRECO UK LTD
OXFORDSHIRE CC,CORPORATE CORE,,STATIONERY,26/01/2024,11328782045,139.94,LYRECO UK LTD
OXFORDSHIRE CC,CORPORATE CORE,,STATIONERY,26/01/2024,11328782053,23.34,LYRECO UK LTD
OXFORDSHIRE CC,CORPORATE CORE,,STATIONERY,26/01/2024,11328782057,46.37,LYRECO UK LTD
OXFORDSHIRE CC,CORPORATE CORE,,STATIONERY,26/01/2024,11328782049,124.38,LYRECO UK LTD
OXFORDSHIRE CC,CORPORATE CORE,,STATIONERY,26/01/2024,11328782065,22.50,LYRECO UK LTD
OXFORDSHIRE CC,CORPORATE CORE,,STATIONERY,26/01/2024,11328782069,45.00,LYRECO UK LTD
OXFORDSHIRE CC,ADULTS,UASC 16&17,RESIDENTIAL ACTIVITIES,26/01/2024,11328781087,22.99,THE GYM GROUP
OXFORDSHIRE CC,CHILDREN'S & EDUCATION,THAME E&A HOME,CATERING PROVISIONS,26/01/2024,11328781129,.50,SUPERDRUG STORES PLC
OXFORDSHIRE CC,ADULTS,PAUSE PROGRAMME,"SUPPLIES, STATIONERY AND MATERIALS",26/01/2024,11328780883,-23.59,VISTAPRINT
OXFORDSHIRE CC,CUSTOMER AND CULTURE,REGISTRAR,MATERIALS,26/01/2024,11328780941,-25.49,AMZNMKTPLACE
OXFORDSHIRE CC,CHILDREN'S & EDUCATION,FSP NON-STAFFING - CENTRAL,CLOTHING AND UNIFORMS,26/01/2024,11328782197,-80.00,SPORTSDIRECT.COM
OXFORDSHIRE CC,CHILDREN'S & EDUCATION,EYNSHAM,MATERIALS,26/01/2024,11328780915,14.36,AMZNMKTPLACE
OXFORDSHIRE CC,CHILDREN'S & EDUCATION,"	SEN/ICT EQUIPMENT",PURCHASE OF IT EQUIPMENT,26/01/2024,11328782323,9.99,AMZNMKTPLACE
OXFORDSHIRE CC,CHILDREN'S & EDUCATION,"	SEN/ICT EQUIPMENT",PURCHASE OF IT EQUIPMENT,26/01/2024,11328782327,3.98,AMZNMKTPLACE
OXFORDSHIRE CC,CHILDREN'S & EDUCATION,"	RIVERSIDE CENTRE",VEHICLE FUEL,26/01/2024,11328781575,104.40,BP BUCKLAND CONNECT
OXFORDSHIRE CC,RESOURCES,ICT OPERATIONS & MAI,PURCHASE OF IT EQUIPMENT,26/01/2024,11328782241,59.99,AMZNMKTPLACE
OXFORDSHIRE CC,CHILDREN'S & EDUCATION,"	RIVERSIDE CENTRE",VEHICLE FUEL,26/01/2024,11328781013,107.65,BLENHEIM SERVICE STATI
OXFORDSHIRE CC,PUBLIC HEALTH,CHILDREN IN CARE NON-STAFFING - SOUTH,OTHER TRANSPORT ARRANGEMENTS,26/01/2024,11328780513,10.00,NEALE'S TAXIS LIMI
OXFORDSHIRE CC,CHILDREN'S & EDUCATION,THAME E&A HOME,CATERING,26/01/2024,11328781065,2.90,THAME BP SF CONNECT
OXFORDSHIRE CC,CHILDREN'S & EDUCATION,FAMILY SOLUTIONS PLUS NON-STAFF � SOUTH,PAYMENTS TO TRANSPORT OPERATORS,26/01/2024,11328781121,-2.90,TRAINLINE
OXFORDSHIRE CC,CHILDREN'S & EDUCATION,"	SEN/ICT EQUIPMENT",PURCHASE OF IT EQUIPMENT,25/01/2024,11322533293,10.99,AMZNMKTPLACE
OXFORDSHIRE CC,ADULTS,CSS WALLINGFORD,MATERIALS,25/01/2024,11322531699,47.75,AMZNMKTPLACE
OXFORDSHIRE CC,CHILDREN'S & EDUCATION,"	SEN/ICT EQUIPMENT",PURCHASE OF IT EQUIPMENT,25/01/2024,11322533285,26.38,AMAZON.CO.UK YG2SP4TW5
OXFORDSHIRE CC,ADULTS,CSS WITNEY,MATERIALS,25/01/2024,11322532665,269.99,AMZNMKTPLACE
OXFORDSHIRE CC,CHILDREN'S & EDUCATION,THAME E&A HOME,TELEPHONE - EQUIPMENT,25/01/2024,11322532345,20.00,GIFFGAFF
OXFORDSHIRE CC,CHILDREN'S & EDUCATION,40 THE MOORS,CATERING,25/01/2024,11322533107,12.00,WAITROSE 211
OXFORDSHIRE CC,CHILDREN'S & EDUCATION,NTS UASC AGENCY,CATERING PROVISIONS,25/01/2024,11322533065,21.88,AMAZON  203-4321756-15
OXFORDSHIRE CC,CHILDREN'S & EDUCATION,"	LEAVING CARE CITY 1",SUBSCRIPTIONS,25/01/2024,11322532025,77.84,HARLANDS GROUP
OXFORDSHIRE CC,CHILDREN'S & EDUCATION,"	LEAVING CARE NORTH",MATERIALS,25/01/2024,11322532995,365.00,WWW.ARGOS.CO.UK
OXFORDSHIRE CC,ADULTS,CSS WANTAGE,CATERING PROVISIONS,25/01/2024,11322533299,2.59,HOME BARGAINS
OXFORDSHIRE CC,CHILDREN'S & EDUCATION,WITNEY,CATERING PROVISIONS,25/01/2024,11322533001,7.49,LIDL GB WITNEY
OXFORDSHIRE CC,CHILDREN'S & EDUCATION,UASC 16&17,RESIDENTIAL ACTIVITIES,25/01/2024,11322532121,35.99,PUREGYM LIMITED
OXFORDSHIRE CC,CHILDREN'S & EDUCATION,DIDCOT MOVE-ON HOME,CATERING PROVISIONS,25/01/2024,11322532039,14.50,SAINSBURYS S/MKTS
OXFORDSHIRE CC,CHILDREN'S & EDUCATION,DIDCOT MOVE-ON HOME,DOMESTIC SUPPLIES,25/01/2024,11322532045,3.45,SAINSBURYS S/MKTS
OXFORDSHIRE CC,CHILDREN'S & EDUCATION,40 THE MOORS,OTHER TRANSPORT ARRANGEMENTS,25/01/2024,11322533101,4.50,STGCOACH/CTYLINK
OXFORDSHIRE CC,CHILDREN'S & EDUCATION,NTS UASC AGENCY,MATERIALS,25/01/2024,11322533069,9.62,AMZNMKTPLACE
OXFORDSHIRE CC,CHILDREN'S & EDUCATION,"	SEN/ICT EQUIPMENT",PURCHASE OF IT EQUIPMENT,25/01/2024,11322533279,11.99,AMZNMKTPLACE
OXFORDSHIRE CC,CHILDREN'S & EDUCATION,"	SEN/ICT EQUIPMENT",PURCHASE OF IT EQUIPMENT,25/01/2024,11322533289,26.38,AMAZON.CO.UK 0L0CZ5S45
OXFORDSHIRE CC,CHILDREN'S & EDUCATION,STH EARLY HELP-DDCOT,CATERING PROVISIONS,25/01/2024,11322531907,6.24,TESCO STORES 2008
OXFORDSHIRE CC,CHILDREN'S & EDUCATION,FAMILY SOLUTIONS PLUS NON-STAFF � SOUTH,HIRE OF ACCOMMODATION AND FACILITIES,25/01/2024,11322533143,55.06,TRAVELODGE
OXFORDSHIRE CC,CHILDREN'S & EDUCATION,UASC POST 18,OTHER EXPENSES,25/01/2024,11322532007,3.00,ASDA STORE 4442
OXFORDSHIRE CC,CHILDREN'S & EDUCATION,OTFC TEAM,ENTERTAINMENT EXPENSES,25/01/2024,11322533005,16.40,THE MAD HOUSE (READING
OXFORDSHIRE CC,CHILDREN'S & EDUCATION,"	SEN/ICT EQUIPMENT",PURCHASE OF IT EQUIPMENT,25/01/2024,11322533271,16.99,AMZNMKTPLACE
OXFORDSHIRE CC,RESOURCES,STRATEGIC LEADERSHIP TEAM,CATERING,25/01/2024,11322532153,366.00,SQ  WASTE2TASTE CIC
OXFORDSHIRE CC,CHILDREN'S & EDUCATION,OTFC TEAM,CATERING PROVISIONS,25/01/2024,11322533011,6.85,CO-OP GROUP 310626
OXFORDSHIRE CC,CHILDREN'S & EDUCATION,"	LEAVING CARE CITY 2",OTHER TRANSPORT ARRANGEMENTS,25/01/2024,11322531811,37.50,OXFORDBUS.CO.UK
OXFORDSHIRE CC,ADULTS,CSS - ABINGDON,MATERIALS,25/01/2024,11322531659,8.47,AMAZON.CO.UK A25PQ1PL5
OXFORDSHIRE CC,CHILDREN'S & EDUCATION,PAUSE PROGRAMME,CATERING PROVISIONS,25/01/2024,11322532089,5.90,M & S SIMPLY FOOD
OXFORDSHIRE CC,ADULTS,CSS WITNEY,MATERIALS,25/01/2024,11322532635,38.24,AMZNMKTPLACE
OXFORDSHIRE CC,ADULTS,CSS WITNEY,MATERIALS,25/01/2024,11322532637,56.29,AMZNMKTPLACE
OXFORDSHIRE CC,CUSTOMER AND CULTURE,DIDOCT LIBRARY,DRUGS AND MEDICAL SUPPLIES,25/01/2024,11322532223,7.12,AMZNMKTPLACE
OXFORDSHIRE CC,ADULTS,CSS WITNEY,MATERIALS,25/01/2024,11322532641,57.79,AMZNMKTPLACE
OXFORDSHIRE CC,ADULTS,CSS WITNEY,MATERIALS,25/01/2024,11322532649,21.99,AMZNMKTPLACE
OXFORDSHIRE CC,ADULTS,CSS WITNEY,MATERIALS,25/01/2024,11322532653,22.99,AMZNMKTPLACE
OXFORDSHIRE CC,CHILDREN'S & EDUCATION,NTS UASC AGENCY,HARDWARE AND CROCKERY,25/01/2024,11322533073,20.00,HOMEBASE LTD
OXFORDSHIRE CC,ADULTS,CSS WALLINGFORD,MATERIALS,25/01/2024,11322531697,12.99,AMZNMKTPLACE
OXFORDSHIRE CC,ADULTS,CSS WITNEY,MATERIALS,25/01/2024,11322532651,22.99,AMZNMKTPLACE
OXFORDSHIRE CC,ADULTS,CSS WITNEY,MATERIALS,25/01/2024,11322532647,23.62,AMZNMKTPLACE
OXFORDSHIRE CC,CHILDREN'S & EDUCATION,"	OCCG GRANT",OTHER EXPENSES,25/01/2024,11322532003,24.87,B&M 236 - COWLEY
OXFORDSHIRE CC,CUSTOMER AND CULTURE,SCHOOLS FM CATERING AREA 1,MATERIALS,25/01/2024,11322532215,10.84,AMZNMKTPLACE
OXFORDSHIRE CC,CUSTOMER AND CULTURE,DIDOCT LIBRARY,DRUGS AND MEDICAL SUPPLIES,25/01/2024,11322532219,4.05,AMZNMKTPLACE
OXFORDSHIRE CC,CHILDREN'S & EDUCATION,"	MALTFIELD HOUSE",CATERING PROVISIONS,25/01/2024,11322532929,64.89,SAINSBURYS S/MKTS
OXFORDSHIRE CC,ADULTS,CSS WITNEY,MATERIALS,25/01/2024,11322532657,11.99,AMZNMKTPLACE
OXFORDSHIRE CC,CUSTOMER AND CULTURE,SCHOOLS FM CATERING AREA 1,MATERIALS,25/01/2024,11322532211,23.74,AMZNMKTPLACE
OXFORDSHIRE CC,CHILDREN'S & EDUCATION,PAUSE PROGRAMME,CATERING,25/01/2024,11322533335,7.00,COSTA COFFEE ABINGDON
OXFORDSHIRE CC,CHILDREN'S & EDUCATION,40 THE MOORS,CATERING,25/01/2024,11322533105,7.71,SAINSBURYS S/MKTS
OXFORDSHIRE CC,CUSTOMER AND CULTURE,MUSEUM CAFE,CATERING,25/01/2024,11322532577,24.09,PHILIP DENNIS FOODSER
OXFORDSHIRE CC,CUSTOMER AND CULTURE,MUSEUM CAFE,CATERING,25/01/2024,11322532577,67.03,PHILIP DENNIS FOODSER
OXFORDSHIRE CC,CHILDREN'S & EDUCATION,"	LEAVING CARE SOUTH",CLOTHING AND UNIFORMS,25/01/2024,11322532201,145.00,JD SPORTS FASHION PLC
OXFORDSHIRE CC,ADULTS,CSS WALLINGFORD,MATERIALS,25/01/2024,11322531673,24.99,AMAZON.CO.UK 418PW47E5
OXFORDSHIRE CC,CHILDREN'S & EDUCATION,THAME E&A HOME,HARDWARE AND CROCKERY,25/01/2024,11322533171,33.00,HOMEBASE
OXFORDSHIRE CC,ADULTS,COUNTY PRINT FINSHRS,MATERIALS,25/01/2024,11322531783,29.97,AMZNMKTPLACE
OXFORDSHIRE CC,CUSTOMER AND CULTURE,MUSEUM CAFE,MATERIALS,25/01/2024,11322532573,18.77,AMZNMKTPLACE
OXFORDSHIRE CC,ADULTS,CSS WALLINGFORD,MATERIALS,25/01/2024,11322531691,8.99,AMZNMKTPLACE
OXFORDSHIRE CC,ADULTS,CSS WALLINGFORD,MATERIALS,25/01/2024,11322531681,33.97,AMZNMKTPLACE
OXFORDSHIRE CC,ADULTS,CSS WALLINGFORD,MATERIALS,25/01/2024,11322531677,30.13,AMZNMKTPLACE
OXFORDSHIRE CC,CHILDREN'S & EDUCATION,"	OCCG GRANT",CATERING PROVISIONS,25/01/2024,11322533013,3.50,WM MORRISONS STORE
OXFORDSHIRE CC,ENVIRONMENT AND PLACE,WASTE MNGMNT GEN,MATERIALS,25/01/2024,11322531887,43.96,AMAZON.CO.UK WT5J64FH5
OXFORDSHIRE CC,ADULTS,THAME E&A HOME,CATERING,25/01/2024,11322532601,103.33,DOMINO S PIZZA
OXFORDSHIRE CC,CHILDREN'S & EDUCATION,40 THE MOORS,OTHER TRANSPORT ARRANGEMENTS,25/01/2024,11322533099,2.20,FERRY POOL CAR PARK
OXFORDSHIRE CC,CHILDREN'S & EDUCATION,VIRTUAL SCHOOL POST 16 PPP,"SUPPLIES, STATIONERY AND MATERIALS",25/01/2024,11322532263,8.80,E RUSSUM & SONS LTD
OXFORDSHIRE CC,CHILDREN'S & EDUCATION,DIDCOT MOVE-ON HOME,CATERING PROVISIONS,25/01/2024,11322532035,9.36,SAINSBURYS S/MKTS
OXFORDSHIRE CC,CHILDREN'S & EDUCATION,FAMILY SOLUTIONS PLUS NON-STAFF - NORTH,CATERING PROVISIONS,25/01/2024,11322531913,8.50,TESCO STORES 4377
OXFORDSHIRE CC,ADULTS,CSS WALLINGFORD,CATERING PROVISIONS,25/01/2024,11322531633,3.15,WAITROSE 675
OXFORDSHIRE CC,ADULTS,CSS WALLINGFORD,CATERING PROVISIONS,25/01/2024,11322531633,16.90,WAITROSE 675
OXFORDSHIRE CC,ADULTS,CSS WANTAGE,MATERIALS,25/01/2024,11322531733,13.89,AMZNMKTPLACE
OXFORDSHIRE CC,PUBLIC HEALTH,ROW MAINT,EQUIPMENT,25/01/2024,11322532325,4.00,SEACOURT PARK AND RIDE
OXFORDSHIRE CC,CHILDREN'S & EDUCATION,"	LEAVING CARE CITY 1",CATERING,25/01/2024,11322532023,10.50,POPEYES LOUISIANA CHIC
OXFORDSHIRE CC,ADULTS,CSS - BANBURY,MATERIALS,25/01/2024,11322532979,12.99,AMZNMKTPLACE
OXFORDSHIRE CC,CUSTOMER AND CULTURE,MUSIC UNALLOCABLE,HIRE OF ACCOMMODATION AND FACILITIES,25/01/2024,11322533163,252.50,SCHOOL SPACE
OXFORDSHIRE CC,ENVIRONMENT AND PLACE,HWAYS NETWORK MGT,HIRE OF ACCOMMODATION AND FACILITIES,25/01/2024,11322531829,117.98,PREMIER INN
OXFORDSHIRE CC,CHILDREN'S & EDUCATION,THAME E&A HOME,SUBSCRIPTIONS,25/01/2024,11322532065,38.00,FUSION LIFESTYLE
OXFORDSHIRE CC,CUSTOMER AND CULTURE,MUSIC UNALLOCABLE,HIRE OF ACCOMMODATION AND FACILITIES,25/01/2024,11322533159,117.00,SCHOOL SPACE
OXFORDSHIRE CC,CHILDREN'S & EDUCATION,PAUSE PROGRAMME,DRUGS AND MEDICAL SUPPLIES,25/01/2024,11322533337,9.99,DAY LEWIS PLC DIDCOT
OXFORDSHIRE CC,CHILDREN'S & EDUCATION,"	LEAVING CARE CITY 1",OTHER TRANSPORT ARRANGEMENTS,25/01/2024,11322532029,10.50,WORCESTER STREET CAR P
OXFORDSHIRE CC,CHILDREN'S & EDUCATION,PAUSE PROGRAMME,CATERING,25/01/2024,11322533333,8.69,MCDONALDS 8260599
OXFORDSHIRE CC,CHILDREN'S & EDUCATION,VIRTUAL SCHOOL POST 16 PPP,"SUPPLIES, STATIONERY AND MATERIALS",25/01/2024,11322532267,250.10,WWW.RUSSUM.CO.UK
OXFORDSHIRE CC,ADULTS,CSS WANTAGE,MATERIALS,25/01/2024,11322531725,62.99,AMZNMKTPLACE
OXFORDSHIRE CC,CHILDREN'S & EDUCATION,"	OCCG GRANT",CATERING,25/01/2024,11322531995,6.30,LOVE COFFEE CO
OXFORDSHIRE CC,CHILDREN'S & EDUCATION,40 THE MOORS,CLEANING MATERIALS,25/01/2024,11322531933,37.06,ALDI STORES 775-142
OXFORDSHIRE CC,CUSTOMER AND CULTURE,MUSEUM RETAIL,MATERIALS,25/01/2024,11322532559,79.18,AMZNMKTPLACE
OXFORDSHIRE CC,CHILDREN'S & EDUCATION,THAME E&A HOME,DOMESTIC SUPPLIES,25/01/2024,11322532299,5.10,SAINSBURYS S/MKTS
OXFORDSHIRE CC,CHILDREN'S & EDUCATION,THAME E&A HOME,DOMESTIC SUPPLIES,25/01/2024,11322532295,8.50,SAINSBURYS S/MKTS
OXFORDSHIRE CC,CHILDREN'S & EDUCATION,40 THE MOORS,HARDWARE AND CROCKERY,25/01/2024,11322531927,12.80,HOMEBASE LTD 091
OXFORDSHIRE CC,ADULTS,CSS WANTAGE,POSTAGE AND DELIVERY,25/01/2024,11322531713,80.00,POST OFFICE COUNTER
OXFORDSHIRE CC,ADULTS,CSS - BANBURY,VEHICLE FUEL,25/01/2024,11322533169,71.37,TESCO PFS 3920
OXFORDSHIRE CC,ADULTS,CSS - OXFORD,EDUCATIONAL AND VOCATIONAL TRAINING ,25/01/2024,11322532493,20.00,ST EDWARD'S SCHOOL
OXFORDSHIRE CC,CHILDREN'S & EDUCATION,CHILDREN IN CARE NON-STAFFING - NORTH,PAYMENT TO GOVERNMENT DEPARTMENTS,25/01/2024,11322531759,11.00,GEN REGISTER OFFICE
OXFORDSHIRE CC,RESOURCES,CHILDREN & FAMILY LEGAL TEAM,LEGAL COSTS,25/01/2024,11322533117,11.00,OXFORDSHIRE CC WEB1
OXFORDSHIRE CC,ADULTS,CSS WANTAGE,ENTERTAINMENT EXPENSES,25/01/2024,11322532685,20.00,ST EDWARD'S SCHOOL
OXFORDSHIRE CC,CHILDREN'S & EDUCATION,CHILDREN IN CARE NON-STAFFING - NORTH,PAYMENT TO GOVERNMENT DEPARTMENTS,25/01/2024,11322531755,11.00,GEN REGISTER OFFICE
OXFORDSHIRE CC,CUSTOMER AND CULTURE,HOME LIBRARY SERVICE,EQUIPMENT,25/01/2024,11322532367,591.78,BIGDUG LIMITED
OXFORDSHIRE CC,CHILDREN'S & EDUCATION,CHILDREN IN CARE NON-STAFFING - NORTH,PAYMENT TO GOVERNMENT DEPARTMENTS,25/01/2024,11322531765,11.00,GEN REGISTER OFFICE
OXFORDSHIRE CC,CHILDREN'S & EDUCATION,SERVICES/SUPPLIES,POSTAGE AND DELIVERY,25/01/2024,11322533079,6.49,ROYAL MAIL GROUP LTD
OXFORDSHIRE CC,PUBLIC HEALTH,CHILDREN IN CARE NON-STAFFING - SOUTH,PAYMENTS TO TRANSPORT OPERATORS,25/01/2024,11322531643,17.02,TRAINLINE
OXFORDSHIRE CC,ADULTS,CSS WITNEY,CATERING PROVISIONS,25/01/2024,11322532405,15.70,MARKS&SPENCER PLC SACA
OXFORDSHIRE CC,CUSTOMER AND CULTURE,BUSINESS INTELLECTUAL PROPERTY CENTRE,PAYMENTS TO TRANSPORT OPERATORS,25/01/2024,11322532449,34.19,TRAINLINE
OXFORDSHIRE CC,CHILDREN'S & EDUCATION,FAMILY SOLUTIONS PLUS NON-STAFF � SOUTH,PAYMENTS TO TRANSPORT OPERATORS,25/01/2024,11322532283,9.87,TRAINLINE
OXFORDSHIRE CC,CHILDREN'S & EDUCATION,CHILDREN IN CARE NON-STAFFING - NORTH,PAYMENT TO GOVERNMENT DEPARTMENTS,25/01/2024,11322531747,11.00,GEN REGISTER OFFICE
OXFORDSHIRE CC,ADULTS,INCOME TEAM,PAYMENT TO GOVERNMENT DEPARTMENTS,25/01/2024,11322532309,1.50,FIND A WILL
OXFORDSHIRE CC,ADULTS,CSS - OXFORD,CATERING PROVISIONS,25/01/2024,11322532129,59.15,ALDI STORES 775-142
OXFORDSHIRE CC,ADULTS,CSS WANTAGE,MATERIALS,25/01/2024,11322532679,8.08,AMZNMKTPLACE
OXFORDSHIRE CC,CHILDREN'S & EDUCATION,"	MARLBOROUGH",SUBSCRIPTIONS,25/01/2024,11322532695,90.00,WWW.FIRSTNEWS.CO.UK
OXFORDSHIRE CC,CORPORATE CORE,,STATIONERY,25/01/2024,11322532965,64.73,LYRECO UK LTD
OXFORDSHIRE CC,CORPORATE CORE,,STATIONERY,25/01/2024,11322532935,178.07,LYRECO UK LTD
OXFORDSHIRE CC,CORPORATE CORE,,STATIONERY,25/01/2024,11322532943,6.46,LYRECO UK LTD
OXFORDSHIRE CC,CORPORATE CORE,,STATIONERY,25/01/2024,11322532955,194.99,LYRECO UK LTD
OXFORDSHIRE CC,ADULTS,CSS WITNEY,ENTERTAINMENT EXPENSES,25/01/2024,11322532401,6.00,WWW.BETTER.ORG.UK
OXFORDSHIRE CC,ADULTS,CSS WANTAGE,CATERING PROVISIONS,25/01/2024,11322531627,7.00,SAINSBURYS S/MKTS
OXFORDSHIRE CC,ADULTS,CSS WITNEY,ENTERTAINMENT EXPENSES,25/01/2024,11322532403,68.00,WWW.BEAULIEU.CO.UK
OXFORDSHIRE CC,CUSTOMER AND CULTURE,OPERATIONS,MATERIALS,25/01/2024,11322532481,4.63,AMZNMKTPLACE
OXFORDSHIRE CC,ENVIRONMENT AND PLACE,NAT TRAILS GENERAL,VEHICLE FUEL,25/01/2024,11322532355,67.78,SAINSBURYS PETROL
OXFORDSHIRE CC,ADULTS,CSS - BANBURY,MATERIALS,25/01/2024,11322532973,99.98,AMZNMKTPLACE
OXFORDSHIRE CC,CUSTOMER AND CULTURE,OXFORDSHIRE MUSEUM,CATERING PROVISIONS,25/01/2024,11322532567,180.20,SAINSBURYS.CO.UK
OXFORDSHIRE CC,CUSTOMER AND CULTURE,BUSINESS INTELLECTUAL PROPERTY CENTRE,OTHER TRANSPORT ARRANGEMENTS,25/01/2024,11322532455,6.00,TFL TRAVEL CH
OXFORDSHIRE CC,CUSTOMER AND CULTURE,HARD FM,GENERAL MAINTENANCE,25/01/2024,11322533207,-237.45,AMZNMKTPLACE
OXFORDSHIRE CC,CHILDREN'S & EDUCATION,"	OCCG GRANT",CATERING,25/01/2024,11322531999,6.00,TEX COCKHORSE S/S
OXFORDSHIRE CC,ADULTS,CSS WANTAGE,MATERIALS,25/01/2024,11322531717,21.74,AMZNMKTPLACE
OXFORDSHIRE CC,CHILDREN'S & EDUCATION,40 THE MOORS,ENTERTAINMENT EXPENSES,25/01/2024,11322532761,34.00,WWW.OUFC.CO.UK
OXFORDSHIRE CC,RESOURCES,ICT OPERATIONS & MAI,PURCHASE OF IT EQUIPMENT,25/01/2024,11322533155,417.96,AMZNMKTPLACE
OXFORDSHIRE CC,RESOURCES,ICT OPERATIONS & MAI,PURCHASE OF IT EQUIPMENT,25/01/2024,11322533149,299.25,AMZNMKTPLACE
OXFORDSHIRE CC,CHILDREN'S & EDUCATION,FAMILY SOLUTIONS PLUS NON-STAFF � SOUTH,PAYMENT TO GOVERNMENT DEPARTMENTS,25/01/2024,11322532279,12.50,TFL BUSINESS BOPS WEB
OXFORDSHIRE CC,CUSTOMER AND CULTURE,SCHOOLS FM CATERING AREA 1,VEHICLES AND PLANT - REPAIRS AND MAIN,25/01/2024,11322533027,60.00,WORLDWIDE AUTOMOTIVE
OXFORDSHIRE CC,ADULTS,CSS - OXFORD,CATERING PROVISIONS,25/01/2024,11322531899,85.33,ALDI STORES 775-142
OXFORDSHIRE CC,ADULTS,COUNTY PRINT FINSHRS,MATERIALS,24/01/2024,11316876721,239.85,AMZNMKTPLACE
OXFORDSHIRE CC,ADULTS,CSS - BANBURY,MATERIALS,24/01/2024,11316878085,-8.19,AMZNMKTPLACE
OXFORDSHIRE CC,CUSTOMER AND CULTURE,"MARKETING, COMMUNICATIONS & ENGAGEMENT","PUBLICITY, PROMOTIONS AND ADVERTISEMENT",24/01/2024,11316877795,500.00,GOOGLE ADS4896546035
OXFORDSHIRE CC,ADULTS,THAME E&A HOME,CATERING PROVISIONS,24/01/2024,11316877649,2.35,SAINSBURYS S/MKTS
OXFORDSHIRE CC,ADULTS,THAME E&A HOME,CATERING PROVISIONS,24/01/2024,11316877653,16.44,SAINSBURYS S/MKTS
OXFORDSHIRE CC,ADULTS,THAME E&A HOME,MATERIALS,24/01/2024,11316877663,30.50,POUNDLAND LTD - 1586
OXFORDSHIRE CC,CHILDREN'S & EDUCATION,THAME E&A HOME,ENTERTAINMENT EXPENSES,24/01/2024,11316878333,15.65,THAME LEISURE CENTRE
OXFORDSHIRE CC,CUSTOMER AND CULTURE,COMMUNITY PARTNERSHIP TEAM,CATERING PROVISIONS,24/01/2024,11316876883,7.48,AMZNMKTPLACE
OXFORDSHIRE CC,CHILDREN'S & EDUCATION,"	MASH PROJECT",HIRE OF ACCOMMODATION AND FACILITIES,24/01/2024,11316877737,198.80,AIRBNB   HMXQKY93SQ
OXFORDSHIRE CC,CUSTOMER AND CULTURE,COMMUNITY PARTNERSHIP TEAM,CATERING PROVISIONS,24/01/2024,11316876885,8.25,AMZNMKTPLACE
OXFORDSHIRE CC,CHILDREN'S & EDUCATION,"	LEAVING CARE NORTH",TELEPHONE - EQUIPMENT,24/01/2024,11316878381,40.00,VESTA VODAFONE TOPUP
OXFORDSHIRE CC,CUSTOMER AND CULTURE,COMMUNITY PARTNERSHIP TEAM,MATERIALS,24/01/2024,11316876879,8.97,AMZNMKTPLACE
OXFORDSHIRE CC,CUSTOMER AND CULTURE,COMMUNITY PARTNERSHIP TEAM,MATERIALS,24/01/2024,11316876889,15.49,AMZNMKTPLACE
OXFORDSHIRE CC,CUSTOMER AND CULTURE,MUSEUM RETAIL,MATERIALS,24/01/2024,11316877593,175.15,PAPER MIRCHI FAIRE
OXFORDSHIRE CC,CHILDREN'S & EDUCATION,EYNSHAM,CATERING PROVISIONS,24/01/2024,11316877315,3.10,CO-OPERATIVE FOOD
OXFORDSHIRE CC,CUSTOMER AND CULTURE,CENTRAL LIBRARY,MATERIALS,24/01/2024,11316877587,3.50,EXTRA
OXFORDSHIRE CC,CUSTOMER AND CULTURE,READING SERV. ADULTS,PURCHASE OF IT EQUIPMENT,24/01/2024,11316877077,9.99,AMZNMKTPLACE
OXFORDSHIRE CC,CHILDREN'S & EDUCATION,NTS UASC AGENCY,MATERIALS,24/01/2024,11316878215,41.98,AMZNMKTPLACE
OXFORDSHIRE CC,ADULTS,CSS WANTAGE,EQUIPMENT,24/01/2024,11316876581,101.88,AMZNMKTPLACE
OXFORDSHIRE CC,CHILDREN'S & EDUCATION,UASC 16&17,CLOTHING AND UNIFORMS,24/01/2024,11316878293,47.96,SPORTSDIRECT.COM
OXFORDSHIRE CC,CHILDREN'S & EDUCATION,"	LEAVING CARE SOUTH",PAYMENTS TO TRANSPORT OPERATORS,24/01/2024,11316876947,119.11,TRAINLINE
OXFORDSHIRE CC,ADULTS,CSS - BANBURY,MATERIALS,24/01/2024,11316878069,71.97,AMZNMKTPLACE
OXFORDSHIRE CC,ENVIRONMENT AND PLACE,NAT TRAILS GENERAL,ROAD FUND LICENCES AND MOTS,24/01/2024,11316877407,297.41,WANTAGE MOT CENTRE
OXFORDSHIRE CC,CHILDREN'S & EDUCATION,CHILDREN IN CARE NON-STAFFING - NORTH,PAYMENT TO GOVERNMENT DEPARTMENTS,24/01/2024,11316876703,34.00,DRIVING LICENCE WEB
OXFORDSHIRE CC,ADULTS,CSS - BANBURY,MATERIALS,24/01/2024,11316878071,84.60,AMZNMKTPLACE
OXFORDSHIRE CC,CHILDREN'S & EDUCATION,FAMILY SOLUTIONS PLUS NON-STAFF � SOUTH,PAYMENTS TO TRANSPORT OPERATORS,24/01/2024,11316878285,324.08,EDREAMS
OXFORDSHIRE CC,CHILDREN'S & EDUCATION,FAMILY SOLUTIONS PLUS NON-STAFF � SOUTH,HIRE OF ACCOMMODATION AND FACILITIES,24/01/2024,11316878281,267.19,TRAVELODGE
OXFORDSHIRE CC,CHILDREN'S & EDUCATION,PAUSE PROGRAMME,CATERING,24/01/2024,11316878467,3.45,COSTA COFFEE 43010951
OXFORDSHIRE CC,CHILDREN'S & EDUCATION,"	SEN/ICT EQUIPMENT",IT SOFTWARE,24/01/2024,11316877699,132.00,HELPKIDZLEARN
OXFORDSHIRE CC,CHILDREN'S & EDUCATION,WITNEY,CATERING PROVISIONS,24/01/2024,11316877273,14.19,SAINSBURYS S/MKTS
OXFORDSHIRE CC,CHILDREN'S & EDUCATION,"	LEAVING CARE NORTH",CATERING,24/01/2024,11316878329,20.00,JUST EAT.CO.UK LTD
OXFORDSHIRE CC,CHILDREN'S & EDUCATION,"	LEAVING CARE NORTH",CLIENT LODGINGS AND ACCOMMODATION,24/01/2024,11316878323,136.44,HTL HOLIDAYINNWOLV
OXFORDSHIRE CC,CUSTOMER AND CULTURE,COUNTY HALL,STATIONERY,24/01/2024,11316878345,20.55,AMZNMKTPLACE
OXFORDSHIRE CC,CHILDREN'S & EDUCATION,"	LOOKED AFTER NORTH",CATERING,24/01/2024,11316878123,7.92,NANDO'S
OXFORDSHIRE CC,CUSTOMER AND CULTURE,SCHOOLS FM CATERING AREA 1,MATERIALS,24/01/2024,11316877255,7.54,AMZNMKTPLACE
OXFORDSHIRE CC,CUSTOMER AND CULTURE,SCHOOLS FM CATERING AREA 1,MATERIALS,24/01/2024,11316877253,15.91,AMZNMKTPLACE
OXFORDSHIRE CC,CHILDREN'S & EDUCATION,NTS UASC AGENCY,MATERIALS,24/01/2024,11316878221,127.44,AMZNMKTPLACE
OXFORDSHIRE CC,CUSTOMER AND CULTURE,SCHOOLS FM CATERING AREA 1,MATERIALS,24/01/2024,11316878185,22.12,AMZNMKTPLACE
OXFORDSHIRE CC,CHILDREN'S & EDUCATION,"	LEAVING CARE NORTH",MATERIALS,24/01/2024,11316878061,19.93,WWW.ARGOS.CO.UK
OXFORDSHIRE CC,CHILDREN'S & EDUCATION,"	SEN/ICT EQUIPMENT",PURCHASE OF IT EQUIPMENT,24/01/2024,11316877705,286.80,INCLUSIVE TECH
OXFORDSHIRE CC,CHILDREN'S & EDUCATION,"	LOOKED AFTER NORTH",CATERING,24/01/2024,11316878115,31.90,NANDO'S
OXFORDSHIRE CC,CUSTOMER AND CULTURE,HARD FM,PREMISES REPAIRS,24/01/2024,11316877301,85.00,B AND Q
OXFORDSHIRE CC,CHILDREN'S & EDUCATION,FAMILY SOLUTIONS PLUS NON-STAFF - NORTH,CATERING,24/01/2024,11316878163,10.00,STARBUCKS APP
OXFORDSHIRE CC,ADULTS,CSS WANTAGE,CATERING PROVISIONS,24/01/2024,11316877687,8.55,ASDA GROCERIES ONLINE
OXFORDSHIRE CC,CUSTOMER AND CULTURE,ABINGDON LIBRARY,"NEWSPAPERS, PERIODICALS AND PUBLICATIONS",24/01/2024,11316877859,55.99,GUARDIAN NEWS & MEDIA
OXFORDSHIRE CC,CHILDREN'S & EDUCATION,HOUSE PROJECT,OTHER TRANSPORT ARRANGEMENTS,24/01/2024,11316878307,5.80,WESTGATE OXFORD CAR PA
OXFORDSHIRE CC,ADULTS,CSS WITNEY,CATERING PROVISIONS,24/01/2024,11316877467,120.00,SAINSBURY'S S/MKT
OXFORDSHIRE CC,RESOURCES,SCHOOLS FM CATERING AREA 2,CATERING PROVISIONS,24/01/2024,11316878101,41.99,BOOKER LTD - 38584104
OXFORDSHIRE CC,CHILDREN'S & EDUCATION,"	LEAVING CARE NORTH",OTHER TRANSPORT ARRANGEMENTS,24/01/2024,11316878057,32.00,OXFORDBUS.CO.UK
OXFORDSHIRE CC,ADULTS,CSS - BANBURY,ENTERTAINMENT EXPENSES,24/01/2024,11316878079,13.00,SPICEBALL LEISURE CENT
OXFORDSHIRE CC,CHILDREN'S & EDUCATION,"	MALTFIELD HOUSE",HARDWARE AND CROCKERY,24/01/2024,11316877933,38.92,B & Q 1176
OXFORDSHIRE CC,CHILDREN'S & EDUCATION,THAME E&A HOME,CATERING PROVISIONS,24/01/2024,11316877129,12.65,TESCO STORES 2008
OXFORDSHIRE CC,ADULTS,COUNTY PRINT FINSHRS,MATERIALS,24/01/2024,11316876713,17.98,AMZNMKTPLACE
OXFORDSHIRE CC,CHILDREN'S & EDUCATION,"	LEAVING CARE CITY 2",VEHICLE FUEL,24/01/2024,11316876739,38.23,SHELL DERBY
OXFORDSHIRE CC,CHILDREN'S & EDUCATION,OTFC TEAM,CATERING,24/01/2024,11316878153,6.25,MILLETS FARM RESTAURA
OXFORDSHIRE CC,CHILDREN'S & EDUCATION,THAME E&A HOME,CATERING PROVISIONS,24/01/2024,11316877211,11.20,SAINSBURYS SUPERMA
OXFORDSHIRE CC,PUBLIC HEALTH,CHILDREN IN CARE NON-STAFFING - SOUTH,PAYMENT TO GOVERNMENT DEPARTMENTS,24/01/2024,11316876621,38.00,GEN REGISTER OFFICE
OXFORDSHIRE CC,CUSTOMER AND CULTURE,OXFORDSHIRE MUSEUM,PROFESSIONAL SUBSCRIPTIONS,24/01/2024,11316877577,179.00,AIMUSEUMS
OXFORDSHIRE CC,ADULTS,CSS WANTAGE,CATERING PROVISIONS,24/01/2024,11316877693,261.47,ASDA GROCERIES ONLINE
OXFORDSHIRE CC,CHILDREN'S & EDUCATION,WITNEY,OTHER TRANSPORT ARRANGEMENTS,24/01/2024,11316877281,1.20,BOLTON ROAD
OXFORDSHIRE CC,CHILDREN'S & EDUCATION,"	OCCG GRANT",CATERING PROVISIONS,24/01/2024,11316877137,5.38,TESCO STORES 2994
OXFORDSHIRE CC,ADULTS,CSS WALLINGFORD,CATERING PROVISIONS,24/01/2024,11316876589,19.50,WAITROSE 675
OXFORDSHIRE CC,CHILDREN'S & EDUCATION,"	LEAVING CARE NORTH",CLOTHING AND UNIFORMS,24/01/2024,11316877361,100.00,JD SPORTS FASHION PLC
OXFORDSHIRE CC,CUSTOMER AND CULTURE,CH REFURB PROJECT,GENERAL REFUSE COLLECTION AND DISPOSAL,24/01/2024,11316877425,462.00,M & M SKIP HIRE
OXFORDSHIRE CC,CHILDREN'S & EDUCATION,"	LEAVING CARE NORTH",FURNITURE,24/01/2024,11316877365,231.95,SP SLEEP-BEDS
OXFORDSHIRE CC,CHILDREN'S & EDUCATION,WITNEY,CATERING,24/01/2024,11316877287,12.65,COSTA COFFEE 43010605
OXFORDSHIRE CC,CUSTOMER AND CULTURE,COMMUNITY PARTNERSHIP TEAM,MATERIALS,24/01/2024,11316876845,19.98,AMZNMKTPLACE
OXFORDSHIRE CC,ADULTS,CSS - ABINGDON,CATERING PROVISIONS,24/01/2024,11316878447,62.00,TESCO STORES 2008
OXFORDSHIRE CC,CUSTOMER AND CULTURE,HOLTON SITE,MATERIALS,24/01/2024,11316876749,107.79,AMZNMKTPLACE
OXFORDSHIRE CC,CHILDREN'S & EDUCATION,CHILDREN IN CARE NON-STAFFING - NORTH,PAYMENT TO GOVERNMENT DEPARTMENTS,24/01/2024,11316876707,11.00,GEN REGISTER OFFICE
OXFORDSHIRE CC,CUSTOMER AND CULTURE,COMMUNITY PARTNERSHIP TEAM,MATERIALS,24/01/2024,11316876863,62.85,AMZNMKTPLACE
OXFORDSHIRE CC,CUSTOMER AND CULTURE,COMMUNITY PARTNERSHIP TEAM,MATERIALS,24/01/2024,11316876867,15.98,AMZNMKTPLACE
OXFORDSHIRE CC,ADULTS,CSS WITNEY,CATERING PROVISIONS,24/01/2024,11316877475,19.61,SAINSBURYS S/MKTS
OXFORDSHIRE CC,CUSTOMER AND CULTURE,COMMUNITY PARTNERSHIP TEAM,MATERIALS,24/01/2024,11316876851,67.20,AMZNMKTPLACE
OXFORDSHIRE CC,ADULTS,CSS WANTAGE,ENTERTAINMENT EXPENSES,24/01/2024,11316877677,10.95,HOLLYWOOD BOWL
OXFORDSHIRE CC,ADULTS,CSS WANTAGE,ENTERTAINMENT EXPENSES,24/01/2024,11316877673,14.60,HOLLYWOOD BOWL
OXFORDSHIRE CC,ENVIRONMENT AND PLACE,BRIDGES GENERAL,PAYMENT TO GOVERNMENT DEPARTMENTS,24/01/2024,11316878463,144.84,ENVIROMENT AGENCY
OXFORDSHIRE CC,ADULTS,CSS WANTAGE,CATERING PROVISIONS,24/01/2024,11316878413,3.30,SAINSBURYS S/MKTS
OXFORDSHIRE CC,CUSTOMER AND CULTURE,SCHOOLS FM CATERING AREA 1,CATERING PROVISIONS,24/01/2024,11316878179,48.16,SAINSBURY'S S/MKT
OXFORDSHIRE CC,CUSTOMER AND CULTURE,HARD FM,PREMISES REPAIRS,24/01/2024,11316876677,10.68,JEWSON WITNEY
OXFORDSHIRE CC,CHILDREN'S & EDUCATION,REACTIVE MAINTENANCE,PREMISES REPAIRS,24/01/2024,11316878301,210.74,GRANT & STONE HEAD OFF
OXFORDSHIRE CC,CHILDREN'S & EDUCATION,CHILDREN IN CARE NON-STAFFING - NORTH,MATERIALS,24/01/2024,11316876699,68.75,KTFLORIST
OXFORDSHIRE CC,CHILDREN'S & EDUCATION,"	LEAVING CARE CITY 2",VEHICLE FUEL,24/01/2024,11316877347,66.95,SHELL A34 NEWBURY ROAD
OXFORDSHIRE CC,CUSTOMER AND CULTURE,HARD FM,HARDWARE AND CROCKERY,24/01/2024,11316876671,15.17,B AND Q
OXFORDSHIRE CC,ADULTS,CSS WITNEY,MATERIALS,24/01/2024,11316876597,137.99,AMZNMKTPLACE
OXFORDSHIRE CC,ADULTS,CSS WANTAGE,CATERING PROVISIONS,24/01/2024,11316878405,16.81,SAINSBURYS S/MKTS
OXFORDSHIRE CC,CUSTOMER AND CULTURE,HARD FM,PREMISES REPAIRS,24/01/2024,11316876683,98.00,WICKES OXFORD
OXFORDSHIRE CC,RESOURCES,ICT OPERATIONS & MAI,POSTAGE AND DELIVERY,24/01/2024,11316878315,16.45,ROYAL MAIL GROUP LTD
OXFORDSHIRE CC,CHILDREN'S & EDUCATION,"	MALTFIELD HOUSE",HARDWARE AND CROCKERY,24/01/2024,11316877927,9.97,B & Q 1176
OXFORDSHIRE CC,CUSTOMER AND CULTURE,COMMUNITY PARTNERSHIP TEAM,MATERIALS,24/01/2024,11316876857,34.99,AMZNMKTPLACE
OXFORDSHIRE CC,CHILDREN'S & EDUCATION,"	SENSS TRAINING",EDUCATIONAL AND VOCATIONAL TRAINING ,24/01/2024,11316877709,145.00,PAYPAL  VIEW
OXFORDSHIRE CC,CUSTOMER AND CULTURE,SCHOOLS FM CATERING AREA 2,MATERIALS,24/01/2024,11316877391,29.37,AMZNMKTPLACE
OXFORDSHIRE CC,CUSTOMER AND CULTURE,HARD FM,PREMISES REPAIRS,24/01/2024,11316876687,3.90,NCP BANBURY MARLBOROUG
OXFORDSHIRE CC,CUSTOMER AND CULTURE,SCHOOLS FM CATERING AREA 2,MATERIALS,24/01/2024,11316877385,65.23,AMZNMKTPLACE
OXFORDSHIRE CC,CUSTOMER AND CULTURE,THAME LIBRARY,"NEWSPAPERS, PERIODICALS AND PUBLICATIONS",24/01/2024,11316877911,5.80,SAINSBURYS S/MKTS
OXFORDSHIRE CC,ENTERPRISEVC,,CAR LEASING - PRIVATE RENTALS,24/01/2024,11316878043,51.47,ENTERPRISE RENT-A-CAR
OXFORDSHIRE CC,ENTERPRISEVC,,CAR LEASING - PRIVATE RENTALS,24/01/2024,11316878039,113.98,ENTERPRISE RENT-A-CAR
OXFORDSHIRE CC,ENTERPRISEVC,,CAR LEASING - PRIVATE RENTALS,24/01/2024,11316878035,275.18,ENTERPRISE RENT-A-CAR
OXFORDSHIRE CC,ENTERPRISEVC,,CAR LEASING - PRIVATE RENTALS,24/01/2024,11316878027,59.98,ENTERPRISE RENT-A-CAR
OXFORDSHIRE CC,ENTERPRISEVC,,CAR LEASING - PRIVATE RENTALS,24/01/2024,11316878021,77.50,ENTERPRISE RENT-A-CAR
OXFORDSHIRE CC,ENTERPRISEVC,,CAR LEASING - PRIVATE RENTALS,24/01/2024,11316878015,36.26,ENTERPRISE RENT-A-CAR
OXFORDSHIRE CC,ENTERPRISEVC,,CAR LEASING - PRIVATE RENTALS,24/01/2024,11316878013,77.50,ENTERPRISE RENT-A-CAR
OXFORDSHIRE CC,ENTERPRISEVC,,CAR LEASING - PRIVATE RENTALS,24/01/2024,11316878009,38.75,ENTERPRISE RENT-A-CAR
OXFORDSHIRE CC,ENTERPRISEVC,,CAR LEASING - PRIVATE RENTALS,24/01/2024,11316878005,53.00,ENTERPRISE RENT-A-CAR
OXFORDSHIRE CC,ENTERPRISEVC,,CAR LEASING - PRIVATE RENTALS,24/01/2024,11316878003,38.75,ENTERPRISE RENT-A-CAR
OXFORDSHIRE CC,ENTERPRISEVC,,CAR LEASING - PRIVATE RENTALS,24/01/2024,11316877999,82.18,ENTERPRISE RENT-A-CAR
OXFORDSHIRE CC,ENTERPRISEVC,,CAR LEASING - PRIVATE RENTALS,24/01/2024,11316877997,127.37,ENTERPRISE RENT-A-CAR
OXFORDSHIRE CC,ENTERPRISEVC,,CAR LEASING - PRIVATE RENTALS,24/01/2024,11316877993,106.01,ENTERPRISE RENT-A-CAR
OXFORDSHIRE CC,ENTERPRISEVC,,CAR LEASING - PRIVATE RENTALS,24/01/2024,11316877989,219.18,ENTERPRISE RENT-A-CAR
OXFORDSHIRE CC,ENTERPRISEVC,,CAR LEASING - PRIVATE RENTALS,24/01/2024,11316877987,77.98,ENTERPRISE RENT-A-CAR
OXFORDSHIRE CC,ENTERPRISEVC,,CAR LEASING - PRIVATE RENTALS,24/01/2024,11316878049,"1,704.30",ENTERPRISE RENT-A-CAR
OXFORDSHIRE CC,ENTERPRISEVC,,CAR LEASING - PRIVATE RENTALS,24/01/2024,11316877983,112.91,ENTERPRISE RENT-A-CAR
OXFORDSHIRE CC,ENTERPRISEVC,,CAR LEASING - PRIVATE RENTALS,24/01/2024,11316877971,123.73,ENTERPRISE RENT-A-CAR
OXFORDSHIRE CC,CHILDREN'S & EDUCATION,"	MALTFIELD HOUSE",CATERING PROVISIONS,24/01/2024,11316877111,48.00,ASDA GEORGE COM LEEDS
OXFORDSHIRE CC,CHILDREN'S & EDUCATION,"	LEAVING CARE SOUTH",VEHICLE FUEL,24/01/2024,11316877243,55.90,ESSO ACORN SSTN
OXFORDSHIRE CC,CUSTOMER AND CULTURE,SCHOOLS FM CATERING AREA 2,MATERIALS,24/01/2024,11316876775,28.99,AMZNMKTPLACE
OXFORDSHIRE CC,CHILDREN'S & EDUCATION,FAMILY SOLUTIONS PLUS NON-STAFF - NORTH,CATERING PROVISIONS,24/01/2024,11316878159,5.50,TESCO STORES 3143
OXFORDSHIRE CC,CORPORATE CORE,,STATIONERY,24/01/2024,11316877955,26.71,LYRECO UK LTD
OXFORDSHIRE CC,CORPORATE CORE,,STATIONERY,24/01/2024,11316877943,442.76,LYRECO UK LTD
OXFORDSHIRE CC,CUSTOMER AND CULTURE,COMMUNITY PARTNERSHIP TEAM,CATERING PROVISIONS,24/01/2024,11316876877,333.33,TESCO STORES 2008
OXFORDSHIRE CC,CHILDREN'S & EDUCATION,EYNSHAM,CATERING,24/01/2024,11316876637,105.84,TESCO STORES 2008
OXFORDSHIRE CC,ADULTS,CSS BICESTER,MATERIALS,24/01/2024,11316876731,7.99,TESCO SUBSCRIPTION
OXFORDSHIRE CC,CHILDREN'S & EDUCATION,UASC POST 18,MATERIALS,24/01/2024,11316877059,-24.46,SHEIN.CO.UK
OXFORDSHIRE CC,CHILDREN'S & EDUCATION,"	RIVERSIDE CENTRE",SUBSCRIPTIONS,24/01/2024,11316877101,-120.00,DELIVERY PARTNER CONFE
OXFORDSHIRE CC,CHILDREN'S & EDUCATION,"	LEAVING CARE NORTH",MATERIALS,24/01/2024,11316878387,1.00,WWW.ARGOS.CO.UK
OXFORDSHIRE CC,CUSTOMER AND CULTURE,COMMUNITY PARTNERSHIP TEAM,MATERIALS,24/01/2024,11316876895,19.97,AMZNMKTPLACE
OXFORDSHIRE CC,CUSTOMER AND CULTURE,SCHOOLS FM CATERING AREA 1,MATERIALS,24/01/2024,11316878191,29.24,AMZNMKTPLACE
OXFORDSHIRE CC,CUSTOMER AND CULTURE,SCHOOLS FM CATERING AREA 1,VEHICLE FUEL,24/01/2024,11316878173,12.82,BP CANNON POOL S/SERVE
OXFORDSHIRE CC,CUSTOMER AND CULTURE,SCHOOLS FM CATERING AREA 1,MATERIALS,23/01/2024,11311148067,6.00,AMZNMKTPLACE
OXFORDSHIRE CC,CHILDREN'S & EDUCATION,40 THE MOORS,OTHER TRANSPORT ARRANGEMENTS,23/01/2024,11311146867,9.00,STGCOACH/CTYLINK
OXFORDSHIRE CC,CHILDREN'S & EDUCATION,THAME E&A HOME,CATERING PROVISIONS,23/01/2024,11311147303,6.64,B&M 515 - ABINGDON
OXFORDSHIRE CC,CHILDREN'S & EDUCATION,WITNEY,CATERING PROVISIONS,23/01/2024,11311147201,6.58,LIDL GB WITNEY
OXFORDSHIRE CC,ADULTS,THAME E&A HOME,MATERIALS,23/01/2024,11311146625,69.84,AMZNMKTPLACE
OXFORDSHIRE CC,CHILDREN'S & EDUCATION,THAME E&A HOME,CATERING,23/01/2024,11311148295,23.91,MCDONALDS
OXFORDSHIRE CC,CUSTOMER AND CULTURE,COMMUNITY PARTNERSHIP TEAM,MATERIALS,23/01/2024,11311146803,3.60,AMZNMKTPLACE
OXFORDSHIRE CC,CHILDREN'S & EDUCATION,OTFC TEAM,CATERING,23/01/2024,11311148043,14.77,"KFC OXFORD, TEMPLARS S"
OXFORDSHIRE CC,CHILDREN'S & EDUCATION,NTS UASC AGENCY,MATERIALS,23/01/2024,11311148165,24.00,AMZNMKTPLACE
OXFORDSHIRE CC,CUSTOMER AND CULTURE,COUNTY HALL,FURNITURE,23/01/2024,11311148363,9.40,AMZNMKTPLACE
OXFORDSHIRE CC,CHILDREN'S & EDUCATION,PAUSE PROGRAMME,DRUGS AND MEDICAL SUPPLIES,23/01/2024,11311147231,12.49,WITNEY PHARMACY
OXFORDSHIRE CC,CHILDREN'S & EDUCATION,DIDCOT MOVE-ON HOME,CATERING PROVISIONS,23/01/2024,11311148085,17.53,SAINSBURYS S/MKTS
OXFORDSHIRE CC,CHILDREN'S & EDUCATION,NTS UASC AGENCY,MATERIALS,23/01/2024,11311148175,81.86,AMZNMKTPLACE
OXFORDSHIRE CC,CHILDREN'S & EDUCATION,NTS UASC AGENCY,MATERIALS,23/01/2024,11311148169,17.18,AMZNMKTPLACE
OXFORDSHIRE CC,CHILDREN'S & EDUCATION,40 THE MOORS,VEHICLES AND PLANT - REPAIRS AND MAIN,23/01/2024,11311147711,85.00,WE FIX AND TRADE
OXFORDSHIRE CC,CHILDREN'S & EDUCATION,"	LEAVING CARE NORTH",CATERING PROVISIONS,23/01/2024,11311148393,49.55,W M MORRISON STORE
OXFORDSHIRE CC,CHILDREN'S & EDUCATION,"	LEAVING CARE CITY 1",PAYMENT TO GOVERNMENT DEPARTMENTS,23/01/2024,11311147011,82.02,NHSBSA PECS ONLINE PMT
OXFORDSHIRE CC,CHILDREN'S & EDUCATION,OTFC TEAM,CATERING PROVISIONS,23/01/2024,11311148051,1.60,SAINSBURYS S/MKTS
OXFORDSHIRE CC,ADULTS,CSS WANTAGE,MATERIALS,23/01/2024,11311147623,11.90,AMZNMKTPLACE
OXFORDSHIRE CC,CHILDREN'S & EDUCATION,OTFC TEAM,CATERING,23/01/2024,11311148039,21.89,DOMINO S PIZZA
OXFORDSHIRE CC,CHILDREN'S & EDUCATION,THAME E&A HOME,CATERING,23/01/2024,11311147133,12.25,COSTA TEMPLARS
OXFORDSHIRE CC,CHILDREN'S & EDUCATION,OTFC TEAM,CATERING,23/01/2024,11311148045,9.15,COSTA TEMPLARS
OXFORDSHIRE CC,CHILDREN'S & EDUCATION,"	OCCG GRANT",CATERING PROVISIONS,23/01/2024,11311147103,10.00,TESCO STORES 2994
OXFORDSHIRE CC,CHILDREN'S & EDUCATION,PAUSE PROGRAMME,CATERING,23/01/2024,11311147239,.50,MCDONALDS
OXFORDSHIRE CC,CHILDREN'S & EDUCATION,PAUSE PROGRAMME,CATERING,23/01/2024,11311147239,11.76,MCDONALDS
OXFORDSHIRE CC,CUSTOMER AND CULTURE,LIBRARY COLLECTIONS,"BOOKS, DVDS AND CDS",23/01/2024,11311147001,81.54,OVERDRIVE DIST
OXFORDSHIRE CC,CUSTOMER AND CULTURE,LIBRARY COLLECTIONS,"BOOKS, DVDS AND CDS",23/01/2024,11311146995,286.53,OVERDRIVE DIST
OXFORDSHIRE CC,CUSTOMER AND CULTURE,SCHOOLS FM CATERING AREA 2,MATERIALS,23/01/2024,11311147295,65.23,AMZNMKTPLACE
OXFORDSHIRE CC,CHILDREN'S & EDUCATION,"	LEAVING CARE NORTH",PAYMENTS TO TRANSPORT OPERATORS,23/01/2024,11311148357,52.99,TRAINLINE
OXFORDSHIRE CC,CHILDREN'S & EDUCATION,"	LEAVING CARE CITY 2",CATERING,23/01/2024,11311147347,6.97,MCDONALDS
OXFORDSHIRE CC,CUSTOMER AND CULTURE,SCHOOLS FM CATERING AREA 1,MATERIALS,23/01/2024,11311148059,7.95,AMZNMKTPLACE
OXFORDSHIRE CC,RESOURCES,CONTRACTS & CONVEYANCING LEGAL TEAM,LEGAL COSTS,23/01/2024,11311148243,71.90,PROPERTY SEARCHES D
OXFORDSHIRE CC,ADULTS,THAME E&A HOME,MATERIALS,23/01/2024,11311147569,44.50,POUNDLAND LTD - 1586
OXFORDSHIRE CC,CHILDREN'S & EDUCATION,NTS UASC AGENCY,MATERIALS,23/01/2024,11311148193,35.84,AMZNMKTPLACE
OXFORDSHIRE CC,CUSTOMER AND CULTURE,OPERATIONS,MATERIALS,23/01/2024,11311147403,15.89,AMZNMKTPLACE
OXFORDSHIRE CC,ENVIRONMENT AND PLACE,SIP MANAGEMENT,STATIONERY,23/01/2024,11311148077,8.70,KP STATIONERS
OXFORDSHIRE CC,CUSTOMER AND CULTURE,CH REFURB PROJECT,GENERAL REFUSE COLLECTION AND DISPOSAL,23/01/2024,11311147327,45.00,M & M SKIP HIRE
OXFORDSHIRE CC,CUSTOMER AND CULTURE,HARD FM,PREMISES REPAIRS,23/01/2024,11311146679,8.40,WICKES BANBURY
OXFORDSHIRE CC,PUBLIC HEALTH,DAAT STAFFING,OTHER TRAINING COURSES AND QUALIFICATION,23/01/2024,11311147111,45.62,EB  BEHIND CLOSED DOOR
OXFORDSHIRE CC,CHILDREN'S & EDUCATION,PAUSE PROGRAMME,CATERING PROVISIONS,23/01/2024,11311148521,32.34,ICELAND
OXFORDSHIRE CC,CUSTOMER AND CULTURE,WALLINGFORD LIBRARY,CATERING PROVISIONS,23/01/2024,11311147975,3.75,WAITROSE 675
OXFORDSHIRE CC,CUSTOMER AND CULTURE,OCCG GRANT,CATERING PROVISIONS,23/01/2024,11311148463,3.50,B&M 025 - BICESTER
OXFORDSHIRE CC,CHILDREN'S & EDUCATION,THAME E&A HOME,CATERING PROVISIONS,23/01/2024,11311147165,6.00,SAINSBURYS S/MKTS
OXFORDSHIRE CC,CHILDREN'S & EDUCATION,"	LEAVING CARE NORTH",HOSPITALITY EXPENSES,23/01/2024,11311148387,40.65,OLD BANK NORTHAMPTON
OXFORDSHIRE CC,CUSTOMER AND CULTURE,HARD FM,PREMISES REPAIRS,23/01/2024,11311146673,16.31,DULUX DECORATOR CENTRE
OXFORDSHIRE CC,CHILDREN'S & EDUCATION,"	LEAVING CARE NORTH",MATERIALS,23/01/2024,11311147949,8.99,AMAZON PRIME IN82P2SE5
OXFORDSHIRE CC,CHILDREN'S & EDUCATION,FSP NON-STAFFING - CENTRAL,MATERIALS,23/01/2024,11311148179,309.00,CURRYS ONLINE
OXFORDSHIRE CC,ADULTS,CSS WANTAGE,MATERIALS,23/01/2024,11311147613,21.84,AMZNMKTPLACE
OXFORDSHIRE CC,CUSTOMER AND CULTURE,HARD FM,MATERIALS,23/01/2024,11311147285,54.24,AMAZON.CO.UK YE9JA8ZW5
OXFORDSHIRE CC,CHILDREN'S & EDUCATION,DIDCOT MOVE-ON HOME,CATERING PROVISIONS,23/01/2024,11311147051,2.52,SAINSBURYS S/MKTS
OXFORDSHIRE CC,CHILDREN'S & EDUCATION,"	LEAVING CARE NORTH",OTHER TRANSPORT ARRANGEMENTS,23/01/2024,11311147951,3.70,UNION STREET CAR PARK
OXFORDSHIRE CC,CHILDREN'S & EDUCATION,REACTIVE MAINTENANCE,PREMISES REPAIRS,23/01/2024,11311148307,25.99,SCREWFIX DIR LTD
OXFORDSHIRE CC,CHILDREN'S & EDUCATION,KINGFISHER,MATERIALS,23/01/2024,11311148429,105.98,AMAZON.CO.UK CO1Y42IC5
OXFORDSHIRE CC,CHILDREN'S & EDUCATION,NTS UASC AGENCY,MATERIALS,23/01/2024,11311148159,12.99,AMZNMKTPLACE
OXFORDSHIRE CC,CHILDREN'S & EDUCATION,NTS UASC AGENCY,MATERIALS,23/01/2024,11311148147,41.98,AMZNMKTPLACE
OXFORDSHIRE CC,ADULTS,CSS WANTAGE,MATERIALS,23/01/2024,11311147617,3.98,AMZNMKTPLACE
OXFORDSHIRE CC,CUSTOMER AND CULTURE,HARD FM,GENERAL MAINTENANCE,23/01/2024,11311147289,462.00,HEATING CONTROLS LTD
OXFORDSHIRE CC,CHILDREN'S & EDUCATION,NTS UASC AGENCY,MATERIALS,23/01/2024,11311148153,17.97,AMZNMKTPLACE
OXFORDSHIRE CC,CHILDREN'S & EDUCATION,KINGFISHER,MATERIALS,23/01/2024,11311148435,24.99,TESCO ONLINE
OXFORDSHIRE CC,CUSTOMER AND CULTURE,FINDS LIAISON OFFICER,MATERIALS,23/01/2024,11311148263,6.89,AMZNMKTPLACE
OXFORDSHIRE CC,CHILDREN'S & EDUCATION,NTS UASC AGENCY,MATERIALS,23/01/2024,11311148161,21.90,AMZNMKTPLACE
OXFORDSHIRE CC,ADULTS,CSS - OXFORD,MATERIALS,23/01/2024,11311146831,34.86,ALDI STORES 775-142
OXFORDSHIRE CC,ADULTS,CSS WITNEY,CATERING PROVISIONS,23/01/2024,11311147341,17.35,CO-OP GROUP 070582
OXFORDSHIRE CC,ADULTS,CSS - OXFORD,CATERING PROVISIONS,23/01/2024,11311146701,2.35,ALDI STORES 775-142
OXFORDSHIRE CC,ADULTS,CSS - OXFORD,CATERING PROVISIONS,23/01/2024,11311146707,52.80,ALDI STORES 775-142
OXFORDSHIRE CC,ADULTS,CSS - OXFORD,MATERIALS,23/01/2024,11311146825,58.69,ALDI STORES 775-142
OXFORDSHIRE CC,CHILDREN'S & EDUCATION,BANBURY CC,CATERING PROVISIONS,23/01/2024,11311148281,5.80,ALDI 10 775
OXFORDSHIRE CC,CHILDREN'S & EDUCATION,FAMILY HELP NORTH,MATERIALS,23/01/2024,11311148099,2.99,WH SMITH WITNEY
OXFORDSHIRE CC,CHILDREN'S & EDUCATION,FAMILY HELP NORTH,CATERING PROVISIONS,23/01/2024,11311148105,8.25,WAITROSE 142
OXFORDSHIRE CC,CHILDREN'S & EDUCATION,"	SENSS TRAINING",TRAINING RELATED EXPENDITURE,23/01/2024,11311148425,60.00,BRITISH DEAF ASSOC.
OXFORDSHIRE CC,CUSTOMER AND CULTURE,THAME LIBRARY,CATERING PROVISIONS,23/01/2024,11311147789,5.80,SAINSBURYS S/MKTS
OXFORDSHIRE CC,CUSTOMER AND CULTURE,COUNTY HALL,OTHER PREMISES RELATED COSTS,23/01/2024,11311147411,528.00,WWW.OFFICEFURNITUREONL
OXFORDSHIRE CC,CUSTOMER AND CULTURE,"MARKETING, COMMUNICATIONS & ENGAGEMENT","PUBLICITY, PROMOTIONS AND ADVERTISEMENT",23/01/2024,11311147721,500.00,FACEBK  K2WZ8Y3AZ2
OXFORDSHIRE CC,ADULTS,CSS - ABINGDON,CATERING PROVISIONS,23/01/2024,11311148509,38.79,ALDI STORES
OXFORDSHIRE CC,CORPORATE CORE,,STATIONERY,23/01/2024,11311147869,1.70,LYRECO UK LTD
OXFORDSHIRE CC,CORPORATE CORE,,STATIONERY,23/01/2024,11311147907,52.42,LYRECO UK LTD
OXFORDSHIRE CC,CORPORATE CORE,,STATIONERY,23/01/2024,11311147919,54.89,LYRECO UK LTD
OXFORDSHIRE CC,"COMMUNICATIONS, STRATEGY AND INSIGHT",CHAIRMANS ALLOWANCE,ENTERTAINMENT EXPENSES,23/01/2024,11311147225,26.02,TICKETSOURCE
OXFORDSHIRE CC,CORPORATE CORE,,STATIONERY,23/01/2024,11311147931,25.85,LYRECO UK LTD
OXFORDSHIRE CC,CORPORATE CORE,,STATIONERY,23/01/2024,11311147863,65.33,LYRECO UK LTD
OXFORDSHIRE CC,CORPORATE CORE,,STATIONERY,23/01/2024,11311147889,61.68,LYRECO UK LTD
OXFORDSHIRE CC,CORPORATE CORE,,STATIONERY,23/01/2024,11311147851,9.96,LYRECO UK LTD
OXFORDSHIRE CC,CORPORATE CORE,,STATIONERY,23/01/2024,11311147925,71.99,LYRECO UK LTD
OXFORDSHIRE CC,CORPORATE CORE,,STATIONERY,23/01/2024,11311147875,17.26,LYRECO UK LTD
OXFORDSHIRE CC,CORPORATE CORE,,STATIONERY,23/01/2024,11311147859,238.86,LYRECO UK LTD
OXFORDSHIRE CC,CORPORATE CORE,,STATIONERY,23/01/2024,11311147937,73.56,LYRECO UK LTD
OXFORDSHIRE CC,CORPORATE CORE,,STATIONERY,23/01/2024,11311147881,178.43,LYRECO UK LTD
OXFORDSHIRE CC,CORPORATE CORE,,STATIONERY,23/01/2024,11311147857,86.16,LYRECO UK LTD
OXFORDSHIRE CC,CORPORATE CORE,,STATIONERY,23/01/2024,11311147847,8.30,LYRECO UK LTD
OXFORDSHIRE CC,CORPORATE CORE,,STATIONERY,23/01/2024,11311147833,61.98,LYRECO UK LTD
OXFORDSHIRE CC,CORPORATE CORE,,STATIONERY,23/01/2024,11311147915,26.04,LYRECO UK LTD
OXFORDSHIRE CC,CORPORATE CORE,,STATIONERY,23/01/2024,11311147839,75.74,LYRECO UK LTD
OXFORDSHIRE CC,CORPORATE CORE,,STATIONERY,23/01/2024,11311147901,8.54,LYRECO UK LTD
OXFORDSHIRE CC,ADULTS,CSS - ABINGDON,CATERING PROVISIONS,23/01/2024,11311148303,33.99,TESCO STORES 2008
OXFORDSHIRE CC,ENVIRONMENT AND PLACE,NAT TRAILS GENERAL,CATERING PROVISIONS,23/01/2024,11311147317,3.90,CO OPERATIVE FOOD
OXFORDSHIRE CC,CUSTOMER AND CULTURE,COUNTY HALL,PAYMENTS TO TRANSPORT OPERATORS,23/01/2024,11311147661,15.00,GWR OXFORD TO
OXFORDSHIRE CC,ADULTS,CSS BICESTER,CATERING PROVISIONS,23/01/2024,11311146715,99.69,TESCO STORES 2162
OXFORDSHIRE CC,ADULTS,CSS WANTAGE,CATERING PROVISIONS,23/01/2024,11311146647,9.30,ASDA STORES
OXFORDSHIRE CC,CHILDREN'S & EDUCATION,THAME E&A HOME,CATERING PROVISIONS,23/01/2024,11311146809,138.47,TESCO STORES 2038
OXFORDSHIRE CC,CHILDREN'S & EDUCATION,UASC POST 18,RESIDENTIAL ACTIVITIES,23/01/2024,11311147141,22.99,THE GYM GROUP
OXFORDSHIRE CC,ADULTS,CSS - BANBURY,CATERING PROVISIONS,23/01/2024,11311148289,61.17,SAINSBURYS.CO.UK
OXFORDSHIRE CC,ADULTS,CSS WITNEY,CATERING PROVISIONS,23/01/2024,11311147599,163.40,SAINSBURYS.CO.UK
OXFORDSHIRE CC,CHILDREN'S & EDUCATION,"	LEAVING CARE SOUTH",CATERING,23/01/2024,11311147195,12.10,COFFEE NO 1 CWMBRAN
OXFORDSHIRE CC,CHILDREN'S & EDUCATION,"	LEAVING CARE SOUTH",VEHICLE FUEL,23/01/2024,11311147191,18.00,LEIGH DELAMERE WEST MW
OXFORDSHIRE CC,CHILDREN'S & EDUCATION,UASC POST 18,PAYMENTS TO TRANSPORT OPERATORS,22/01/2024,11303906909,95.48,TRAINLINE
OXFORDSHIRE CC,CHILDREN'S & EDUCATION,EYNSHAM,CATERING,22/01/2024,11303903855,7.50,MAYFIELDEGGS
OXFORDSHIRE CC,ENVIRONMENT AND PLACE,PMO,MATERIALS,22/01/2024,11303907685,78.99,AMZNMKTPLACE
OXFORDSHIRE CC,CUSTOMER AND CULTURE,UNION STREET FFS,MATERIALS,22/01/2024,11303908429,12.98,AMZNMKTPLACE
OXFORDSHIRE CC,CHILDREN'S & EDUCATION,UASC 16&17,PAYMENTS TO TRANSPORT OPERATORS,22/01/2024,11303905561,80.10,BKG HOTEL AT BOOKING.C
OXFORDSHIRE CC,CHILDREN'S & EDUCATION,THAME E&A HOME,ENTERTAINMENT EXPENSES,22/01/2024,11303907265,17.20,THAME LEISURE CENTRE
OXFORDSHIRE CC,CUSTOMER AND CULTURE,BULLINGDON PRISON,PURCHASE OF IT EQUIPMENT,22/01/2024,11303907157,21.78,AMZNMKTPLACE
OXFORDSHIRE CC,CHILDREN'S & EDUCATION,THAME E&A HOME,CATERING PROVISIONS,22/01/2024,11303907275,29.19,SAINSBURYS SUPERMA
OXFORDSHIRE CC,CHILDREN'S & EDUCATION,DIDCOT MOVE-ON HOME,CATERING PROVISIONS,22/01/2024,11303905231,21.59,SAINSBURYS S/MKTS
OXFORDSHIRE CC,ADULTS,CSS WALLINGFORD,MATERIALS,22/01/2024,11303903797,8.96,AMZNMKTPLACE
OXFORDSHIRE CC,ADULTS,CSS WALLINGFORD,MATERIALS,22/01/2024,11303903785,32.40,AMZNMKTPLACE
OXFORDSHIRE CC,ADULTS,CSS WALLINGFORD,MATERIALS,22/01/2024,11303903785,13.47,AMZNMKTPLACE
OXFORDSHIRE CC,CHILDREN'S & EDUCATION,UASC POST 18,MATERIALS,22/01/2024,11303904925,25.49,AMZNMKTPLACE
OXFORDSHIRE CC,CHILDREN'S & EDUCATION,EYNSHAM,CATERING PROVISIONS,22/01/2024,11303907781,8.24,TESCO STORES 2008
OXFORDSHIRE CC,CHILDREN'S & EDUCATION,EYNSHAM,ENTERTAINMENT EXPENSES,22/01/2024,11303907905,12.75,NINJA WARRIOR MILTON K
OXFORDSHIRE CC,CUSTOMER AND CULTURE,HARD FM,MATERIALS,22/01/2024,11303905925,5.99,AMZNMKTPLACE
OXFORDSHIRE CC,CHILDREN'S & EDUCATION,EYNSHAM,MATERIALS,22/01/2024,11303904807,38.94,AMZNMKTPLACE
OXFORDSHIRE CC,CHILDREN'S & EDUCATION,40 THE MOORS,CATERING,22/01/2024,11303907863,12.58,TESCO STORES 2064
OXFORDSHIRE CC,CHILDREN'S & EDUCATION,EYNSHAM,CATERING,22/01/2024,11303907889,110.79,COSMO
OXFORDSHIRE CC,CHILDREN'S & EDUCATION,40 THE MOORS,MATERIALS,22/01/2024,11303907843,13.14,THE RANGE
OXFORDSHIRE CC,CHILDREN'S & EDUCATION,40 THE MOORS,OTHER TRANSPORT ARRANGEMENTS,22/01/2024,11303904455,4.50,STGCOACH/CTYLINK
OXFORDSHIRE CC,CHILDREN'S & EDUCATION,EYNSHAM,OTHER TRANSPORT ARRANGEMENTS,22/01/2024,11303907899,9.00,RINGGO PARKING
OXFORDSHIRE CC,CHILDREN'S & EDUCATION,40 THE MOORS,CLOTHING AND UNIFORMS,22/01/2024,11303904459,3.00,PRIMARK 440
OXFORDSHIRE CC,CHILDREN'S & EDUCATION,40 THE MOORS,MATERIALS,22/01/2024,11303904447,6.63,WH SMITH OXFORD
OXFORDSHIRE CC,CHILDREN'S & EDUCATION,WITNEY,CATERING PROVISIONS,22/01/2024,11303907643,17.40,SAINSBURYS S/MKTS
OXFORDSHIRE CC,CHILDREN'S & EDUCATION,DIDCOT MOVE-ON HOME,CATERING PROVISIONS,22/01/2024,11303907723,10.05,SAINSBURYS S/MKTS
OXFORDSHIRE CC,ADULTS,THAME E&A HOME,CATERING PROVISIONS,22/01/2024,11303903863,1.45,SAINSBURYS S/MKTS
OXFORDSHIRE CC,CHILDREN'S & EDUCATION,THAME E&A HOME,TELEPHONE - EQUIPMENT,22/01/2024,11303905379,20.00,GIFFGAFF
OXFORDSHIRE CC,CHILDREN'S & EDUCATION,EYNSHAM,OTHER TRANSPORT ARRANGEMENTS,22/01/2024,11303907773,22.00,STGCOACH/CTYLINK
OXFORDSHIRE CC,CHILDREN'S & EDUCATION,THAME E&A HOME,CATERING PROVISIONS,22/01/2024,11303904077,17.60,COSTA THAME
OXFORDSHIRE CC,CUSTOMER AND CULTURE,HARD FM,PREMISES REPAIRS,22/01/2024,11303905199,15.48,HALFORDS 0837
OXFORDSHIRE CC,CHILDREN'S & EDUCATION,EYNSHAM,CATERING PROVISIONS,22/01/2024,11303907803,8.50,CO-OPERATIVE FOOD
OXFORDSHIRE CC,CHILDREN'S & EDUCATION,40 THE MOORS,CATERING,22/01/2024,11303907837,7.80,ZETTLE_ LITTLE ITALY E
OXFORDSHIRE CC,PUBLIC HEALTH,CHILDREN IN CARE NON-STAFFING - NORTH,VEHICLE FUEL,22/01/2024,11303904539,45.18,TESCO PFS 4267
OXFORDSHIRE CC,CHILDREN'S & EDUCATION,40 THE MOORS,OTHER TRANSPORT ARRANGEMENTS,22/01/2024,11303907859,14.20,OXFORD PARKWAY SSTP
OXFORDSHIRE CC,CUSTOMER AND CULTURE,THAME LIBRARY,CATERING PROVISIONS,22/01/2024,11303907411,7.50,SAINSBURYS S/MKTS
OXFORDSHIRE CC,CUSTOMER AND CULTURE,SCHOOLS FM CATERING AREA 2,MATERIALS,22/01/2024,11303905951,8.99,AMAZON.CO.UK NL8P419L5
OXFORDSHIRE CC,CHILDREN'S & EDUCATION,"	LOOKED AFTER NORTH",PAYMENTS TO TRANSPORT OPERATORS,22/01/2024,11303907621,-23.40,TRAINLINE
OXFORDSHIRE CC,CHILDREN'S & EDUCATION,40 THE MOORS,FURNITURE,22/01/2024,11303907851,79.99,WWW.THERANGE.CO.UK
OXFORDSHIRE CC,RESOURCES,ICT OPERATIONS & MAI,PURCHASE OF IT EQUIPMENT,22/01/2024,11303907979,170.28,AMZNMKTPLACE
OXFORDSHIRE CC,ADULTS,CSS - BANBURY,MATERIALS,22/01/2024,11303907563,20.75,AMZNMKTPLACE
OXFORDSHIRE CC,ADULTS,CSS - BANBURY,MATERIALS,22/01/2024,11303907557,7.40,AMZNMKTPLACE
OXFORDSHIRE CC,CHILDREN'S & EDUCATION,"	LEAVING CARE NORTH",PAYMENTS TO TRANSPORT OPERATORS,22/01/2024,11303907611,70.70,BRIGHTON & HOVE BUSES
OXFORDSHIRE CC,CHILDREN'S & EDUCATION,DIDCOT MOVE-ON HOME,CATERING PROVISIONS,22/01/2024,11303905221,9.85,SAINSBURYS S/MKTS
OXFORDSHIRE CC,CHILDREN'S & EDUCATION,"	LEAVING CARE NORTH",MATERIALS,22/01/2024,11303908211,25.80,AMAZON.CO.UK XP2EG31J5
OXFORDSHIRE CC,CUSTOMER AND CULTURE,"MARKETING, COMMUNICATIONS & ENGAGEMENT",LICENCES,22/01/2024,11303906877,146.55,BEACONSTAC LITE
OXFORDSHIRE CC,CHILDREN'S & EDUCATION,40 THE MOORS,CATERING PROVISIONS,22/01/2024,11303907831,3.50,SAINSBURYS S/MKTS
OXFORDSHIRE CC,CHILDREN'S & EDUCATION,DIDCOT MOVE-ON HOME,CATERING PROVISIONS,22/01/2024,11303907711,2.20,SAINSBURYS S/MKTS
OXFORDSHIRE CC,CHILDREN'S & EDUCATION,DIDCOT MOVE-ON HOME,FURNITURE,22/01/2024,11303907705,64.00,DUNELM SOFT FURNISHIN
OXFORDSHIRE CC,CHILDREN'S & EDUCATION,EYNSHAM,CATERING PROVISIONS,22/01/2024,11303905803,9.90,CO-OPERATIVE FOOD
OXFORDSHIRE CC,CHILDREN'S & EDUCATION,"	LOOKED AFTER NORTH",PAYMENTS TO TRANSPORT OPERATORS,22/01/2024,11303904853,103.42,TRAINLINE
OXFORDSHIRE CC,CHILDREN'S & EDUCATION,"	LOOKED AFTER NORTH",PAYMENTS TO TRANSPORT OPERATORS,22/01/2024,11303904841,100.88,TRAINLINE
OXFORDSHIRE CC,CHILDREN'S & EDUCATION,"	OCCG GRANT",OTHER EXPENSES,22/01/2024,11303904751,21.33,TESCO STORES 2994
OXFORDSHIRE CC,CHILDREN'S & EDUCATION,40 THE MOORS,CATERING PROVISIONS,22/01/2024,11303906855,6.90,TESCO STORES 2788
OXFORDSHIRE CC,CHILDREN'S & EDUCATION,"	LOOKED AFTER NORTH",VEHICLE FUEL,22/01/2024,11303906501,31.10,APPLEGREEN BICESTER
OXFORDSHIRE CC,CHILDREN'S & EDUCATION,CHILDREN IN CARE NON-STAFFING - NORTH,PAYMENTS TO TRANSPORT OPERATORS,22/01/2024,11303904229,34.03,TRAINLINE
OXFORDSHIRE CC,CHILDREN'S & EDUCATION,FAMILY HELP NORTH,OTHER PREMISES RELATED COSTS,22/01/2024,11303908035,132.73,CHANCELLORS ESTATE AGE
OXFORDSHIRE CC,CHILDREN'S & EDUCATION,NTS UASC AGENCY,MATERIALS,22/01/2024,11303907753,7.15,AMZNMKTPLACE
OXFORDSHIRE CC,CHILDREN'S & EDUCATION,"	LOOKED AFTER NORTH",PAYMENTS TO TRANSPORT OPERATORS,22/01/2024,11303907615,35.25,TRAINLINE
OXFORDSHIRE CC,CHILDREN'S & EDUCATION,UASC 16&17,PAYMENTS TO HEALTH AUTHORITIES,22/01/2024,11303907757,29.50,RESULTS HEALTH CLUBS (
OXFORDSHIRE CC,CHILDREN'S & EDUCATION,CHILDREN IN CARE NON-STAFFING - NORTH,OTHER EXPENSES,22/01/2024,11303908025,25.00,BUYATAB - ALDI
OXFORDSHIRE CC,PUBLIC HEALTH,CHILDREN IN CARE NON-STAFFING - SOUTH,PAYMENT TO GOVERNMENT DEPARTMENTS,22/01/2024,11303903809,98.00,HM PASSPORT OFFICE
OXFORDSHIRE CC,CHILDREN'S & EDUCATION,"	OCCG GRANT",CATERING,22/01/2024,11303904767,19.85,COSTA TEMPLARS
OXFORDSHIRE CC,CHILDREN'S & EDUCATION,FSP NON-STAFFING - CENTRAL,HIRE OF ACCOMMODATION AND FACILITIES,22/01/2024,11303907763,115.60,PREMIER INN
OXFORDSHIRE CC,CHILDREN'S & EDUCATION,"	OCCG GRANT",OTHER EXPENSES,22/01/2024,11303904761,87.05,ASDA STORE 4442
OXFORDSHIRE CC,CUSTOMER AND CULTURE,HISTORY SERVICE,OTHER TRAINING COURSES AND QUALIFICATION,22/01/2024,11303907917,116.40,SJA SUPPLIES TRAINING
OXFORDSHIRE CC,ADULTS,FPT SOUTH/VALE,PAYMENTS TO TRANSPORT OPERATORS,22/01/2024,11303908415,173.22,TRAINLINE
OXFORDSHIRE CC,CHILDREN'S & EDUCATION,UASC POST 18,MATERIALS,22/01/2024,11303905345,60.00,ARGOS LTD
OXFORDSHIRE CC,CHILDREN'S & EDUCATION,UASC POST 18,MATERIALS,22/01/2024,11303905337,30.00,ARGOS LTD
OXFORDSHIRE CC,CHILDREN'S & EDUCATION,THAME E&A HOME,CATERING PROVISIONS,22/01/2024,11303904073,51.50,FUSION LIFESTYLE
OXFORDSHIRE CC,CHILDREN'S & EDUCATION,UASC POST 18,CATERING PROVISIONS,22/01/2024,11303905361,136.16,TK MAXX
OXFORDSHIRE CC,ADULTS,CSS WALLINGFORD,CATERING PROVISIONS,22/01/2024,11303903775,10.30,WAITROSE 675
OXFORDSHIRE CC,ADULTS,CSS WALLINGFORD,CATERING PROVISIONS,22/01/2024,11303903775,10.30,WAITROSE 675
OXFORDSHIRE CC,CUSTOMER AND CULTURE,REGISTRAR,"SUPPLIES, STATIONERY AND MATERIALS",22/01/2024,11303904823,120.00,EB  BIRMINGHAM BEING R
OXFORDSHIRE CC,CHILDREN'S & EDUCATION,"	LEAVING CARE CITY 2",CATERING,22/01/2024,11303906113,6.10,GEORGE AND DANVER
OXFORDSHIRE CC,CHILDREN'S & EDUCATION,"	LEAVING CARE CITY 2",OTHER EXPENSES,22/01/2024,11303904215,9.50,THE JERICHO CAFE LTD
OXFORDSHIRE CC,CUSTOMER AND CULTURE,LEARNING & ACCESS,"SUPPLIES, STATIONERY AND MATERIALS",22/01/2024,11303907959,34.49,AMZNMKTPLACE
OXFORDSHIRE CC,CHILDREN'S & EDUCATION,EYNSHAM,MATERIALS,22/01/2024,11303904797,14.55,AMZNMKTPLACE
OXFORDSHIRE CC,PUBLIC HEALTH,ROW MAINT,EQUIPMENT,22/01/2024,11303905973,29.08,SHELL DUCKLINGTON
OXFORDSHIRE CC,ENVIRONMENT AND PLACE,WASTE MNGMNT GEN,OTHER TRAINING COURSES AND QUALIFICATION,22/01/2024,11303904371,280.00,PAYPAL  CIRCULARECO
OXFORDSHIRE CC,CHILDREN'S & EDUCATION,HOUSE PROJECT,OTHER TRANSPORT ARRANGEMENTS,22/01/2024,11303908163,5.80,WESTGATE OXFORD CAR PA
OXFORDSHIRE CC,CHILDREN'S & EDUCATION,KINGFISHER,CATERING PROVISIONS,22/01/2024,11303908275,100.00,TESCO GIFT CARD
OXFORDSHIRE CC,CHILDREN'S & EDUCATION,"	LEAVING CARE NORTH",PAYMENTS TO TRANSPORT OPERATORS,22/01/2024,11303908199,7.95,TRAINLINE
OXFORDSHIRE CC,CHILDREN'S & EDUCATION,NTS UASC AGENCY,MATERIALS,22/01/2024,11303908011,89.97,AMZNMKTPLACE
OXFORDSHIRE CC,CHILDREN'S & EDUCATION,HOUSE PROJECT,CATERING PROVISIONS,22/01/2024,11303908169,7.30,SAINSBURYS S/MKTS
OXFORDSHIRE CC,ADULTS,CSS WALLINGFORD,MATERIALS,22/01/2024,11303903761,9.74,AMZNMKTPLACE
OXFORDSHIRE CC,CUSTOMER AND CULTURE,"MARKETING, COMMUNICATIONS & ENGAGEMENT",SUBSCRIPTIONS,22/01/2024,11303906867,24.98,LINKEDIN PRE 981467370
OXFORDSHIRE CC,CHILDREN'S & EDUCATION,40 THE MOORS,CATERING,22/01/2024,11303904903,3.98,"KFC OXFORD, TEMPLARS S"
OXFORDSHIRE CC,ADULTS,CSS - ABINGDON,OTHER TRANSPORT ARRANGEMENTS,22/01/2024,11303908375,2.00,OXFORD BUS COMPANY
OXFORDSHIRE CC,CUSTOMER AND CULTURE,SCHOOLS FM CATERING AREA 4,CATERING PROVISIONS,22/01/2024,11303904189,29.94,APPLETON COMMUNITY SHO
OXFORDSHIRE CC,CHILDREN'S & EDUCATION,FAMILY SOLUTIONS PLUS NON-STAFF � SOUTH,HIRE OF ACCOMMODATION AND FACILITIES,22/01/2024,11303904175,772.00,PREMIER INN
OXFORDSHIRE CC,CUSTOMER AND CULTURE,KIDLINGTON LIBRARY,CATERING,22/01/2024,11303907181,3.70,TESCO STORES 2788
OXFORDSHIRE CC,ADULTS,CSS WANTAGE,ENTERTAINMENT EXPENSES,22/01/2024,11303906577,17.85,WWW.BETTER.ORG.UK
OXFORDSHIRE CC,ADULTS,CSS WANTAGE,ENTERTAINMENT EXPENSES,22/01/2024,11303906567,9.90,WWW.BETTER.ORG.UK
OXFORDSHIRE CC,CHILDREN'S & EDUCATION,WITNEY,CATERING PROVISIONS,22/01/2024,11303905753,17.45,ASDA STORES 4920
OXFORDSHIRE CC,CHILDREN'S & EDUCATION,WITNEY,CATERING PROVISIONS,22/01/2024,11303905743,61.02,ASDA STORES 4920
OXFORDSHIRE CC,CHILDREN'S & EDUCATION,THAME E&A HOME,CATERING PROVISIONS,22/01/2024,11303905615,4.00,MARKS&SPENCER PLC SACA
OXFORDSHIRE CC,CHILDREN'S & EDUCATION,PAUSE PROGRAMME,CATERING,22/01/2024,11303905461,45.00,COMIES CARIBBEAN
OXFORDSHIRE CC,CHILDREN'S & EDUCATION,"	LEAVING CARE CITY 1",CLOTHING AND UNIFORMS,22/01/2024,11303904969,193.20,JD SPORTS FASHION PLC
OXFORDSHIRE CC,CHILDREN'S & EDUCATION,EYNSHAM,DRUGS AND MEDICAL SUPPLIES,22/01/2024,11303904785,9.95,ALLIED PHARMACY - EYNS
OXFORDSHIRE CC,ADULTS,CSS - BANBURY,CATERING PROVISIONS,22/01/2024,11303908045,3.47,HOME BARGAINS BANBURY
OXFORDSHIRE CC,CHILDREN'S & EDUCATION,"	LOOKED AFTER NORTH",OTHER TRANSPORT ARRANGEMENTS,22/01/2024,11303904859,2.60,WARWICK DC PARKING
OXFORDSHIRE CC,CHILDREN'S & EDUCATION,NTS UASC AGENCY,MATERIALS,22/01/2024,11303907995,59.75,AMZNMKTPLACE
OXFORDSHIRE CC,CHILDREN'S & EDUCATION,FAMILY SOLUTIONS PLUS NON-STAFF - NORTH,CATERING PROVISIONS,22/01/2024,11303907659,20.00,TESCO GIFT CARD
OXFORDSHIRE CC,CHILDREN'S & EDUCATION,NTS UASC AGENCY,MATERIALS,22/01/2024,11303908005,34.96,AMZNMKTPLACE
OXFORDSHIRE CC,CHILDREN'S & EDUCATION,"	LEAVING CARE CITY 2",MATERIALS,22/01/2024,11303906101,8.99,AMAZON PRIME 4I3GC9XP5
OXFORDSHIRE CC,CHILDREN'S & EDUCATION,NTS UASC AGENCY,OTHER MISC INC,22/01/2024,11303908073,23.00,ASDA GEORGE COM LEEDS
OXFORDSHIRE CC,CHILDREN'S & EDUCATION,NTS UASC AGENCY,OTHER MISC INC,22/01/2024,11303908065,78.00,ASDA GEORGE COM LEEDS
OXFORDSHIRE CC,CHILDREN'S & EDUCATION,40 THE MOORS,CATERING PROVISIONS,22/01/2024,11303906847,20.73,TESCO STORES 2788
OXFORDSHIRE CC,CHILDREN'S & EDUCATION,"	LEAVING CARE CITY 1",OTHER EXPENSES,22/01/2024,11303904089,39.99,AO RETAIL LIMITED
OXFORDSHIRE CC,CHILDREN'S & EDUCATION,"	LEAVING CARE CITY 1",OTHER EXPENSES,22/01/2024,11303904095,299.00,AO RETAIL LIMITED
OXFORDSHIRE CC,CHILDREN'S & EDUCATION,REACTIVE MAINTENANCE,PREMISES REPAIRS,22/01/2024,11303908095,32.65,MKM BUILDING SUPPLIES
OXFORDSHIRE CC,CHILDREN'S & EDUCATION,"	LEAVING CARE CITY 2",MATERIALS,22/01/2024,11303905897,139.98,CURRYS ONLINE
OXFORDSHIRE CC,CHILDREN'S & EDUCATION,NTS UASC AGENCY,MATERIALS,22/01/2024,11303908061,29.98,AMZNMKTPLACE
OXFORDSHIRE CC,CHILDREN'S & EDUCATION,"	RIVERSIDE CENTRE",PAYMENT TO GOVERNMENT DEPARTMENTS,22/01/2024,11303906381,322.50,DVLA VEHICLE TAX
OXFORDSHIRE CC,CHILDREN'S & EDUCATION,"	MALTFIELD HOUSE",FURNITURE,22/01/2024,11303907475,20.40,SAINSBURYS S/MKTS
OXFORDSHIRE CC,CUSTOMER AND CULTURE,SCHOOLS FM CATERING AREA 1,CATERING PROVISIONS,22/01/2024,11303905673,14.95,CO-OPERATIVE FOOD
OXFORDSHIRE CC,CHILDREN'S & EDUCATION,NTS UASC AGENCY,OTHER MISC INC,22/01/2024,11303908079,65.00,ASDA GEORGE COM LEEDS
OXFORDSHIRE CC,ENVIRONMENT AND PLACE,ROW MAINT,EQUIPMENT,22/01/2024,11303905825,238.00,WWW.CHELFORDFARMSUPPLI
OXFORDSHIRE CC,CORPORATE CORE,,STATIONERY,22/01/2024,11303907535,8.57,LYRECO UK LTD
OXFORDSHIRE CC,CORPORATE CORE,,STATIONERY,22/01/2024,11303907497,3.48,LYRECO UK LTD
OXFORDSHIRE CC,CORPORATE CORE,,STATIONERY,22/01/2024,11303907545,69.00,LYRECO UK LTD
OXFORDSHIRE CC,CORPORATE CORE,,STATIONERY,22/01/2024,11303907483,62.74,LYRECO UK LTD
OXFORDSHIRE CC,CORPORATE CORE,,STATIONERY,22/01/2024,11303907507,49.01,LYRECO UK LTD
OXFORDSHIRE CC,CORPORATE CORE,,STATIONERY,22/01/2024,11303907521,260.86,LYRECO UK LTD
OXFORDSHIRE CC,CHILDREN'S & EDUCATION,NTS UASC AGENCY,OTHER MISC INC,22/01/2024,11303908069,38.00,ASDA GEORGE COM LEEDS
OXFORDSHIRE CC,CHILDREN'S & EDUCATION,ATV ADOPTION WOODLEY,HIRE OF ACCOMMODATION AND FACILITIES,22/01/2024,11303903825,165.24,WOODLEY TOWN COUNCIL
OXFORDSHIRE CC,ADULTS,CSS - OXFORD,DAY ACTIVITIES,22/01/2024,11303904055,8.84,ALDI STORES 775-142
OXFORDSHIRE CC,CUSTOMER AND CULTURE,THAME LIBRARY,"NEWSPAPERS, PERIODICALS AND PUBLICATIONS",22/01/2024,11303907401,5.80,SAINSBURYS S/MKTS
OXFORDSHIRE CC,PUBLIC HEALTH,ROW MAINT,EQUIPMENT,22/01/2024,11303905965,15.04,SHELL DUCKLINGTON
OXFORDSHIRE CC,CHILDREN'S & EDUCATION,UASC POST 18,PAYMENTS TO TRANSPORT OPERATORS,22/01/2024,11303905353,38.50,OXFORD PARKWAY SSTP
OXFORDSHIRE CC,ADULTS,FIELDWORK UASC,OTHER TRANSPORT ARRANGEMENTS,22/01/2024,11303905579,55.94,TRAINLINE
OXFORDSHIRE CC,RESOURCES,ICT OPERATIONS & MAI,PURCHASE OF IT EQUIPMENT,22/01/2024,11303907971,"2,174.94",NETGEAR INTERNATIONAL
OXFORDSHIRE CC,CHILDREN'S & EDUCATION,THAME E&A HOME,CATERING PROVISIONS,22/01/2024,11303904359,166.79,TESCO STORES 2038
OXFORDSHIRE CC,CUSTOMER AND CULTURE,COMMUNITY PARTNERSHIP TEAM,CATERING PROVISIONS,22/01/2024,11303904351,17.75,TESCO STORES 2008
OXFORDSHIRE CC,CHILDREN'S & EDUCATION,REACTIVE MAINTENANCE,PREMISES REPAIRS,22/01/2024,11303908085,41.44,BREWERS BICESTER
OXFORDSHIRE CC,CHILDREN'S & EDUCATION,40 THE MOORS,CATERING PROVISIONS,22/01/2024,11303906837,201.00,SAINSBURYS.CO.UK
OXFORDSHIRE CC,CHILDREN'S & EDUCATION,EYNSHAM,CATERING,22/01/2024,11303903845,103.50,TESCO STORES 2008
OXFORDSHIRE CC,ADULTS,THAME E&A HOME,FURNITURE,22/01/2024,11303906483,"1,567.50",NEXT
OXFORDSHIRE CC,CHILDREN'S & EDUCATION,FAMILY SOLUTIONS PLUS NON-STAFF - NORTH,PAYMENTS TO TRANSPORT OPERATORS,22/01/2024,11303907667,-84.80,TRAINLINE
OXFORDSHIRE CC,CHILDREN'S & EDUCATION,"	LEAVING CARE CITY 2",MATERIALS,22/01/2024,11303904221,-80.00,ARGOS HEYFORD HILL
OXFORDSHIRE CC,CHILDREN'S & EDUCATION,CHILDREN IN CARE NON-STAFFING - NORTH,PAYMENTS TO TRANSPORT OPERATORS,22/01/2024,11303904017,-57.70,TRAINLINE
OXFORDSHIRE CC,ADULTS,CSS - ABINGDON,OTHER TRANSPORT ARRANGEMENTS,22/01/2024,11303908385,2.00,STGCOACH/CTYLINK
OXFORDSHIRE CC,CHILDREN'S & EDUCATION,40 THE MOORS,OTHER TRANSPORT ARRANGEMENTS,22/01/2024,11303904889,4.50,OXFORD BUS COMPANY
OXFORDSHIRE CC,CHILDREN'S & EDUCATION,"	SEN/ICT EQUIPMENT",OTHER TRANSPORT ARRANGEMENTS,22/01/2024,11303904669,13.79,UPS LTD
OXFORDSHIRE CC,ADULTS,CSS - BANBURY,MATERIALS,22/01/2024,11303907571,6.29,AMZNMKTPLACE
OXFORDSHIRE CC,ADULTS,CSS WANTAGE,MATERIALS,22/01/2024,11303906587,4.45,AMZNMKTPLACE
OXFORDSHIRE CC,CHILDREN'S & EDUCATION,OTFC TEAM,OTHER TRANSPORT ARRANGEMENTS,22/01/2024,11303907653,1.20,CAR PARK CHARGES
OXFORDSHIRE CC,CHILDREN'S & EDUCATION,QUALITY ASSURANCE SOUTH TEAM,HIRE OF ACCOMMODATION AND FACILITIES,22/01/2024,11303908157,50.15,PREMIER INN
OXFORDSHIRE CC,CHILDREN'S & EDUCATION,"	OCCG GRANT",OTHER EXPENSES,22/01/2024,11303904741,7.92,ALDI STORES 775-142
OXFORDSHIRE CC,CHILDREN'S & EDUCATION,THAME E&A HOME,CATERING,22/01/2024,11303908053,22.00,MCDONALDS
OXFORDSHIRE CC,ADULTS,PAUSE PROGRAMME,OTHER TRANSPORT ARRANGEMENTS,22/01/2024,11303904715,7.75,STAGECOACH SERVICES
OXFORDSHIRE CC,RESOURCES,GREENLOG,PAYMENTS TO TRANSPORT OPERATORS,22/01/2024,11303904273,-24.40,TRAINLINE
OXFORDSHIRE CC,RESOURCES,BUS SERVICE IMPROVEMENT PLAN,MATERIALS,19/01/2024,9497130528,46.62,AMZNMKTPLACE
OXFORDSHIRE CC,RESOURCES,ICT OPERATIONS & MAI,PURCHASE OF IT EQUIPMENT,19/01/2024,9497133004,46.72,AMAZON.CO.UK R635N2SC5
OXFORDSHIRE CC,CUSTOMER AND CULTURE,MUSEUMS COLLECTIONS,CATERING PROVISIONS,19/01/2024,9497131848,4.62,MILK AND MORE (RECUR
OXFORDSHIRE CC,ENVIRONMENT AND PLACE,FLEET OPERATIONS,CATERING PROVISIONS,19/01/2024,9497131120,20.00,MILK AND MORE (RECUR
OXFORDSHIRE CC,CUSTOMER AND CULTURE,SAMUELSON HOUSE,CATERING PROVISIONS,19/01/2024,9497131050,53.55,MILK AND MORE (RECUR
OXFORDSHIRE CC,CUSTOMER AND CULTURE,HOLTON SITE,CATERING PROVISIONS,19/01/2024,9497130494,17.50,MILK AND MORE (RECUR
OXFORDSHIRE CC,ADULTS,CSS WITNEY,CATERING PROVISIONS,19/01/2024,9497132010,35.70,MILK AND MORE (RECUR
OXFORDSHIRE CC,CHILDREN'S & EDUCATION,"	LOOKED AFTER NORTH",CATERING,19/01/2024,9497131020,8.80,STARFISH BAR
OXFORDSHIRE CC,CHILDREN'S & EDUCATION,"	LOOKED AFTER NORTH",VEHICLE FUEL,19/01/2024,9497131032,40.73,SHELL QUANTOCK ROAD
OXFORDSHIRE CC,CHILDREN'S & EDUCATION,"	LEAVING CARE NORTH",CATERING PROVISIONS,19/01/2024,9497132498,50.00,TESCO GIFT CARD
OXFORDSHIRE CC,ADULTS,CSS WANTAGE,EQUIPMENT,19/01/2024,9497130280,110.90,AMZNMKTPLACE
OXFORDSHIRE CC,CHILDREN'S & EDUCATION,"	LEAVING CARE CITY 2",MATERIALS,19/01/2024,9497131600,12.99,JOHNSON CLEANERS UK LT
OXFORDSHIRE CC,ENVIRONMENT AND PLACE,BRIDGES GENERAL,PAYMENT TO GOVERNMENT DEPARTMENTS,19/01/2024,9497133400,458.70,WWW.OXFORD.GOV.UK
OXFORDSHIRE CC,CHILDREN'S & EDUCATION,TRANSPORT COSTS,TRANSPORT TO SCHOOL,19/01/2024,9497133060,247.50,SQ  CIARASCARS ALLOA
OXFORDSHIRE CC,CUSTOMER AND CULTURE,REACTIVE MAINTENANCE,MATERIALS,19/01/2024,9497131670,41.00,AMZNMKTPLACE
OXFORDSHIRE CC,CHILDREN'S & EDUCATION,NTS UASC AGENCY,MATERIALS,19/01/2024,9497132828,35.78,AMZNMKTPLACE
OXFORDSHIRE CC,CHILDREN'S & EDUCATION,40 THE MOORS,CATERING PROVISIONS,19/01/2024,9497131062,36.55,SAINSBURYS S/MKTS
OXFORDSHIRE CC,CHILDREN'S & EDUCATION,PAUSE PROGRAMME,CATERING PROVISIONS,19/01/2024,9497131548,3.40,TESCO STORES 2064
OXFORDSHIRE CC,ADULTS,CSS - BANBURY,MATERIALS,19/01/2024,9497132514,8.19,AMZNMKTPLACE
OXFORDSHIRE CC,CHILDREN'S & EDUCATION,CHILDREN IN CARE NON-STAFFING - SOUTH,BIRTHDAY ALLOWANCE,19/01/2024,9497133078,50.00,ASDA STORES LTD
OXFORDSHIRE CC,ADULTS,INCOME TEAM,PAYMENT TO GOVERNMENT DEPARTMENTS,19/01/2024,9497131508,11.00,OXFORDSHIRE CC WEB1
OXFORDSHIRE CC,ENVIRONMENT AND PLACE,ROW MAINT,EQUIPMENT,19/01/2024,9497131582,43.46,AMZNMKTPLACE
OXFORDSHIRE CC,CHILDREN'S & EDUCATION,FAMILY SOLUTIONS PLUS NON-STAFF � SOUTH,MATERIALS,19/01/2024,9497131482,43.95,WWW.ARGOS.CO.UK
OXFORDSHIRE CC,CHILDREN'S & EDUCATION,"	MALTFIELD HOUSE",FURNITURE,19/01/2024,9497132436,43.88,COSTCO WHOLESALE #114
OXFORDSHIRE CC,CHILDREN'S & EDUCATION,"	LOOKED AFTER NORTH",VEHICLE FUEL,19/01/2024,9497132620,36.16,MORRISON PETROL
OXFORDSHIRE CC,CHILDREN'S & EDUCATION,CHILDREN IN CARE NON-STAFFING - NORTH,OTHER EXPENSES,19/01/2024,9497133070,40.00,ASDA STORES LTD
OXFORDSHIRE CC,CHILDREN'S & EDUCATION,EYNSHAM,CATERING PROVISIONS,19/01/2024,9497132872,5.50,CO-OPERATIVE FOOD
OXFORDSHIRE CC,ADULTS,CSS WANTAGE,MATERIALS,19/01/2024,9497132038,11.66,AMZNMKTPLACE
OXFORDSHIRE CC,CHILDREN'S & EDUCATION,THAME E&A HOME,RESIDENTIAL ACTIVITIES,19/01/2024,9497133204,25.88,HOLLYWOOD BOWL
OXFORDSHIRE CC,ADULTS,CSS WANTAGE,MATERIALS,19/01/2024,9497132048,5.99,AMZNMKTPLACE
OXFORDSHIRE CC,ADULTS,CSS WANTAGE,MATERIALS,19/01/2024,9497132044,19.20,AMZNMKTPLACE
OXFORDSHIRE CC,CHILDREN'S & EDUCATION,"	MALTFIELD HOUSE",CATERING PROVISIONS,19/01/2024,9497131224,169.49,B&M 762 CALCOT
OXFORDSHIRE CC,RESOURCES,BUS SERVICE IMPROVEMENT PLAN,MATERIALS,19/01/2024,9497130506,103.88,AMZNMKTPLACE
OXFORDSHIRE CC,CHILDREN'S & EDUCATION,OTFC TEAM,CATERING,19/01/2024,9497132648,6.60,COSTA COFFEE 43010605
OXFORDSHIRE CC,PUBLIC HEALTH,CHILDREN IN CARE NON-STAFFING - NORTH,OTHER TRANSPORT ARRANGEMENTS,19/01/2024,9497130882,8.90,M6 TOLL
OXFORDSHIRE CC,CHILDREN'S & EDUCATION,PAUSE PROGRAMME,CATERING,19/01/2024,9497131570,8.99,KFC
OXFORDSHIRE CC,ADULTS,CSS WITNEY,MATERIALS,19/01/2024,9497131994,12.55,AMZNMKTPLACE
OXFORDSHIRE CC,ADULTS,CSS WITNEY,MATERIALS,19/01/2024,9497132002,98.55,AMZNMKTPLACE
OXFORDSHIRE CC,CHILDREN'S & EDUCATION,"DIDCOT CC, PARK ROAD",CATERING PROVISIONS,19/01/2024,9497131494,4.55,CO-OPERATIVE FUEL
OXFORDSHIRE CC,CUSTOMER AND CULTURE,HISTORY SERVICE,"BOOKS, DVDS AND CDS",19/01/2024,9497132926,35.00,WATERSTONES.COM
OXFORDSHIRE CC,CUSTOMER AND CULTURE,HARD FM,PREMISES REPAIRS,19/01/2024,9497130380,33.03,WICKES BANBURY
OXFORDSHIRE CC,ADULTS,CSS WANTAGE,ENTERTAINMENT EXPENSES,19/01/2024,9497132024,18.25,HOLLYWOOD BOWL
OXFORDSHIRE CC,CUSTOMER AND CULTURE,"MARKETING, COMMUNICATIONS & ENGAGEMENT","PUBLICITY, PROMOTIONS AND ADVERTISEMENT",19/01/2024,9497132162,500.00,FACEBK  ZV625Y3AZ2
OXFORDSHIRE CC,ADULTS,CSS WALLINGFORD,MATERIALS,19/01/2024,9497130308,3.96,AMZNMKTPLACE
OXFORDSHIRE CC,CHILDREN'S & EDUCATION,"	LEAVING CARE SOUTH",MATERIALS,19/01/2024,9497131472,34.99,WWW.ARGOS.CO.UK
OXFORDSHIRE CC,CUSTOMER AND CULTURE,HARD FM,HARDWARE AND CROCKERY,19/01/2024,9497130364,13.87,B & Q 1176
OXFORDSHIRE CC,CUSTOMER AND CULTURE,OPERATIONS,MATERIALS,19/01/2024,9497131788,7.87,AMZNMKTPLACE
OXFORDSHIRE CC,CUSTOMER AND CULTURE,MUSIC UNALLOCABLE,HIRE OF ACCOMMODATION AND FACILITIES,19/01/2024,9497133090,176.58,VIVIFY VENUES
OXFORDSHIRE CC,CHILDREN'S & EDUCATION,"	MALTFIELD HOUSE",FURNITURE,19/01/2024,9497131234,151.50,IKEA LTD 461 READING M
OXFORDSHIRE CC,CUSTOMER AND CULTURE,WITNEY LIBRARY,CATERING,19/01/2024,9497131268,1.65,CO-OP GROUP 070582
OXFORDSHIRE CC,CHILDREN'S & EDUCATION,"	LEAVING CARE NORTH",HOSPITALITY EXPENSES,19/01/2024,9497131608,5.50,KINGS REACH
OXFORDSHIRE CC,ENVIRONMENT AND PLACE,FLEET OPERATIONS,ROAD FUND LICENCES AND MOTS,19/01/2024,9497131140,327.50,DVLA VEHICLE TAX
OXFORDSHIRE CC,CHILDREN'S & EDUCATION,"	LEAVING CARE CITY 1",CATERING,19/01/2024,9497130592,3.90,COSTA
OXFORDSHIRE CC,CUSTOMER AND CULTURE,SCHOOLS FM CATERING AREA 1,CATERING PROVISIONS,19/01/2024,9497132696,41.80,TESCO STORES 4480
OXFORDSHIRE CC,CUSTOMER AND CULTURE,HARD FM,PREMISES REPAIRS,19/01/2024,9497131212,348.00,2 COUSINS POWERED ACCE
OXFORDSHIRE CC,CHILDREN'S & EDUCATION,CHILDREN IN CARE NON-STAFFING - NORTH,PAYMENT TO GOVERNMENT DEPARTMENTS,19/01/2024,9497132630,82.50,HM PASSPORT OFFICE
OXFORDSHIRE CC,RESOURCES,ICT OPERATIONS & MAI,PURCHASE OF IT EQUIPMENT,19/01/2024,9497133010,340.56,AMZNMKTPLACE
OXFORDSHIRE CC,ADULTS,CSS - OXFORD,DAY ACTIVITIES,19/01/2024,9497130334,5.95,WWW.BETTER.ORG.UK
OXFORDSHIRE CC,RESOURCES,SCHOOLS FM CATERING AREA 2,CATERING PROVISIONS,19/01/2024,9497132554,77.08,BOOKER LTD - 38584104
OXFORDSHIRE CC,ADULTS,CSS - ABINGDON,MATERIALS,19/01/2024,9497130346,22.85,WAITROSE 211
OXFORDSHIRE CC,ADULTS,CSS - ABINGDON,HARDWARE AND CROCKERY,19/01/2024,9497133376,147.00,B & Q 1156
OXFORDSHIRE CC,ADULTS,CSS WITNEY,CATERING PROVISIONS,19/01/2024,9497133164,11.18,CO-OP GROUP 070582
OXFORDSHIRE CC,ADULTS,CSS - ABINGDON,MATERIALS,19/01/2024,9497130342,92.00,B & Q 1156
OXFORDSHIRE CC,ADULTS,CSS WITNEY,MATERIALS,19/01/2024,9497133178,5.25,POUNDLAND LTD - 1912
OXFORDSHIRE CC,CHILDREN'S & EDUCATION,"	RIVERSIDE CENTRE",EDUCATIONAL AND VOCATIONAL TRAINING ,19/01/2024,9497130768,17.00,CENTRE FOR SPORT
OXFORDSHIRE CC,RESOURCES,ORGANISATIONAL DEV'T,OTHER TRAINING COURSES AND QUALIFICATION,19/01/2024,9497131934,499.20,WWW.LSECT.COM
OXFORDSHIRE CC,CHILDREN'S & EDUCATION,PAUSE PROGRAMME,CATERING PROVISIONS,19/01/2024,9497131564,4.60,COSTA THAME
OXFORDSHIRE CC,CHILDREN'S & EDUCATION,PAUSE PROGRAMME,CATERING PROVISIONS,19/01/2024,9497131564,3.80,COSTA THAME
OXFORDSHIRE CC,CUSTOMER AND CULTURE,SCHOOLS FM CATERING AREA 4,CATERING PROVISIONS,19/01/2024,9497131452,36.92,HOME BARGAINS
OXFORDSHIRE CC,CHILDREN'S & EDUCATION,QUALITY ASSURANCE SOUTH TEAM,PAYMENTS TO TRANSPORT OPERATORS,19/01/2024,9497133192,118.81,TRAINLINE
OXFORDSHIRE CC,ADULTS,PAUSE PROGRAMME,OTHER TRANSPORT ARRANGEMENTS,19/01/2024,9497130960,2.00,OXFORDBUS.CO.UK
OXFORDSHIRE CC,CUSTOMER AND CULTURE,SCHOOLS FM CATERING AREA 1,CATERING PROVISIONS,19/01/2024,9497132682,63.35,SAINSBURYS S/MKTS
OXFORDSHIRE CC,CHILDREN'S & EDUCATION,CHILDREN IN CARE NON-STAFFING - CENTRL 2,PAYMENT TO GOVERNMENT DEPARTMENTS,19/01/2024,9497130442,44.00,OXFORDSHIRE CC WEB1
OXFORDSHIRE CC,CORPORATE CORE,,STATIONERY,19/01/2024,9497132448,58.86,LYRECO UK LTD
OXFORDSHIRE CC,CORPORATE CORE,,STATIONERY,19/01/2024,9497132464,139.27,LYRECO UK LTD
OXFORDSHIRE CC,CUSTOMER AND CULTURE,THAME LIBRARY,CATERING PROVISIONS,19/01/2024,9497132384,5.80,SAINSBURYS S/MKTS
OXFORDSHIRE CC,CHILDREN'S & EDUCATION,"	DIRECTOR'S OFFICE",CATERING PROVISIONS,19/01/2024,9497131618,12.50,MARKS&SPENCER PLC
OXFORDSHIRE CC,CHILDREN'S & EDUCATION,REACTIVE MAINTENANCE,PREMISES REPAIRS,19/01/2024,9497133120,23.80,WICKES BICESTER
OXFORDSHIRE CC,ENVIRONMENT AND PLACE,WASTE REDUCTION GEN,"PUBLICITY, PROMOTIONS AND ADVERTISEMENT",19/01/2024,9497130752,86.96,FACEBK  ZE2LCXX8M2
OXFORDSHIRE CC,CUSTOMER AND CULTURE,BUSINESS INTELLECTUAL PROPERTY CENTRE,CATERING PROVISIONS,19/01/2024,9497131708,72.87,SAINSBURYS.CO.UK
OXFORDSHIRE CC,RESOURCES,ICT OPERATIONS & MAI,PURCHASE OF IT EQUIPMENT,19/01/2024,9497132984,46.72,AMAZON.CO.UK D037O0135
OXFORDSHIRE CC,RESOURCES,ICT OPERATIONS & MAI,PURCHASE OF IT EQUIPMENT,19/01/2024,9497132994,46.72,AMAZON.CO.UK BL3GU40T5
OXFORDSHIRE CC,CHILDREN'S & EDUCATION,CHILDREN IN CARE NON-STAFFING - NORTH,OTHER TRANSPORT ARRANGEMENTS,19/01/2024,9497130392,-25.00,GLOUCESTERTAXIS.COM
OXFORDSHIRE CC,CHILDREN'S & EDUCATION,EYNSHAM,MATERIALS,19/01/2024,9497130974,-38.99,AMZNMKTPLACE
OXFORDSHIRE CC,CHILDREN'S & EDUCATION,NTS UASC AGENCY,OTHER MISC INC,19/01/2024,9497133106,-5.00,ASDA GEORGE COM LEEDS
OXFORDSHIRE CC,CHILDREN'S & EDUCATION,CHILDREN IN CARE NON-STAFFING - NORTH,CATERING PROVISIONS,19/01/2024,9497132666,18.60,ALDI 10 775
OXFORDSHIRE CC,PUBLIC HEALTH,ROW MAINT,EQUIPMENT,19/01/2024,9497131690,13.51,BRIZE NORTON SELF SERV
OXFORDSHIRE CC,ADULTS,CSS - OXFORD,CATERING PROVISIONS,19/01/2024,9497131396,4.10,ALDI STORES 775-142
OXFORDSHIRE CC,ADULTS,CSS - OXFORD,CATERING PROVISIONS,19/01/2024,9497131404,35.36,ALDI STORES 775-142
OXFORDSHIRE CC,CHILDREN'S & EDUCATION,CHILDREN IN CARE NON-STAFFING - CENTRL 2,HIRE OF ACCOMMODATION AND FACILITIES,19/01/2024,9497130452,-38.99,TRAVELODGE
OXFORDSHIRE CC,CHILDREN'S & EDUCATION,FSP NON-STAFFING - CENTRAL,MATERIALS,19/01/2024,9497132844,199.98,PAYPAL  RING INC.
OXFORDSHIRE CC,ADULTS,CSS WALLINGFORD,MATERIALS,18/01/2024,9491573006,7.98,AMZNMKTPLACE
OXFORDSHIRE CC,ADULTS,CSS WALLINGFORD,MATERIALS,18/01/2024,9491572988,22.48,AMZNMKTPLACE
OXFORDSHIRE CC,ADULTS,CSS WALLINGFORD,MATERIALS,18/01/2024,9491572998,11.98,AMZNMKTPLACE
OXFORDSHIRE CC,CUSTOMER AND CULTURE,TREE MAINT OPS,EQUIPMENT,18/01/2024,9491575118,61.96,AMZNMKTPLACE
OXFORDSHIRE CC,CHILDREN'S & EDUCATION,40 THE MOORS,CATERING PROVISIONS,18/01/2024,9491573366,34.38,SAINSBURY'S S/MKT
OXFORDSHIRE CC,CUSTOMER AND CULTURE,"MARKETING, COMMUNICATIONS & ENGAGEMENT","PUBLICITY, PROMOTIONS AND ADVERTISEMENT",18/01/2024,9491574298,500.00,GOOGLE ADS4896546035
OXFORDSHIRE CC,CHILDREN'S & EDUCATION,"	LEAVING CARE CITY 2",OTHER EXPENSES,18/01/2024,9491573116,15.00,TESCO GIFT CARD
OXFORDSHIRE CC,CHILDREN'S & EDUCATION,NTS UASC AGENCY,OTHER MISC INC,18/01/2024,9491575158,17.99,AMZNMKTPLACE
OXFORDSHIRE CC,PUBLIC HEALTH,WITNEY,MATERIALS,18/01/2024,9491572894,11.08,AMAZON.CO.UK XG2698JZ5
OXFORDSHIRE CC,PUBLIC HEALTH,WITNEY,MATERIALS,18/01/2024,9491572902,9.20,AMZNMKTPLACE
OXFORDSHIRE CC,CHILDREN'S & EDUCATION,DIDCOT MOVE-ON HOME,CATERING PROVISIONS,18/01/2024,9491574760,51.40,SAINSBURYS SMKT
OXFORDSHIRE CC,CHILDREN'S & EDUCATION,DIDCOT MOVE-ON HOME,CATERING PROVISIONS,18/01/2024,9491574766,34.25,SAINSBURYS SMKT
OXFORDSHIRE CC,CHILDREN'S & EDUCATION,UASC 16&17,CATERING,18/01/2024,9491573078,8.24,POPEYES LOUISIANA CHIC
OXFORDSHIRE CC,CHILDREN'S & EDUCATION,UASC 16&17,CATERING,18/01/2024,9491573072,9.50,POPEYES LOUISIANA CHIC
OXFORDSHIRE CC,CHILDREN'S & EDUCATION,UASC 16&17,CATERING,18/01/2024,9491573064,10.25,POPEYES LOUISIANA CHIC
OXFORDSHIRE CC,CHILDREN'S & EDUCATION,EYNSHAM,CATERING,18/01/2024,9491572882,1.70,TESCO PFS 2488
OXFORDSHIRE CC,CHILDREN'S & EDUCATION,THAME E&A HOME,CATERING PROVISIONS,18/01/2024,9491574480,22.60,SAINSBURYS S/MKTS
OXFORDSHIRE CC,CUSTOMER AND CULTURE,MUSEUM CAFE,IT SERVICES,18/01/2024,9491574100,30.00,THE CHATTY CAFE SCHEME
OXFORDSHIRE CC,CHILDREN'S & EDUCATION,THAME E&A HOME,CATERING PROVISIONS,18/01/2024,9491574492,16.45,MARTIN MCCOLL
OXFORDSHIRE CC,CUSTOMER AND CULTURE,HARD FM,GENERAL MAINTENANCE,18/01/2024,9491575244,237.45,AMZNMKTPLACE
OXFORDSHIRE CC,CHILDREN'S & EDUCATION,CHILDREN IN CARE NON-STAFFING - NORTH,CATERING PROVISIONS,18/01/2024,9491574732,3.20,TESCO STORES 2064
OXFORDSHIRE CC,CHILDREN'S & EDUCATION,"	RIVERSIDE CENTRE",SUBSCRIPTIONS,18/01/2024,9491573510,120.00,DELIVERY PARTNER CONFE
OXFORDSHIRE CC,RESOURCES,CONTRACTS & CONVEYANCING LEGAL TEAM,LEGAL COSTS,18/01/2024,9491575000,385.75,PROPERTY SEARCHES D
OXFORDSHIRE CC,RESOURCES,CONTRACTS & CONVEYANCING LEGAL TEAM,LEGAL COSTS,18/01/2024,9491575006,451.06,PROPERTY SEARCHES D
OXFORDSHIRE CC,CHILDREN'S & EDUCATION,"	LEAVING CARE SOUTH",OTHER EXPENSES,18/01/2024,9491573224,39.90,AMZNMKTPLACE
OXFORDSHIRE CC,CHILDREN'S & EDUCATION,"	LEAVING CARE SOUTH",OTHER EXPENSES,18/01/2024,9491573218,65.99,AMZNMKTPLACE
OXFORDSHIRE CC,CUSTOMER AND CULTURE,SCHOOLS FM CATERING AREA 4,MATERIALS,18/01/2024,9491573730,144.04,NISBETS LTD
OXFORDSHIRE CC,CHILDREN'S & EDUCATION,WITNEY,CATERING PROVISIONS,18/01/2024,9491573744,25.55,LIDL GB WITNEY
OXFORDSHIRE CC,RESOURCES,GREENLOG,PAYMENTS TO TRANSPORT OPERATORS,18/01/2024,9491573176,46.29,TRAINLINE
OXFORDSHIRE CC,CHILDREN'S & EDUCATION,OTFC TEAM,VEHICLE FUEL,18/01/2024,9491574692,1.79,SHELL MAPLE RISE
OXFORDSHIRE CC,ADULTS,INCOME TEAM,PAYMENT TO GOVERNMENT DEPARTMENTS,18/01/2024,9491573346,1.50,FIND A WILL
OXFORDSHIRE CC,CHILDREN'S & EDUCATION,FAMILY SOLUTIONS PLUS NON-STAFF � SOUTH,CATERING PROVISIONS,18/01/2024,9491573292,2.35,TESCO STORES 4377
OXFORDSHIRE CC,CUSTOMER AND CULTURE,RFID PROJECT,HARDWARE AND CROCKERY,18/01/2024,9491574682,36.98,SCREWFIX DIR LTD
OXFORDSHIRE CC,ADULTS,CSS WANTAGE,MATERIALS,18/01/2024,9491574196,29.99,AMZNMKTPLACE
OXFORDSHIRE CC,CHILDREN'S & EDUCATION,"	LEAVING CARE CITY 1",EDUCATIONAL AND VOCATIONAL TRAINING ,18/01/2024,9491573502,373.00,AA DRIVING SCHOOL
OXFORDSHIRE CC,PUBLIC HEALTH,PUBLIC HEALTH GENERAL,MATERIALS,18/01/2024,9491573622,6.40,AMAZON.CO.UK GP8V94ZT5
OXFORDSHIRE CC,CHILDREN'S & EDUCATION,PAUSE PROGRAMME,MATERIALS,18/01/2024,9491575562,1.29,CARD FACTORY
OXFORDSHIRE CC,ADULTS,CSS - ABINGDON,MATERIALS,18/01/2024,9491575174,39.54,AMZNMKTPLACE
OXFORDSHIRE CC,ENVIRONMENT AND PLACE,HWAYS NETWORK MGT,EQUIPMENT,18/01/2024,9491573210,179.96,WWW.SCREWFIX.COM
OXFORDSHIRE CC,ADULTS,CSS - BANBURY,MATERIALS,18/01/2024,9491574630,17.85,AMZNMKTPLACE
OXFORDSHIRE CC,CHILDREN'S & EDUCATION,"	LEAVING CARE SOUTH",OTHER TRANSPORT ARRANGEMENTS,18/01/2024,9491574440,31.86,TESCO PFS 3700
OXFORDSHIRE CC,RESOURCES,ICT OPERATIONS & MAI,PURCHASE OF IT EQUIPMENT,18/01/2024,9491575064,669.69,AMZNMKTPLACE
OXFORDSHIRE CC,ADULTS,CSS WITNEY,MATERIALS,18/01/2024,9491574154,8.59,AMZNMKTPLACE
OXFORDSHIRE CC,ADULTS,CSS WITNEY,MATERIALS,18/01/2024,9491574144,8.70,AMZNMKTPLACE
OXFORDSHIRE CC,ADULTS,CSS WITNEY,MATERIALS,18/01/2024,9491574176,18.78,AMZNMKTPLACE
OXFORDSHIRE CC,ADULTS,CSS WITNEY,MATERIALS,18/01/2024,9491574184,124.50,AMZNMKTPLACE
OXFORDSHIRE CC,ADULTS,CSS - OXFORD,DISABILITY AIDS AND EQUIPMENT,18/01/2024,9491573968,42.72,AMAZON.CO.UK 6732C7BH5
OXFORDSHIRE CC,ADULTS,CSS WALLINGFORD,MATERIALS,18/01/2024,9491572984,14.98,AMZNMKTPLACE
OXFORDSHIRE CC,ENVIRONMENT AND PLACE,BRIDGES GENERAL,PAYMENT TO GOVERNMENT DEPARTMENTS,18/01/2024,9491575542,668.00,ENVIROMENT AGENCY
OXFORDSHIRE CC,CHILDREN'S & EDUCATION,UASC POST 18,OTHER EXPENSES,18/01/2024,9491573458,89.98,AMZNMKTPLACE
OXFORDSHIRE CC,CUSTOMER AND CULTURE,TREE MAINT OPS,EQUIPMENT,18/01/2024,9491575112,51.96,WWW.SCREWFIX.COM
OXFORDSHIRE CC,CHILDREN'S & EDUCATION,UASC POST 18,OTHER EXPENSES,18/01/2024,9491573450,76.27,AMZNMKTPLACE
OXFORDSHIRE CC,CHILDREN'S & EDUCATION,PAUSE PROGRAMME,HOSPITALITY EXPENSES,18/01/2024,9491575556,19.50,LOUNGERS
OXFORDSHIRE CC,CHILDREN'S & EDUCATION,FAMILY SOLUTIONS PLUS NON-STAFF - NORTH,CLOTHING AND UNIFORMS,18/01/2024,9491574724,67.00,PRETTYLITTLETHING.COM
OXFORDSHIRE CC,ADULTS,CSS WALLINGFORD,MATERIALS,18/01/2024,9491572956,27.39,AMZNMKTPLACE
OXFORDSHIRE CC,ADULTS,CSS WALLINGFORD,MATERIALS,18/01/2024,9491572962,6.99,AMZNMKTPLACE
OXFORDSHIRE CC,ADULTS,CSS WALLINGFORD,MATERIALS,18/01/2024,9491572942,9.99,AMZNMKTPLACE
OXFORDSHIRE CC,ADULTS,CSS WALLINGFORD,MATERIALS,18/01/2024,9491572976,2.75,AMZNMKTPLACE
OXFORDSHIRE CC,ADULTS,CSS WALLINGFORD,MATERIALS,18/01/2024,9491572946,19.98,AMZNMKTPLACE
OXFORDSHIRE CC,CHILDREN'S & EDUCATION,CHILDREN IN CARE NON-STAFFING - NORTH,VEHICLE FUEL,18/01/2024,9491575128,53.00,EMPIRE PETROLEUM
OXFORDSHIRE CC,RESOURCES,ICT OPERATIONS & MAI,PURCHASE OF IT EQUIPMENT,18/01/2024,9491575072,52.02,AMZNMKTPLACE
OXFORDSHIRE CC,CHILDREN'S & EDUCATION,THAME E&A HOME,ENTERTAINMENT EXPENSES,18/01/2024,9491573702,10.00,AB GOLF
OXFORDSHIRE CC,ADULTS,CSS WALLINGFORD,MATERIALS,18/01/2024,9491572936,21.90,AMZNMKTPLACE
OXFORDSHIRE CC,CHILDREN'S & EDUCATION,"	LEAVING CARE CITY 1",OTHER TRANSPORT ARRANGEMENTS,18/01/2024,9491573498,3.70,UNION STREET CAR PARK
OXFORDSHIRE CC,CUSTOMER AND CULTURE,HARD FM,PREMISES REPAIRS,18/01/2024,9491573778,15.50,B AND Q
OXFORDSHIRE CC,ADULTS,CSS WALLINGFORD,MATERIALS,18/01/2024,9491572968,67.01,AMZNMKTPLACE
OXFORDSHIRE CC,CHILDREN'S & EDUCATION,"	LEAVING CARE CITY 1",CATERING PROVISIONS,18/01/2024,9491573488,3.70,SAINSBURY'S S/MKT
OXFORDSHIRE CC,CHILDREN'S & EDUCATION,"	LEAVING CARE CITY 1",MATERIALS,18/01/2024,9491573490,12.99,TIMPSON LTD
OXFORDSHIRE CC,CHILDREN'S & EDUCATION,CHILDREN IN CARE NON-STAFFING - CENTRL 2,PAYMENTS TO TRANSPORT OPERATORS,18/01/2024,9491573142,52.67,TRAINLINE
OXFORDSHIRE CC,RESOURCES,ICT OPERATIONS & MAI,PURCHASE OF IT EQUIPMENT,18/01/2024,9491575058,"3,825.00",AMZNMKTPLACE
OXFORDSHIRE CC,CHILDREN'S & EDUCATION,NTS UASC AGENCY,MATERIALS,18/01/2024,9491575094,387.72,AMZNMKTPLACE
OXFORDSHIRE CC,PUBLIC HEALTH,ROW MAINT,EQUIPMENT,18/01/2024,9491573818,154.68,THAMES VALLEY SAW SERV
OXFORDSHIRE CC,CUSTOMER AND CULTURE,SCHOOLS FM CATERING AREA 4,CATERING PROVISIONS,18/01/2024,9491573104,1.39,HOME BARGAINS FARRINGD
OXFORDSHIRE CC,CHILDREN'S & EDUCATION,THAME E&A HOME,CATERING PROVISIONS,18/01/2024,9491573596,10.15,SAINSBURYS S/MKTS
OXFORDSHIRE CC,CHILDREN'S & EDUCATION,FAMILY SOLUTIONS PLUS NON-STAFF - NORTH,PAYMENT TO GOVERNMENT DEPARTMENTS,18/01/2024,9491574704,37.95,OXFORDSHIRE CC WEB1
OXFORDSHIRE CC,CHILDREN'S & EDUCATION,FAMILY SOLUTIONS PLUS NON-STAFF - NORTH,NON-STAFF SUBSISTENCE AND EXPENSES,18/01/2024,9491574818,10.00,WWW.ARGOS.CO.UK
OXFORDSHIRE CC,CHILDREN'S & EDUCATION,FAMILY SOLUTIONS PLUS NON-STAFF - NORTH,NON-STAFF SUBSISTENCE AND EXPENSES,18/01/2024,9491574828,12.49,WWW.ARGOS.CO.UK
OXFORDSHIRE CC,CHILDREN'S & EDUCATION,"	OCCG GRANT",MATERIALS,18/01/2024,9491573428,4.50,POUNDLAND LTD - 1586
OXFORDSHIRE CC,CHILDREN'S & EDUCATION,"	RIVERSIDE CENTRE",EDUCATIONAL AND VOCATIONAL TRAINING ,18/01/2024,9491574586,9.50,OXFORD BROOKES UNI
OXFORDSHIRE CC,CUSTOMER AND CULTURE,SCHOOLS FM CATERING AREA 4,CATERING PROVISIONS,18/01/2024,9491573736,20.78,TESCO STORES 2008
OXFORDSHIRE CC,CHILDREN'S & EDUCATION,"	LEAVING CARE NORTH",OTHER TRANSPORT ARRANGEMENTS,18/01/2024,9491574618,2.00,OXFORDBUS.CO.UK
OXFORDSHIRE CC,CHILDREN'S & EDUCATION,FAMILY SOLUTIONS PLUS NON-STAFF - NORTH,PAYMENT TO GOVERNMENT DEPARTMENTS,18/01/2024,9491575102,120.00,CHERWELL DISTRICT COUN
OXFORDSHIRE CC,ADULTS,CSS WITNEY,MATERIALS,18/01/2024,9491574160,15.98,AMZNMKTPLACE
OXFORDSHIRE CC,PUBLIC HEALTH,CHILDREN IN CARE NON-STAFFING - SOUTH,OTHER TRANSPORT ARRANGEMENTS,18/01/2024,9491572860,10.00,NEALE'S TAXIS LIMI
OXFORDSHIRE CC,CHILDREN'S & EDUCATION,EYNSHAM,MATERIALS,18/01/2024,9491573440,19.33,AMAZON.CO.UK 1Y2LB29N5
OXFORDSHIRE CC,ENVIRONMENT AND PLACE,SCH&SOC CARE TRANSP,MATERIALS,18/01/2024,9491574204,8.99,AMAZON PRIME Q05SG7YR5
OXFORDSHIRE CC,CHILDREN'S & EDUCATION,FAMILY SOLUTIONS PLUS NON-STAFF - NORTH,PAYMENT TO GOVERNMENT DEPARTMENTS,18/01/2024,9491575098,29.99,CHERWELL DC
OXFORDSHIRE CC,CHILDREN'S & EDUCATION,CHILDREN IN CARE NON-STAFFING - NORTH,OTHER TRANSPORT ARRANGEMENTS,18/01/2024,9491573038,25.00,GLOUCESTERTAXIS.COM
OXFORDSHIRE CC,PUBLIC HEALTH,CHILDREN IN CARE NON-STAFFING - SOUTH,PAYMENTS TO TRANSPORT OPERATORS,18/01/2024,9491572850,17.02,TRAINLINE
OXFORDSHIRE CC,CHILDREN'S & EDUCATION,THAME E&A HOME,TELEPHONE - EQUIPMENT,18/01/2024,9491575152,40.00,AYLESBURY GADGET EXCHA
OXFORDSHIRE CC,CHILDREN'S & EDUCATION,FAMILY SOLUTIONS PLUS NON-STAFF - NORTH,PAYMENTS TO TRANSPORT OPERATORS,18/01/2024,9491574710,99.04,TRAINLINE
OXFORDSHIRE CC,RESOURCES,OTHER,INSUR AD HOLD ACC-E,18/01/2024,9491574464,4.49,ROYAL MAIL GROUP LTD
OXFORDSHIRE CC,ADULTS,CSS WITNEY,CATERING PROVISIONS,18/01/2024,9491575228,11.80,CO-OP GROUP 070582
OXFORDSHIRE CC,CHILDREN'S & EDUCATION,UASC 16&17,CATERING,18/01/2024,9491573056,14.00,ZETTLE_ LITTLE ITALY E
OXFORDSHIRE CC,CHILDREN'S & EDUCATION,CHILDREN IN CARE NON-STAFFING - NORTH,PAYMENTS TO TRANSPORT OPERATORS,18/01/2024,9491573046,70.91,TRAINLINE
OXFORDSHIRE CC,CUSTOMER AND CULTURE,CATERING MANAGEMENT SOFT FM,CATERING PROVISIONS,18/01/2024,9491572870,56.11,W M MORRISON STORE
OXFORDSHIRE CC,CUSTOMER AND CULTURE,SCHOOLS FM CATERING AREA 1,CATERING PROVISIONS,18/01/2024,9491574738,85.82,SAINSBURYS S/MKTS
OXFORDSHIRE CC,CHILDREN'S & EDUCATION,"	OCCG GRANT",CLEANING MATERIALS,18/01/2024,9491573422,29.75,POUNDLAND LTD - 1586
OXFORDSHIRE CC,ADULTS,CSS WALLINGFORD,CATERING PROVISIONS,18/01/2024,9491572818,4.65,WAITROSE 675
OXFORDSHIRE CC,CUSTOMER AND CULTURE,SCHOOLS FM CATERING AREA 2,CATERING PROVISIONS,18/01/2024,9491573802,68.82,BOOKER LTD - 38584104
OXFORDSHIRE CC,ADULTS,CSS - OXFORD,CATERING PROVISIONS,18/01/2024,9491573978,316.25,TESCO STORES 2994
OXFORDSHIRE CC,CHILDREN'S & EDUCATION,"	RIVERSIDE CENTRE",CATERING PROVISIONS,18/01/2024,9491574088,7.30,CO-OPERATIVE FOOD
OXFORDSHIRE CC,CORPORATE CORE,,STATIONERY,18/01/2024,9491574598,6.46,LYRECO UK LTD
OXFORDSHIRE CC,CORPORATE CORE,,STATIONERY,18/01/2024,9491574608,12.84,LYRECO UK LTD
OXFORDSHIRE CC,ADULTS,SHARED LIVES,CATERING PROVISIONS,18/01/2024,9491574452,5.00,WAITROSE 211
OXFORDSHIRE CC,CHILDREN'S & EDUCATION,SEND CASEWORK TEAM,POSTAGE AND DELIVERY,18/01/2024,9491575306,15.45,ROYAL MAIL GROUP LTD
OXFORDSHIRE CC,ADULTS,CSS - BANBURY,VEHICLE FUEL,18/01/2024,9491575144,83.62,TESCO PFS 3920
OXFORDSHIRE CC,CHILDREN'S & EDUCATION,"BICESTER CC, LAUNTON RD",CATERING PROVISIONS,18/01/2024,9491574718,2.20,TESCO STORES 3143
OXFORDSHIRE CC,CUSTOMER AND CULTURE,COUNTY HALL,MATERIALS,18/01/2024,9491575238,5.79,AMZNMKTPLACE
OXFORDSHIRE CC,CHILDREN'S & EDUCATION,FSP NON-STAFFING - CENTRAL,MATERIALS,18/01/2024,9491574902,155.93,AMZNMKTPLACE
OXFORDSHIRE CC,CHILDREN'S & EDUCATION,THAME E&A HOME,CATERING PROVISIONS,18/01/2024,9491574488,.40,MARTIN MCCOLL
OXFORDSHIRE CC,RESOURCES,GREENLOG,PAYMENTS TO TRANSPORT OPERATORS,18/01/2024,9491573180,25.39,TRAINLINE
OXFORDSHIRE CC,CHILDREN'S & EDUCATION,PAUSE PROGRAMME,VEHICLE FUEL,18/01/2024,9491575548,6.34,MFG CHERWELL FILLING S
OXFORDSHIRE CC,CHILDREN'S & EDUCATION,"	LEAVING CARE CITY 1",OTHER TRANSPORT ARRANGEMENTS,18/01/2024,9491573480,1.90,CAR PARK CHARGES
OXFORDSHIRE CC,ADULTS,CSS WITNEY,MATERIALS,18/01/2024,9491574168,24.96,AMZNMKTPLACE
OXFORDSHIRE CC,ADULTS,CSS - OXFORD,CATERING PROVISIONS,18/01/2024,9491573684,4.88,ALDI STORES 775-142
OXFORDSHIRE CC,ADULTS,CSS - OXFORD,CATERING PROVISIONS,18/01/2024,9491573692,55.46,ALDI STORES 775-142
OXFORDSHIRE CC,CHILDREN'S & EDUCATION,THAME E&A HOME,MATERIALS,17/01/2024,9486396766,23.99,AMZNMKTPLACE
OXFORDSHIRE CC,ADULTS,CSS - BANBURY,MATERIALS,17/01/2024,9486397972,12.74,AMZNMKTPLACE
OXFORDSHIRE CC,CUSTOMER AND CULTURE,CATERING MANAGEMENT SOFT FM,MATERIALS,17/01/2024,9486398298,18.70,AMZNMKTPLACE
OXFORDSHIRE CC,CUSTOMER AND CULTURE,CATERING MANAGEMENT SOFT FM,MATERIALS,17/01/2024,9486398302,35.98,AMZNMKTPLACE
OXFORDSHIRE CC,CHILDREN'S & EDUCATION,"	LEAVING CARE SOUTH",OTHER EXPENSES,17/01/2024,9486396646,145.99,AMZNMKTPLACE
OXFORDSHIRE CC,CHILDREN'S & EDUCATION,"	LEAVING CARE SOUTH",OTHER EXPENSES,17/01/2024,9486396650,49.98,AMZNMKTPLACE
OXFORDSHIRE CC,CUSTOMER AND CULTURE,SCHOOLS FM CATERING AREA 1,MATERIALS,17/01/2024,9486398042,59.99,AMZNMKTPLACE
OXFORDSHIRE CC,CUSTOMER AND CULTURE,SCHOOLS FM CATERING AREA 1,MATERIALS,17/01/2024,9486398032,5.79,AMZNMKTPLACE
OXFORDSHIRE CC,PUBLIC HEALTH,WITNEY,CATERING PROVISIONS,17/01/2024,9486396426,18.94,SAINSBURYS S/MKTS
OXFORDSHIRE CC,CHILDREN'S & EDUCATION,NTS UASC AGENCY,OTHER MISC INC,17/01/2024,9486398332,10.99,AMZNMKTPLACE
OXFORDSHIRE CC,CHILDREN'S & EDUCATION,40 THE MOORS,CATERING PROVISIONS,17/01/2024,9486396838,4.00,TESCO STORES 2788
OXFORDSHIRE CC,CHILDREN'S & EDUCATION,40 THE MOORS,CATERING PROVISIONS,17/01/2024,9486396842,15.00,TESCO STORES 2788
OXFORDSHIRE CC,CHILDREN'S & EDUCATION,NTS UASC AGENCY,OTHER MISC INC,17/01/2024,9486398326,136.50,ASDA GEORGE COM LEEDS
OXFORDSHIRE CC,CUSTOMER AND CULTURE,SCHOOLS FM CATERING AREA 2,MATERIALS,17/01/2024,9486396660,28.99,AMZNMKTPLACE
OXFORDSHIRE CC,CHILDREN'S & EDUCATION,"	OCCG GRANT",MATERIALS,17/01/2024,9486397986,14.95,AMZNMKTPLACE
OXFORDSHIRE CC,CHILDREN'S & EDUCATION,HOUSE PROJECT,PAYMENT TO GOVERNMENT DEPARTMENTS,17/01/2024,9486398396,2.20,WWW.OXFORD.GOV.UK
OXFORDSHIRE CC,CHILDREN'S & EDUCATION,40 THE MOORS,CATERING,17/01/2024,9486397734,5.20,COSTA COFFEE 43010485
OXFORDSHIRE CC,CHILDREN'S & EDUCATION,UASC POST 18,OTHER EXPENSES,17/01/2024,9486396994,35.71,SHEIN.CO.UK
OXFORDSHIRE CC,RESOURCES,ICT OPERATIONS & MAI,PURCHASE OF IT EQUIPMENT,17/01/2024,9486398232,"8,240.00",CURRYS BUSINESS
OXFORDSHIRE CC,CHILDREN'S & EDUCATION,"	LEAVING CARE SOUTH",OTHER EXPENSES,17/01/2024,9486396640,39.99,AMZNMKTPLACE
OXFORDSHIRE CC,CHILDREN'S & EDUCATION,KINGFISHER,PAYMENTS TO HEALTH AUTHORITIES,17/01/2024,9486398432,120.00,THE PROJECT PT
OXFORDSHIRE CC,CHILDREN'S & EDUCATION,FIELDWORK UASC,HIRE OF ACCOMMODATION AND FACILITIES,17/01/2024,9486396474,103.50,HI COLCHESTER RECE
OXFORDSHIRE CC,ADULTS,CSS - OXFORD,DAY ACTIVITIES,17/01/2024,9486396480,23.80,WWW.BETTER.ORG.UK
OXFORDSHIRE CC,CHILDREN'S & EDUCATION,UASC 16&17,SUBSCRIPTIONS,17/01/2024,9486396560,35.99,PUREGYM LIMITED
OXFORDSHIRE CC,CUSTOMER AND CULTURE,TREE MAINT OPS,EQUIPMENT,17/01/2024,9486398270,"2,820.00",SP SUBTECH SAFETY
OXFORDSHIRE CC,CHILDREN'S & EDUCATION,NTS UASC AGENCY,MATERIALS,17/01/2024,9486398242,20.97,AMZNMKTPLACE
OXFORDSHIRE CC,ADULTS,INCOME TEAM,PAYMENT TO GOVERNMENT DEPARTMENTS,17/01/2024,9486396806,1.50,FIND A WILL
OXFORDSHIRE CC,ADULTS,CSS WITNEY,MATERIALS,17/01/2024,9486397642,14.49,AMZNMKTPLACE
OXFORDSHIRE CC,ADULTS,CSS WITNEY,MATERIALS,17/01/2024,9486397628,5.85,AMZNMKTPLACE
OXFORDSHIRE CC,ADULTS,CSS WITNEY,MATERIALS,17/01/2024,9486397638,9.92,AMZNMKTPLACE
OXFORDSHIRE CC,ADULTS,CSS WITNEY,MATERIALS,17/01/2024,9486397622,4.78,AMAZON.CO.UK QL1ZR6QR5
OXFORDSHIRE CC,ADULTS,CSS WITNEY,MATERIALS,17/01/2024,9486397632,11.99,AMZNMKTPLACE
OXFORDSHIRE CC,PUBLIC HEALTH,WITNEY,MATERIALS,17/01/2024,9486396422,130.00,WWW.ARGOS.CO.UK
OXFORDSHIRE CC,CUSTOMER AND CULTURE,HARD FM,PREMISES REPAIRS,17/01/2024,9486396500,70.53,SCREWFIX DIR LTD
OXFORDSHIRE CC,CHILDREN'S & EDUCATION,FSP NON-STAFFING - CENTRAL,PAYMENT TO GOVERNMENT DEPARTMENTS,17/01/2024,9486398416,11.00,OXFORDSHIRE CC WEB1
OXFORDSHIRE CC,ADULTS,CSS WANTAGE,MATERIALS,17/01/2024,9486397654,24.90,AMZNMKTPLACE
OXFORDSHIRE CC,CHILDREN'S & EDUCATION,UASC 16&17,PAYMENTS TO TRANSPORT OPERATORS,17/01/2024,9486396564,96.20,BICESTER NORTH STATION
OXFORDSHIRE CC,ADULTS,CSS WANTAGE,ENTERTAINMENT EXPENSES,17/01/2024,9486397662,10.95,HOLLYWOOD BOWL
OXFORDSHIRE CC,ADULTS,CSS WANTAGE,ENTERTAINMENT EXPENSES,17/01/2024,9486397658,14.60,HOLLYWOOD BOWL
OXFORDSHIRE CC,ADULTS,CSS WANTAGE,MATERIALS,17/01/2024,9486397672,61.03,AMZNMKTPLACE
OXFORDSHIRE CC,CHILDREN'S & EDUCATION,THAME E&A HOME,CATERING PROVISIONS,17/01/2024,9486397848,6.10,TESCO STORES 4377
OXFORDSHIRE CC,CHILDREN'S & EDUCATION,PAUSE PROGRAMME,OTHER TRANSPORT ARRANGEMENTS,17/01/2024,9486398546,2.90,RINGGO PARKING
OXFORDSHIRE CC,CUSTOMER AND CULTURE,SCHOOLS FM CATERING AREA 4,MATERIALS,17/01/2024,9486397208,110.35,NISBETS LTD
OXFORDSHIRE CC,CUSTOMER AND CULTURE,OXFORDSHIRE MUSEUM,MATERIALS,17/01/2024,9486398226,27.99,AMZNMKTPLACE
OXFORDSHIRE CC,CHILDREN'S & EDUCATION,VIRTUAL SCHOOL POST 16 PPP,"SUPPLIES, STATIONERY AND MATERIALS",17/01/2024,9486397260,137.02,AMZNMKTPLACE
OXFORDSHIRE CC,CHILDREN'S & EDUCATION,"	OCCG GRANT",CATERING PROVISIONS,17/01/2024,9486397102,2.50,ASDA STORE 4442
OXFORDSHIRE CC,CHILDREN'S & EDUCATION,UASC 16&17,SUBSCRIPTIONS,17/01/2024,9486396554,35.99,PUREGYM LIMITED
OXFORDSHIRE CC,ADULTS,CSS - BANBURY,ENTERTAINMENT EXPENSES,17/01/2024,9486397966,13.00,SPICEBALL LEISURE CENT
OXFORDSHIRE CC,CHILDREN'S & EDUCATION,VIRTUAL SCHOOL POST 16 PPP,OTHER TRAINING COURSES AND QUALIFICATION,17/01/2024,9486397238,130.00,NNECL.WHITEFUSE.NET
OXFORDSHIRE CC,ENVIRONMENT AND PLACE,NAT TRAILS GENERAL,HEALTH AND SAFETY EQUIPMENT,17/01/2024,9486397354,49.13,SAFETEC DIRECT LIMITE
OXFORDSHIRE CC,CUSTOMER AND CULTURE,REACTIVE MAINTENANCE,FURNITURE,17/01/2024,9486397324,"3,084.25",SP EQUIP2CLEAN
OXFORDSHIRE CC,CHILDREN'S & EDUCATION,PAUSE PROGRAMME,HOSPITALITY EXPENSES,17/01/2024,9486398552,18.67,TANDEM
OXFORDSHIRE CC,CHILDREN'S & EDUCATION,VIRTUAL SCHOOL POST 16 PPP,"SUPPLIES, STATIONERY AND MATERIALS",17/01/2024,9486397244,8.18,AMZNMKTPLACE
OXFORDSHIRE CC,CHILDREN'S & EDUCATION,VIRTUAL SCHOOL POST 16 PPP,"SUPPLIES, STATIONERY AND MATERIALS",17/01/2024,9486397248,215.40,AMZNMKTPLACE
OXFORDSHIRE CC,ADULTS,CSS - ABINGDON,OTHER TRANSPORT ARRANGEMENTS,17/01/2024,9486396440,7.80,WESTGATE OXFORD CAR PA
OXFORDSHIRE CC,CHILDREN'S & EDUCATION,VIRTUAL SCHOOL POST 16 PPP,"SUPPLIES, STATIONERY AND MATERIALS",17/01/2024,9486397254,8.99,AMZNMKTPLACE
OXFORDSHIRE CC,CUSTOMER AND CULTURE,REACTIVE MAINTENANCE,FURNITURE,17/01/2024,9486397320,737.90,SP EQUIP2CLEAN
OXFORDSHIRE CC,CHILDREN'S & EDUCATION,UASC 16&17,DRUGS AND MEDICAL SUPPLIES,17/01/2024,9486396970,4.50,BOOTS THE CHEMIST
OXFORDSHIRE CC,CHILDREN'S & EDUCATION,PAUSE PROGRAMME,CATERING,17/01/2024,9486397284,8.10,COSTA COFFEE 43010890
OXFORDSHIRE CC,CHILDREN'S & EDUCATION,FAMILY SOLUTIONS PLUS NON-STAFF � SOUTH,PAYMENT TO GOVERNMENT DEPARTMENTS,17/01/2024,9486397264,20.00,DVLA DRIVER ONLINE
OXFORDSHIRE CC,CHILDREN'S & EDUCATION,"	LEAVING CARE SOUTH",CATERING,17/01/2024,9486397216,8.30,COSTA COFFEE ABINGDON
OXFORDSHIRE CC,ADULTS,CSS WITNEY,MATERIALS,17/01/2024,9486397614,43.98,AMZNMKTPLACE
OXFORDSHIRE CC,ENTERPRISEVC,,CAR LEASING - PRIVATE RENTALS,17/01/2024,9486397950,185.16,ENTERPRISE RENT-A-CAR
OXFORDSHIRE CC,ENTERPRISEVC,,CAR LEASING - PRIVATE RENTALS,17/01/2024,9486397946,110.80,ENTERPRISE RENT-A-CAR
OXFORDSHIRE CC,ENTERPRISEVC,,CAR LEASING - PRIVATE RENTALS,17/01/2024,9486397942,106.01,ENTERPRISE RENT-A-CAR
OXFORDSHIRE CC,ENTERPRISEVC,,CAR LEASING - PRIVATE RENTALS,17/01/2024,9486397938,126.96,ENTERPRISE RENT-A-CAR
OXFORDSHIRE CC,ENTERPRISEVC,,CAR LEASING - PRIVATE RENTALS,17/01/2024,9486397932,90.61,ENTERPRISE RENT-A-CAR
OXFORDSHIRE CC,ENTERPRISEVC,,CAR LEASING - PRIVATE RENTALS,17/01/2024,9486397928,63.60,ENTERPRISE RENT-A-CAR
OXFORDSHIRE CC,ENTERPRISEVC,,CAR LEASING - PRIVATE RENTALS,17/01/2024,9486397926,126.19,ENTERPRISE RENT-A-CAR
OXFORDSHIRE CC,ENTERPRISEVC,,CAR LEASING - PRIVATE RENTALS,17/01/2024,9486397920,45.10,ENTERPRISE RENT-A-CAR
OXFORDSHIRE CC,ENTERPRISEVC,,CAR LEASING - PRIVATE RENTALS,17/01/2024,9486397916,176.29,ENTERPRISE RENT-A-CAR
OXFORDSHIRE CC,ENTERPRISEVC,,CAR LEASING - PRIVATE RENTALS,17/01/2024,9486397910,77.50,ENTERPRISE RENT-A-CAR
OXFORDSHIRE CC,ENTERPRISEVC,,CAR LEASING - PRIVATE RENTALS,17/01/2024,9486397908,77.98,ENTERPRISE RENT-A-CAR
OXFORDSHIRE CC,ENTERPRISEVC,,CAR LEASING - PRIVATE RENTALS,17/01/2024,9486397900,137.00,ENTERPRISE RENT-A-CAR
OXFORDSHIRE CC,ADULTS,CSS - BANBURY,GAS,17/01/2024,9486397962,"1,085.51",ALLSTAR COLLECTIONS
OXFORDSHIRE CC,CHILDREN'S & EDUCATION,"	OCCG GRANT",CATERING,17/01/2024,9486398028,7.50,COSTA COFFEE 43010890
OXFORDSHIRE CC,CHILDREN'S & EDUCATION,UASC 16&17,OTHER TRANSPORT ARRANGEMENTS,17/01/2024,9486398312,91.50,WWW.THEKEY.CO.UK
OXFORDSHIRE CC,CHILDREN'S & EDUCATION,PAUSE PROGRAMME,CATERING,17/01/2024,9486397290,10.30,COSTA COFFEE 43011357
OXFORDSHIRE CC,RESOURCES,CENTRAL BUYING TEAM,PROFESSIONAL SUBSCRIPTIONS,17/01/2024,9486397460,145.00,WWW.CIPS.ORG
OXFORDSHIRE CC,ADULTS,CSS - OXFORD,CATERING EQUIPMENT,17/01/2024,9486396526,35.00,SAINSBURY'S S/MKT
OXFORDSHIRE CC,ADULTS,CSS - OXFORD,CATERING PROVISIONS,17/01/2024,9486396484,28.30,PETS AT HOME LTD
OXFORDSHIRE CC,ADULTS,CSS - ABINGDON,MATERIALS,17/01/2024,9486398528,31.17,PETS AT HOME LTD
OXFORDSHIRE CC,CUSTOMER AND CULTURE,SCHOOLS FM CATERING AREA 3,CATERING PROVISIONS,17/01/2024,9486397090,27.69,SAINSBURY'S S/MKT
OXFORDSHIRE CC,CUSTOMER AND CULTURE,LIBRARY COLLECTIONS,"BOOKS, DVDS AND CDS",17/01/2024,9486397014,250.16,OVERDRIVE DIST
OXFORDSHIRE CC,CUSTOMER AND CULTURE,LIBRARY COLLECTIONS,"BOOKS, DVDS AND CDS",17/01/2024,9486397006,562.92,OVERDRIVE DIST
OXFORDSHIRE CC,RESOURCES,SCHOOLS FM CATERING AREA 2,CATERING PROVISIONS,17/01/2024,9486397994,7.75,TESCO STORES 4377
OXFORDSHIRE CC,CHILDREN'S & EDUCATION,DIDCOT MOVE-ON HOME,CATERING PROVISIONS,17/01/2024,9486397084,8.39,SAINSBURYS S/MKTS
OXFORDSHIRE CC,ADULTS,CSS WANTAGE,CATERING PROVISIONS,17/01/2024,9486398420,20.91,SAINSBURYS S/MKT
OXFORDSHIRE CC,CHILDREN'S & EDUCATION,REACTIVE MAINTENANCE,PREMISES REPAIRS,17/01/2024,9486398348,258.38,JEWSON LTD
OXFORDSHIRE CC,CHILDREN'S & EDUCATION,EYNSHAM,CATERING PROVISIONS,17/01/2024,9486396932,8.00,SAINSBURYS S/MKTS
OXFORDSHIRE CC,CUSTOMER AND CULTURE,SCHOOLS FM CATERING AREA 1,CATERING PROVISIONS,17/01/2024,9486398048,83.80,SAINSBURYS S/MKTS
OXFORDSHIRE CC,CUSTOMER AND CULTURE,THAME LIBRARY,CATERING PROVISIONS,17/01/2024,9486397820,5.80,SAINSBURYS S/MKTS
OXFORDSHIRE CC,CORPORATE CORE,,STATIONERY,17/01/2024,9486397884,33.50,LYRECO UK LTD
OXFORDSHIRE CC,CORPORATE CORE,,STATIONERY,17/01/2024,9486397890,26.16,LYRECO UK LTD
OXFORDSHIRE CC,CORPORATE CORE,,STATIONERY,17/01/2024,9486397872,22.64,LYRECO UK LTD
OXFORDSHIRE CC,CHILDREN'S & EDUCATION,UASC 16&17,OTHER EXPENSES,17/01/2024,9486397978,35.99,PUREGYM LIMITED
OXFORDSHIRE CC,CUSTOMER AND CULTURE,HARD FM,MATERIALS,17/01/2024,9486397312,5.59,AMZNMKTPLACE
OXFORDSHIRE CC,CHILDREN'S & EDUCATION,EYNSHAM,CATERING,17/01/2024,9486396414,193.04,TESCO STORES 2008
OXFORDSHIRE CC,CUSTOMER AND CULTURE,OXFORDSHIRE MUSEUM,MATERIALS,17/01/2024,9486398220,14.99,AMZNMKTPLACE
OXFORDSHIRE CC,CUSTOMER AND CULTURE,COMMUNITY PARTNERSHIP TEAM,CATERING PROVISIONS,17/01/2024,9486396750,127.05,TESCO STORES 2008
OXFORDSHIRE CC,CUSTOMER AND CULTURE,CATERING MANAGEMENT SOFT FM,MATERIALS,17/01/2024,9486398290,62.95,AMZNMKTPLACE
OXFORDSHIRE CC,CHILDREN'S & EDUCATION,40 THE MOORS,OTHER EXPENSES,17/01/2024,9486396850,.99,TESCO STORES 2788
OXFORDSHIRE CC,PUBLIC HEALTH,WITNEY,MATERIALS,17/01/2024,9486396432,-14.99,AMZNMKTPLACE
OXFORDSHIRE CC,CHILDREN'S & EDUCATION,"	LOOKED AFTER CITY 2",OTHER TRANSPORT ARRANGEMENTS,17/01/2024,9486397346,2.00,OXFORD BUS COMPANY
OXFORDSHIRE CC,CHILDREN'S & EDUCATION,NTS UASC AGENCY,OTHER TRANSPORT ARRANGEMENTS,17/01/2024,9486398322,2.00,OXFORD BUS COMPANY
OXFORDSHIRE CC,CHILDREN'S & EDUCATION,NTS UASC AGENCY,OTHER TRANSPORT ARRANGEMENTS,17/01/2024,9486398316,2.00,OXFORD BUS COMPANY
OXFORDSHIRE CC,CHILDREN'S & EDUCATION,DIDCOT MOVE-ON HOME,CATERING PROVISIONS,17/01/2024,9486397078,7.95,SAINSBURYS S/MKTS
OXFORDSHIRE CC,CHILDREN'S & EDUCATION,OTFC TEAM,CATERING PROVISIONS,17/01/2024,9486398020,1.60,SAINSBURYS S/MKTS
OXFORDSHIRE CC,CHILDREN'S & EDUCATION,THAME E&A HOME,CATERING PROVISIONS,17/01/2024,9486396542,14.00,SAINSBURYS S/MKTS
OXFORDSHIRE CC,ADULTS,CSS WANTAGE,MATERIALS,17/01/2024,9486397666,9.99,AMZNMKTPLACE
OXFORDSHIRE CC,CHILDREN'S & EDUCATION,THAME E&A HOME,CATERING PROVISIONS,17/01/2024,9486397778,7.20,SAINSBURYS SUPERMA
OXFORDSHIRE CC,CHILDREN'S & EDUCATION,40 THE MOORS,CATERING PROVISIONS,17/01/2024,9486398252,3.79,SAINSBURY'S S/MKT
OXFORDSHIRE CC,CUSTOMER AND CULTURE,MUSEUMS COLLECTIONS,SUBSCRIPTIONS,17/01/2024,9486398214,159.00,TVLICENSING.CO.UK
OXFORDSHIRE CC,CHILDREN'S & EDUCATION,KINGFISHER,PAYMENT TO GOVERNMENT DEPARTMENTS,17/01/2024,9486398426,23.00,DVSA
OXFORDSHIRE CC,ADULTS,CSS - OXFORD,CATERING PROVISIONS,17/01/2024,9486396520,61.28,ALDI STORES 775-142
OXFORDSHIRE CC,ADULTS,CSS - OXFORD,CATERING PROVISIONS,17/01/2024,9486397168,8.26,ALDI STORES 775-142
OXFORDSHIRE CC,CHILDREN'S & EDUCATION,BANBURY CC,VEHICLE FUEL,17/01/2024,9486398262,5.80,SAINSBURYS PETROL
OXFORDSHIRE CC,CUSTOMER AND CULTURE,THAME LIBRARY,CATERING PROVISIONS,17/01/2024,9486397816,5.80,SAINSBURYS S/MKTS
OXFORDSHIRE CC,ADULTS,CSS - ABINGDON,CATERING PROVISIONS,17/01/2024,9486398524,28.49,ALDI STORES
OXFORDSHIRE CC,ADULTS,CSS WANTAGE,MATERIALS,17/01/2024,9486396408,-33.95,AMZNMKTPLACE
OXFORDSHIRE CC,ADULTS,CSS - OXFORD,CATERING PROVISIONS,17/01/2024,9486396516,.95,ALDI STORES 775-142
OXFORDSHIRE CC,CHILDREN'S & EDUCATION,40 THE MOORS,CATERING PROVISIONS,17/01/2024,9486397770,51.91,SAINSBURY'S S/MKT
OXFORDSHIRE CC,CUSTOMER AND CULTURE,SCHOOLS FM CATERING AREA 1,MATERIALS,16/01/2024,9481865784,13.98,AMZNMKTPLACE
OXFORDSHIRE CC,CUSTOMER AND CULTURE,SCHOOLS FM CATERING AREA 1,MATERIALS,16/01/2024,9481865780,17.97,AMZNMKTPLACE
OXFORDSHIRE CC,CUSTOMER AND CULTURE,SCHOOLS FM CATERING AREA 1,MATERIALS,16/01/2024,9481865776,51.98,AMZNMKTPLACE
OXFORDSHIRE CC,CHILDREN'S & EDUCATION,FSP NON-STAFFING - CENTRAL,CLOTHING AND UNIFORMS,16/01/2024,9481865868,59.49,NIKE GBP
OXFORDSHIRE CC,CHILDREN'S & EDUCATION,EYNSHAM,OTHER COMMUNICATIONS,16/01/2024,9481864340,10.99,NETFLIX.COM
OXFORDSHIRE CC,CUSTOMER AND CULTURE,SCHOOLS FM CATERING AREA 1,MATERIALS,16/01/2024,9481865768,16.35,AMZNMKTPLACE
OXFORDSHIRE CC,CHILDREN'S & EDUCATION,"	LEAVING CARE NORTH",OTHER TRANSPORT ARRANGEMENTS,16/01/2024,9481865638,27.00,OXFORDBUS.CO.UK
OXFORDSHIRE CC,CHILDREN'S & EDUCATION,"	OCCG GRANT",CATERING PROVISIONS,16/01/2024,9481864704,12.14,TESCO STORES 2994
OXFORDSHIRE CC,CHILDREN'S & EDUCATION,"	LOOKED AFTER NORTH",VEHICLE FUEL,16/01/2024,9481865658,55.57,MFG TOLLHOUSE
OXFORDSHIRE CC,CUSTOMER AND CULTURE,SCHOOLS FM CATERING AREA 1,MATERIALS,16/01/2024,9481865758,158.71,NISBETS LTD
OXFORDSHIRE CC,CHILDREN'S & EDUCATION,OTFC TEAM,CATERING,16/01/2024,9481865698,8.49,"KFC OXFORD, TEMPLARS S"
OXFORDSHIRE CC,CHILDREN'S & EDUCATION,OTFC TEAM,CATERING,16/01/2024,9481865702,9.25,COSTA TEMPLARS
OXFORDSHIRE CC,CHILDREN'S & EDUCATION,"	LEAVING CARE NORTH",CATERING PROVISIONS,16/01/2024,9481865634,15.00,TESCO GIFT CARD
OXFORDSHIRE CC,CHILDREN'S & EDUCATION,THAME E&A HOME,DOMESTIC SUPPLIES,16/01/2024,9481864984,5.00,"BOOTS,THAME"
OXFORDSHIRE CC,CHILDREN'S & EDUCATION,THAME E&A HOME,DOMESTIC SUPPLIES,16/01/2024,9481864980,24.95,SUPERDRUG STORES PLC
OXFORDSHIRE CC,CHILDREN'S & EDUCATION,"	LEAVING CARE SOUTH",VEHICLE FUEL,16/01/2024,9481865476,47.74,EMPIRE PETROLEUM
OXFORDSHIRE CC,PUBLIC HEALTH,TRANSPORT COSTS,TRANSPORT TO SCHOOL,16/01/2024,9481864324,247.50,SQ  CIARASCARS ALLOA
OXFORDSHIRE CC,CUSTOMER AND CULTURE,REGISTRAR,MATERIALS,16/01/2024,9481864726,9.99,AMZNMKTPLACE
OXFORDSHIRE CC,CHILDREN'S & EDUCATION,FAMILY SOLUTIONS PLUS NON-STAFF � SOUTH,HIRE OF ACCOMMODATION AND FACILITIES,16/01/2024,9481865908,27.52,TRAVELODGE
OXFORDSHIRE CC,CHILDREN'S & EDUCATION,"	OCCG GRANT",EQUIPMENT,16/01/2024,9481864708,26.25,ASDA STORE 4442
OXFORDSHIRE CC,CUSTOMER AND CULTURE,BAMPTON LIBRARY,EQUIPMENT,16/01/2024,9481865462,1.49,OXFORD BUILDING SUPPLI
OXFORDSHIRE CC,CHILDREN'S & EDUCATION,"	LEAVING CARE NORTH",CATERING PROVISIONS,16/01/2024,9481865028,25.00,TESCO GIFT CARD
OXFORDSHIRE CC,CHILDREN'S & EDUCATION,FAMILY SOLUTIONS PLUS NON-STAFF � SOUTH,PAYMENTS TO TRANSPORT OPERATORS,16/01/2024,9481865912,196.35,TRAINLINE
OXFORDSHIRE CC,CUSTOMER AND CULTURE,HEADINGTON LIBRARY,"NEWSPAPERS, PERIODICALS AND PUBLICATIONS",16/01/2024,9481865132,90.80,NEWSTEAM GROUP
OXFORDSHIRE CC,CHILDREN'S & EDUCATION,OTFC TEAM,CATERING,16/01/2024,9481865690,21.89,DOMINO S PIZZA
OXFORDSHIRE CC,CHILDREN'S & EDUCATION,OTFC TEAM,CATERING,16/01/2024,9481865686,9.65,COSTA TEMPLARS
OXFORDSHIRE CC,CHILDREN'S & EDUCATION,FAMILY SOLUTIONS PLUS NON-STAFF - NORTH,PAYMENTS TO TRANSPORT OPERATORS,16/01/2024,9481865714,25.67,TRAINLINE
OXFORDSHIRE CC,CUSTOMER AND CULTURE,SCHOOLS FM CATERING AREA 1,VEHICLE FUEL,16/01/2024,9481865756,20.99,SHELL WITNEY
OXFORDSHIRE CC,CHILDREN'S & EDUCATION,PAUSE PROGRAMME,CATERING,16/01/2024,9481866290,4.90,COSTA COFFEE 43011187
OXFORDSHIRE CC,ADULTS,CSS WANTAGE,CATERING PROVISIONS,16/01/2024,9481865320,7.10,TESCO STORES 5429
OXFORDSHIRE CC,CHILDREN'S & EDUCATION,FAMILY SOLUTIONS PLUS NON-STAFF - NORTH,PAYMENTS TO TRANSPORT OPERATORS,16/01/2024,9481865708,12.12,TRAINLINE
OXFORDSHIRE CC,CHILDREN'S & EDUCATION,PAUSE PROGRAMME,CATERING,16/01/2024,9481865008,7.60,COSTA COFFEE 43011919
OXFORDSHIRE CC,CHILDREN'S & EDUCATION,REACTIVE MAINTENANCE,PREMISES REPAIRS,16/01/2024,9481866062,47.26,B & Q 1156
OXFORDSHIRE CC,RESOURCES,SUMMERTOWN LIBRARY,"NEWSPAPERS, PERIODICALS AND PUBLICATIONS",16/01/2024,9481865466,101.20,SUMUP   T J GRESSWELL
OXFORDSHIRE CC,PUBLIC HEALTH,CHILDREN IN CARE NON-STAFFING - SOUTH,OTHER EXPENSES,16/01/2024,9481864332,26.98,EUROFLORIST UK LTD
OXFORDSHIRE CC,CHILDREN'S & EDUCATION,EYNSHAM,CATERING PROVISIONS,16/01/2024,9481865874,1.75,CO-OPERATIVE FOOD
OXFORDSHIRE CC,CHILDREN'S & EDUCATION,LEADERSHIP TEAM,POSTAGE AND DELIVERY,16/01/2024,9481865834,6.49,ROYAL MAIL GROUP LTD
OXFORDSHIRE CC,CHILDREN'S & EDUCATION,REACTIVE MAINTENANCE,PREMISES REPAIRS,16/01/2024,9481866050,123.60,EUROCELL
OXFORDSHIRE CC,CUSTOMER AND CULTURE,HARD FM,PREMISES REPAIRS,16/01/2024,9481864396,3.90,NCP BANBURY MARLBOROUG
OXFORDSHIRE CC,CHILDREN'S & EDUCATION,HOUSE PROJECT,CATERING,16/01/2024,9481865608,4.40,COSTA TEMPLARS
OXFORDSHIRE CC,CUSTOMER AND CULTURE,SCHOOLS FM CATERING AREA 2,CATERING PROVISIONS,16/01/2024,9481865082,52.43,BOOKER LTD - 38584104
OXFORDSHIRE CC,CUSTOMER AND CULTURE,OPERATIONS,MATERIALS,16/01/2024,9481865174,10.00,AMAZON.CO.UK PJ7DY2XF5
OXFORDSHIRE CC,CHILDREN'S & EDUCATION,"	LEAVING CARE NORTH",OTHER TRANSPORT ARRANGEMENTS,16/01/2024,9481865628,2.00,OXFORDBUS.CO.UK
OXFORDSHIRE CC,CHILDREN'S & EDUCATION,REACTIVE MAINTENANCE,PREMISES REPAIRS,16/01/2024,9481866056,688.12,HOWDENS - OXFORD D879
OXFORDSHIRE CC,CHILDREN'S & EDUCATION,HOUSE PROJECT,CATERING,16/01/2024,9481865602,8.65,COSTA TEMPLARS
OXFORDSHIRE CC,CHILDREN'S & EDUCATION,THAME E&A HOME,DRUGS AND MEDICAL SUPPLIES,16/01/2024,9481864822,23.05,"BOOTS,THAME"
OXFORDSHIRE CC,CUSTOMER AND CULTURE,SCHOOLS FM CATERING AREA 1,CATERING PROVISIONS,16/01/2024,9481865762,23.35,TESCO STORES 4480
OXFORDSHIRE CC,CUSTOMER AND CULTURE,HARD FM,PREMISES REPAIRS,16/01/2024,9481864392,10.99,SCREWFIX DIR LTD
OXFORDSHIRE CC,CUSTOMER AND CULTURE,REGISTRAR,STAFF USE OF PUBLIC TRANSPORT,16/01/2024,9481864732,10.60,SUMUP   M. A. R. TAXI
OXFORDSHIRE CC,ENVIRONMENT AND ECONOMY,FLEET RECHARGES TO SERVICES,PAYMENTS TO TRANSPORT OPERATORS,16/01/2024,9481865730,171.50,ENTERPRISE RENT A CAR
OXFORDSHIRE CC,CHILDREN'S & EDUCATION,"	LEAVING CARE CITY 2",EDUCATIONAL AND VOCATIONAL TRAINING ,16/01/2024,9481865672,874.49,WWW.LEARNDIRECT.COM
OXFORDSHIRE CC,CHILDREN'S & EDUCATION,THAME E&A HOME,CATERING PROVISIONS,16/01/2024,9481865104,7.45,CO-OP GROUP 350035
OXFORDSHIRE CC,ADULTS,CSS WANTAGE,MATERIALS,16/01/2024,9481865324,17.99,AMZNMKTPLACE
OXFORDSHIRE CC,CHILDREN'S & EDUCATION,40 THE MOORS,OTHER TRANSPORT ARRANGEMENTS,16/01/2024,9481864742,4.50,STGCOACH/CTYLINK
OXFORDSHIRE CC,ENVIRONMENT AND ECONOMY,FLEET RECHARGES TO SERVICES,PAYMENTS TO TRANSPORT OPERATORS,16/01/2024,9481865740,52.50,ENTERPRISE RENT A CAR
OXFORDSHIRE CC,ENVIRONMENT AND ECONOMY,FLEET RECHARGES TO SERVICES,PAYMENTS TO TRANSPORT OPERATORS,16/01/2024,9481865736,77.10,ENTERPRISE RENT A CAR
OXFORDSHIRE CC,CHILDREN'S & EDUCATION,PAUSE PROGRAMME,CATERING,16/01/2024,9481865014,5.20,COSTA COFFEE 43011357
OXFORDSHIRE CC,ADULTS,CSS - ABINGDON,MATERIALS,16/01/2024,9481866282,4.00,POUNDLAND LTD - 1366
OXFORDSHIRE CC,ENVIRONMENT AND ECONOMY,FLEET RECHARGES TO SERVICES,PAYMENTS TO TRANSPORT OPERATORS,16/01/2024,9481865726,99.25,ENTERPRISE RENT A CAR
OXFORDSHIRE CC,CHILDREN'S & EDUCATION,UASC 16&17,DRUGS AND MEDICAL SUPPLIES,16/01/2024,9481865088,3.69,"BOOTS,OXFORD"
OXFORDSHIRE CC,ENTERPRISEVC,,CAR LEASING - PRIVATE RENTALS,16/01/2024,9481865588,"1,716.00",ENTERPRISE RENT-A-CAR
OXFORDSHIRE CC,ENVIRONMENT AND ECONOMY,FLEET RECHARGES TO SERVICES,PAYMENTS TO TRANSPORT OPERATORS,16/01/2024,9481865744,50.68,ENTERPRISE RENT A CAR
OXFORDSHIRE CC,ADULTS,CSS WITNEY,CATERING PROVISIONS,16/01/2024,9481865124,13.60,CO-OP GROUP 070582
OXFORDSHIRE CC,CHILDREN'S & EDUCATION,EYNSHAM,PROFESSIONAL SUBSCRIPTIONS,16/01/2024,9481864450,23.78,ONTOPUP.COM
OXFORDSHIRE CC,CHILDREN'S & EDUCATION,"	LEAVING CARE NORTH",OTHER TRANSPORT ARRANGEMENTS,16/01/2024,9481865624,2.00,OXFORDBUS.CO.UK
OXFORDSHIRE CC,ADULTS,CSS - OXFORD,MATERIALS,16/01/2024,9481865208,25.99,AMZNMKTPLACE
OXFORDSHIRE CC,ADULTS,CSS WALLINGFORD,CLEANING MATERIALS,16/01/2024,9481864304,40.50,WAITROSE 675
OXFORDSHIRE CC,ADULTS,CSS WANTAGE,MATERIALS,16/01/2024,9481866182,34.87,HOME BARGAINS
OXFORDSHIRE CC,CHILDREN'S & EDUCATION,FAMILY HELP NORTH,CATERING PROVISIONS,16/01/2024,9481865828,17.50,WAITROSE 142
OXFORDSHIRE CC,CUSTOMER AND CULTURE,SCHOOLS FM CATERING AREA 2,CATERING PROVISIONS,16/01/2024,9481865078,8.34,TESCO STORES 2994
OXFORDSHIRE CC,ADULTS,CSS - OXFORD,MATERIALS,16/01/2024,9481865206,4.14,AMZNMKTPLACE
OXFORDSHIRE CC,CHILDREN'S & EDUCATION,CHILDREN IN CARE NON-STAFFING - CENTRL 1,PAYMENT TO GOVERNMENT DEPARTMENTS,16/01/2024,9481864470,70.00,OXFORDSHIRE CC WEB1
OXFORDSHIRE CC,CHILDREN'S & EDUCATION,"BICESTER CC, LAUNTON RD",CATERING PROVISIONS,16/01/2024,9481865720,1.45,MARKS&SPENCER PLC SACA
OXFORDSHIRE CC,ADULTS,CSS - ABINGDON,CATERING PROVISIONS,16/01/2024,9481866042,57.35,TESCO STORES 2008
OXFORDSHIRE CC,CORPORATE CORE,,STATIONERY,16/01/2024,9481865560,181.39,LYRECO UK LTD
OXFORDSHIRE CC,CORPORATE CORE,,STATIONERY,16/01/2024,9481865574,232.64,LYRECO UK LTD
OXFORDSHIRE CC,ADULTS,CSS BICESTER,CATERING PROVISIONS,16/01/2024,9481864430,184.69,TESCO STORES 2162
OXFORDSHIRE CC,CHILDREN'S & EDUCATION,40 THE MOORS,CATERING PROVISIONS,16/01/2024,9481865410,149.75,SAINSBURYS.CO.UK
OXFORDSHIRE CC,ADULTS,CSS - BANBURY,CATERING PROVISIONS,16/01/2024,9481866032,69.30,SAINSBURYS.CO.UK
OXFORDSHIRE CC,CHILDREN'S & EDUCATION,THAME E&A HOME,CATERING PROVISIONS,16/01/2024,9481864530,278.27,TESCO STORES 2038
OXFORDSHIRE CC,RESOURCES,ICT OPERATIONS & MAI,PURCHASE OF IT EQUIPMENT,16/01/2024,9481865986,246.20,AMAZON.CO.UK 5B64Q41Y5
OXFORDSHIRE CC,RESOURCES,ICT OPERATIONS & MAI,PURCHASE OF IT EQUIPMENT,16/01/2024,9481865964,246.20,AMAZON.CO.UK UO50V2G75
OXFORDSHIRE CC,RESOURCES,ICT OPERATIONS & MAI,PURCHASE OF IT EQUIPMENT,16/01/2024,9481865956,246.20,AMAZON.CO.UK SX9QW9895
OXFORDSHIRE CC,RESOURCES,ICT OPERATIONS & MAI,PURCHASE OF IT EQUIPMENT,16/01/2024,9481865940,246.20,AMAZON.CO.UK PR4JF25V5
OXFORDSHIRE CC,RESOURCES,ICT OPERATIONS & MAI,PURCHASE OF IT EQUIPMENT,16/01/2024,9481865926,246.20,AMAZON.CO.UK B82OK5WK5
OXFORDSHIRE CC,RESOURCES,ICT OPERATIONS & MAI,PURCHASE OF IT EQUIPMENT,16/01/2024,9481865950,246.20,AMAZON.CO.UK RQ61O5WK5
OXFORDSHIRE CC,RESOURCES,ICT OPERATIONS & MAI,PURCHASE OF IT EQUIPMENT,16/01/2024,9481865960,246.20,AMAZON.CO.UK T29TO0TX5
OXFORDSHIRE CC,RESOURCES,ICT OPERATIONS & MAI,PURCHASE OF IT EQUIPMENT,16/01/2024,9481865970,246.20,AMAZON.CO.UK Y487H5L75
OXFORDSHIRE CC,RESOURCES,ICT OPERATIONS & MAI,PURCHASE OF IT EQUIPMENT,16/01/2024,9481865916,246.20,AMAZON.CO.UK AK7QA2ZC5
OXFORDSHIRE CC,RESOURCES,ICT OPERATIONS & MAI,PURCHASE OF IT EQUIPMENT,16/01/2024,9481865992,246.20,AMAZON.CO.UK 6I08U5VM5
OXFORDSHIRE CC,RESOURCES,ICT OPERATIONS & MAI,PURCHASE OF IT EQUIPMENT,16/01/2024,9481865982,246.20,AMAZON.CO.UK 228FU2IA5
OXFORDSHIRE CC,RESOURCES,ICT OPERATIONS & MAI,PURCHASE OF IT EQUIPMENT,16/01/2024,9481865976,246.20,AMAZON.CO.UK Y851Q0945
OXFORDSHIRE CC,RESOURCES,ICT OPERATIONS & MAI,PURCHASE OF IT EQUIPMENT,16/01/2024,9481865934,246.20,AMAZON.CO.UK M75492EO5
OXFORDSHIRE CC,RESOURCES,ICT OPERATIONS & MAI,PURCHASE OF IT EQUIPMENT,16/01/2024,9481865946,246.20,AMAZON.CO.UK RI0RV6JZ5
OXFORDSHIRE CC,RESOURCES,ICT OPERATIONS & MAI,PURCHASE OF IT EQUIPMENT,16/01/2024,9481865920,246.20,AMAZON.CO.UK BP60R6T35
OXFORDSHIRE CC,CHILDREN'S & EDUCATION,FAMILY SOLUTIONS PLUS NON-STAFF - NORTH,PAYMENTS TO TRANSPORT OPERATORS,16/01/2024,9481865614,-25.10,TRAINLINE
OXFORDSHIRE CC,ENVIRONMENT AND PLACE,FLEET COSTS,VEHICLE - HIRE CHARGES,16/01/2024,9481864444,-35.00,OCC CIVIL ENFORCEMENT
OXFORDSHIRE CC,CHILDREN'S & EDUCATION,THAME E&A HOME,VEHICLE FUEL,16/01/2024,9481865096,5.45,VINEYARD SERVICE STATI
OXFORDSHIRE CC,CHILDREN'S & EDUCATION,THAME E&A HOME,MATERIALS,16/01/2024,9481864534,9.99,AMZNMKTPLACE
OXFORDSHIRE CC,CHILDREN'S & EDUCATION,THAME E&A HOME,RESIDENTIAL ACTIVITIES,16/01/2024,9481866100,1.60,CAR PARK CHARGES
OXFORDSHIRE CC,CUSTOMER AND CULTURE,REGISTRAR,MATERIALS,16/01/2024,9481865042,9.70,AMZNMKTPLACE
OXFORDSHIRE CC,CUSTOMER AND CULTURE,HISTORY SERVICE,FURNITURE,16/01/2024,9481865268,159.00,TVLICENSING.CO.UK
OXFORDSHIRE CC,CHILDREN'S & EDUCATION,CHILDREN IN CARE NON-STAFFING - NORTH,HIRE OF ACCOMMODATION AND FACILITIES,16/01/2024,9481864412,66.22,PARTNERS ON BOOKING BV
OXFORDSHIRE CC,RESOURCES,PERSONNEL,PAYMENT TO GOVERNMENT DEPARTMENTS,16/01/2024,9481865250,"-1,500.00",C2E811900871U UKVI
OXFORDSHIRE CC,ADULTS,CSS WALLINGFORD,MATERIALS,15/01/2024,9474753976,18.64,AMZNMKTPLACE
OXFORDSHIRE CC,CUSTOMER AND CULTURE,REGISTRAR,MATERIALS,15/01/2024,9474754132,19.99,AMZNMKTPLACE
OXFORDSHIRE CC,ADULTS,CSS WALLINGFORD,MATERIALS,15/01/2024,9474753972,9.32,AMZNMKTPLACE
OXFORDSHIRE CC,CHILDREN'S & EDUCATION,THAME E&A HOME,TELEPHONE - EQUIPMENT,15/01/2024,9474754188,20.00,VESTA VODAFONE TOPUP
OXFORDSHIRE CC,CHILDREN'S & EDUCATION,DIDCOT MOVE-ON HOME,CATERING,15/01/2024,9474754410,16.76,DELIVEROO
OXFORDSHIRE CC,CHILDREN'S & EDUCATION,"	RESIDENTIAL STRATEGY",HIRE OF ACCOMMODATION AND FACILITIES,15/01/2024,9474754322,186.00,SANDGATE WORCESTER LTD
OXFORDSHIRE CC,CHILDREN'S & EDUCATION,UASC 16&17,CATERING,15/01/2024,9474754116,19.95,PIRICO OXFORD
OXFORDSHIRE CC,CHILDREN'S & EDUCATION,EYNSHAM,CATERING PROVISIONS,15/01/2024,9474754010,7.45,CO-OPERATIVE FOOD
OXFORDSHIRE CC,CHILDREN'S & EDUCATION,EYNSHAM,MATERIALS,15/01/2024,9474754126,7.89,AMZNMKTPLACE
OXFORDSHIRE CC,ADULTS,THAME E&A HOME,NON-STAFF SUBSISTENCE AND EXPENSES,15/01/2024,9474754302,4.48,MCDONALDS
OXFORDSHIRE CC,ADULTS,THAME E&A HOME,CATERING PROVISIONS,15/01/2024,9474754300,11.80,TESCO STORES 2008
OXFORDSHIRE CC,CUSTOMER AND CULTURE,COMMUNITY PARTNERSHIP TEAM,CATERING PROVISIONS,15/01/2024,9474754046,5.94,TESCO STORES 2413
OXFORDSHIRE CC,CHILDREN'S & EDUCATION,THAME E&A HOME,RESIDENTIAL ACTIVITIES,15/01/2024,9474754518,13.80,COSTA COFFEE 43010475
OXFORDSHIRE CC,CHILDREN'S & EDUCATION,THAME E&A HOME,RESIDENTIAL ACTIVITIES,15/01/2024,9474754520,2.10,PARKING-AQUA VALE
OXFORDSHIRE CC,CHILDREN'S & EDUCATION,EYNSHAM,SUBSCRIPTIONS,15/01/2024,9474754012,10.90,TEAMSPORT
OXFORDSHIRE CC,RESOURCES,EYNSHAM,SUBSCRIPTIONS,15/01/2024,9474754568,13.40,TEAMSPORT
OXFORDSHIRE CC,RESOURCES,EYNSHAM,SUBSCRIPTIONS,15/01/2024,9474754570,7.58,TEAMSPORT
OXFORDSHIRE CC,ADULTS,SHARED LIVES,CATERING PROVISIONS,15/01/2024,9474754358,8.25,TESCO STORES 6519
OXFORDSHIRE CC,ADULTS,CSS WALLINGFORD,CLEANING MATERIALS,15/01/2024,9474753974,9.32,AMZNMKTPLACE
OXFORDSHIRE CC,CHILDREN'S & EDUCATION,EYNSHAM,MATERIALS,15/01/2024,9474754124,13.57,AMZNMKTPLACE
OXFORDSHIRE CC,CUSTOMER AND CULTURE,OPERATIONS,MATERIALS,15/01/2024,9474754264,25.78,AMZNMKTPLACE
OXFORDSHIRE CC,CHILDREN'S & EDUCATION,EYNSHAM,CATERING,15/01/2024,9474753982,7.50,MAYFIELDEGGS
OXFORDSHIRE CC,CHILDREN'S & EDUCATION,"	OCCG GRANT",CATERING,15/01/2024,9474754192,43.95,CAPRINOS PIZZA
OXFORDSHIRE CC,CHILDREN'S & EDUCATION,40 THE MOORS,CATERING,15/01/2024,9474754098,60.00,TESCO STORES 3217
OXFORDSHIRE CC,RESOURCES,ICT OPERATIONS & MAI,IT SERVICES,15/01/2024,9474754524,20.26,"GITHUB, INC."
OXFORDSHIRE CC,CHILDREN'S & EDUCATION,DIDCOT MOVE-ON HOME,CATERING PROVISIONS,15/01/2024,9474754408,52.51,SAINSBURYS SMKT
OXFORDSHIRE CC,CHILDREN'S & EDUCATION,DIDCOT MOVE-ON HOME,CATERING PROVISIONS,15/01/2024,9474754406,25.89,SAINSBURYS SMKT
OXFORDSHIRE CC,CHILDREN'S & EDUCATION,FSP NON-STAFFING - CENTRAL,POSTAGE AND DELIVERY,15/01/2024,9474754352,7.35,POST OFFICE COUNTER
OXFORDSHIRE CC,CUSTOMER AND CULTURE,HARD FM,VEHICLES AND PLANT - REPAIRS AND MAIN,15/01/2024,9474754522,33.48,HALFORDS 0480
OXFORDSHIRE CC,CHILDREN'S & EDUCATION,HOUSE PROJECT,CATERING PROVISIONS,15/01/2024,9474754378,10.00,TESCO STORES 6880
OXFORDSHIRE CC,CHILDREN'S & EDUCATION,HOUSE PROJECT,MATERIALS,15/01/2024,9474754380,1.29,CARD FACTORY
OXFORDSHIRE CC,ADULTS,CSS BICESTER,MATERIALS,15/01/2024,9474753990,9.38,AMAZON.CO.UK XR0MN31O5
OXFORDSHIRE CC,CHILDREN'S & EDUCATION,EYNSHAM,ENTERTAINMENT EXPENSES,15/01/2024,9474754106,31.00,NINJA WARRIOR MILTON K
OXFORDSHIRE CC,CHILDREN'S & EDUCATION,40 THE MOORS,OTHER TRANSPORT ARRANGEMENTS,15/01/2024,9474754096,16.00,STGCOACH/CTYLINK
OXFORDSHIRE CC,CUSTOMER AND CULTURE,THAME LIBRARY,"NEWSPAPERS, PERIODICALS AND PUBLICATIONS",15/01/2024,9474754368,7.50,SAINSBURYS SUPERMA
OXFORDSHIRE CC,CHILDREN'S & EDUCATION,"	SEN/ICT EQUIPMENT",IT SERVICES,15/01/2024,9474754108,"1,407.74",GOTO TECHNOLOGIES UK L
OXFORDSHIRE CC,CHILDREN'S & EDUCATION,"	SEN/ICT EQUIPMENT",IT SERVICES,15/01/2024,9474754108,"1,887.00",GOTO TECHNOLOGIES UK L
OXFORDSHIRE CC,CHILDREN'S & EDUCATION,"	SEN/ICT EQUIPMENT",IT SERVICES,15/01/2024,9474754108,74.86,GOTO TECHNOLOGIES UK L
OXFORDSHIRE CC,RESOURCES,ICT OPERATIONS & MAI,PURCHASE OF IT EQUIPMENT,15/01/2024,9474754488,8.99,AMZNMKTPLACE
OXFORDSHIRE CC,RESOURCES,ICT OPERATIONS & MAI,PURCHASE OF IT EQUIPMENT,15/01/2024,9474754486,120.36,AMAZON.CO.UK 373L93OA5
OXFORDSHIRE CC,RESOURCES,ICT OPERATIONS & MAI,PURCHASE OF IT EQUIPMENT,15/01/2024,9474754478,120.36,AMAZON.CO.UK LL68A4FG5
OXFORDSHIRE CC,RESOURCES,ICT OPERATIONS & MAI,PURCHASE OF IT EQUIPMENT,15/01/2024,9474754484,120.36,AMAZON.CO.UK 3T4EE4MU5
OXFORDSHIRE CC,RESOURCES,ICT OPERATIONS & MAI,PURCHASE OF IT EQUIPMENT,15/01/2024,9474754476,308.00,AMAZON.CO.UK LH5TT0TL5
OXFORDSHIRE CC,RESOURCES,ICT OPERATIONS & MAI,PURCHASE OF IT EQUIPMENT,15/01/2024,9474754482,120.36,AMAZON.CO.UK 2X0U16CM5
OXFORDSHIRE CC,RESOURCES,ICT OPERATIONS & MAI,PURCHASE OF IT EQUIPMENT,15/01/2024,9474754492,224.00,AMAZON.CO.UK IN6NB19P5
OXFORDSHIRE CC,RESOURCES,ICT OPERATIONS & MAI,PURCHASE OF IT EQUIPMENT,15/01/2024,9474754490,940.50,AMZNMKTPLACE
OXFORDSHIRE CC,RESOURCES,ICT OPERATIONS & MAI,PURCHASE OF IT EQUIPMENT,15/01/2024,9474754480,106.20,AMAZON.CO.UK L57R07EM5
OXFORDSHIRE CC,ADULTS,CSS WALLINGFORD,CLEANING MATERIALS,15/01/2024,9474753970,9.32,AMZNMKTPLACE
OXFORDSHIRE CC,RESOURCES,ICT OPERATIONS & MAI,PURCHASE OF IT EQUIPMENT,15/01/2024,9474754474,120.36,AMAZON.CO.UK G88XY87V5
OXFORDSHIRE CC,ENVIRONMENT AND PLACE,MAINTENANCE STAFF,MATERIALS,15/01/2024,9474754266,13.95,AMZNMKTPLACE
OXFORDSHIRE CC,ADULTS,CSS - BANBURY,CATERING PROVISIONS,15/01/2024,9474754384,30.00,SAINSBURYS S/MKTS
OXFORDSHIRE CC,CHILDREN'S & EDUCATION,THAME E&A HOME,OTHER TRANSPORT ARRANGEMENTS,15/01/2024,9474754050,4.40,OXPENS CAR PARK
OXFORDSHIRE CC,CHILDREN'S & EDUCATION,THAME E&A HOME,OTHER TRANSPORT ARRANGEMENTS,15/01/2024,9474754500,4.40,OXPENS CAR PARK
OXFORDSHIRE CC,RESOURCES,ICT OPERATIONS & MAI,PURCHASE OF IT EQUIPMENT,15/01/2024,9474754460,299.40,AMAZON.CO.UK PO74T11I5
OXFORDSHIRE CC,RESOURCES,ICT OPERATIONS & MAI,PURCHASE OF IT EQUIPMENT,15/01/2024,9474754470,299.40,AMAZON.CO.UK F78NR6ZH5
OXFORDSHIRE CC,RESOURCES,ICT OPERATIONS & MAI,PURCHASE OF IT EQUIPMENT,15/01/2024,9474754458,299.40,AMAZON.CO.UK JJ11H8FZ5
OXFORDSHIRE CC,RESOURCES,ICT OPERATIONS & MAI,PURCHASE OF IT EQUIPMENT,15/01/2024,9474754472,99.80,AMAZON.CO.UK 4N75O8M35
OXFORDSHIRE CC,CHILDREN'S & EDUCATION,WITNEY,CATERING PROVISIONS,15/01/2024,9474754400,31.48,SAINSBURYS S/MKTS
OXFORDSHIRE CC,CHILDREN'S & EDUCATION,EYNSHAM,MATERIALS,15/01/2024,9474754122,21.99,AMZNMKTPLACE
OXFORDSHIRE CC,CHILDREN'S & EDUCATION,WITNEY,CATERING PROVISIONS,15/01/2024,9474754398,78.02,SAINSBURYS S/MKTS
OXFORDSHIRE CC,CHILDREN'S & EDUCATION,"	LEAVING CARE SOUTH",OTHER EXPENSES,15/01/2024,9474754356,314.00,CURRYS ONLINE
OXFORDSHIRE CC,CHILDREN'S & EDUCATION,40 THE MOORS,CATERING PROVISIONS,15/01/2024,9474754136,20.05,TESCO STORES 2788
OXFORDSHIRE CC,CHILDREN'S & EDUCATION,THAME E&A HOME,CATERING PROVISIONS,15/01/2024,9474754502,4.20,WELCOME B/WAITROSE OXF
OXFORDSHIRE CC,CHILDREN'S & EDUCATION,"	DISABILITIES TEAM-C",PAYMENTS TO TRANSPORT OPERATORS,15/01/2024,9474754032,211.10,TRAINLINE
OXFORDSHIRE CC,CHILDREN'S & EDUCATION,EYNSHAM,CATERING PROVISIONS,15/01/2024,9474754120,112.99,LAKELAND.LIMITED
OXFORDSHIRE CC,CHILDREN'S & EDUCATION,THAME E&A HOME,OTHER EXPENSES,15/01/2024,9474754048,51.50,FUSION LIFESTYLE
OXFORDSHIRE CC,CHILDREN'S & EDUCATION,"	MALTFIELD HOUSE",CLEANING MATERIALS,15/01/2024,9474754374,150.00,SAINSBURYS S/MKTS
OXFORDSHIRE CC,CHILDREN'S & EDUCATION,FAMILY SOLUTIONS PLUS NON-STAFF � SOUTH,POSTAGE AND DELIVERY,15/01/2024,9474754448,7.35,POST OFFICE COUNTER
OXFORDSHIRE CC,ADULTS,INCOME TEAM,PAYMENT TO GOVERNMENT DEPARTMENTS,15/01/2024,9474754084,44.00,OXFORDSHIRE CC WEB1
OXFORDSHIRE CC,CHILDREN'S & EDUCATION,KINGFISHER,CATERING PROVISIONS,15/01/2024,9474754550,100.00,TESCO GIFT CARD
OXFORDSHIRE CC,CHILDREN'S & EDUCATION,OXFORDSHIRE,CATERING PROVISIONS,15/01/2024,9474754278,10.30,TESCO STORES 4377
OXFORDSHIRE CC,ADULTS,CSS - OXFORD,EDUCATIONAL AND VOCATIONAL TRAINING ,15/01/2024,9474754060,80.00,ZETTLE_ DELTAVIOLIN
OXFORDSHIRE CC,CUSTOMER AND CULTURE,TREE MAINT OPS,EQUIPMENT,15/01/2024,9474754498,76.20,RAPID RACKING
OXFORDSHIRE CC,CUSTOMER AND CULTURE,TREE MAINT OPS,EQUIPMENT,15/01/2024,9474754496,114.58,WWW.SCREWFIX.COM
OXFORDSHIRE CC,CHILDREN'S & EDUCATION,"	DISABILITIES TEAM-N",PAYMENTS TO TRANSPORT OPERATORS,15/01/2024,9474754014,21.50,NATIONAL EXPRESS LIMIT
OXFORDSHIRE CC,ADULTS,INCOME TEAM,PAYMENT TO GOVERNMENT DEPARTMENTS,15/01/2024,9474754088,1.50,FIND A WILL
OXFORDSHIRE CC,ADULTS,INCOME TEAM,PAYMENT TO GOVERNMENT DEPARTMENTS,15/01/2024,9474754086,1.50,FIND A WILL
OXFORDSHIRE CC,CHILDREN'S & EDUCATION,HOUSE PROJECT,OTHER TRANSPORT ARRANGEMENTS,15/01/2024,9474754376,5.80,WESTGATE OXFORD CAR PA
OXFORDSHIRE CC,CHILDREN'S & EDUCATION,HOUSE PROJECT,OTHER TRANSPORT ARRANGEMENTS,15/01/2024,9474754514,5.80,WESTGATE OXFORD CAR PA
OXFORDSHIRE CC,CHILDREN'S & EDUCATION,"	OCCG GRANT",CATERING PROVISIONS,15/01/2024,9474754450,14.50,TESCO STORES 2064
OXFORDSHIRE CC,CHILDREN'S & EDUCATION,FAMILY SOLUTIONS PLUS NON-STAFF � SOUTH,CATERING PROVISIONS,15/01/2024,9474754412,67.20,TESCO GIFT CARD
OXFORDSHIRE CC,CUSTOMER AND CULTURE,BUSINESS INTELLECTUAL PROPERTY CENTRE,MATERIALS,15/01/2024,9474754258,44.47,AMZNMKTPLACE
OXFORDSHIRE CC,CHILDREN'S & EDUCATION,"	LEAVING CARE NORTH",PAYMENTS TO TRANSPORT OPERATORS,15/01/2024,9474754382,24.14,TRAINLINE
OXFORDSHIRE CC,CUSTOMER AND CULTURE,HARD FM,PREMISES REPAIRS,15/01/2024,9474754226,114.25,WICKES OXFORD
OXFORDSHIRE CC,ADULTS,CSS WANTAGE,MATERIALS,15/01/2024,9474753962,11.99,AMZNMKTPLACE
OXFORDSHIRE CC,PUBLIC HEALTH,PUBLIC HEALTH GENERAL,TRAINING RELATED EXPENDITURE,15/01/2024,9474754354,45.62,EB  BEHIND CLOSED DOOR
OXFORDSHIRE CC,CHILDREN'S & EDUCATION,THAME E&A HOME,DRUGS AND MEDICAL SUPPLIES,15/01/2024,9474754190,31.50,"BOOTS,THAME"
OXFORDSHIRE CC,CHILDREN'S & EDUCATION,EYNSHAM,CATERING PROVISIONS,15/01/2024,9474754436,30.00,SAINSBURYS S/MKTS
OXFORDSHIRE CC,CHILDREN'S & EDUCATION,40 THE MOORS,CATERING PROVISIONS,15/01/2024,9474754138,21.83,SELECT CONVENIENCE & O
OXFORDSHIRE CC,CHILDREN'S & EDUCATION,EYNSHAM,MATERIALS,15/01/2024,9474754434,24.35,POUNDLAND LTD - 1586
OXFORDSHIRE CC,CHILDREN'S & EDUCATION,EYNSHAM,MATERIALS,15/01/2024,9474754432,35.00,J D SPORTS
OXFORDSHIRE CC,CHILDREN'S & EDUCATION,"	OCCG GRANT",OTHER EXPENSES,15/01/2024,9474754114,28.00,ASDA STORE 4442
OXFORDSHIRE CC,ADULTS,CSS WALLINGFORD,CATERING PROVISIONS,15/01/2024,9474753966,6.50,WAITROSE 675
OXFORDSHIRE CC,CHILDREN'S & EDUCATION,THAME E&A HOME,DOMESTIC SUPPLIES,15/01/2024,9474754228,3.75,CLINTONS-155
OXFORDSHIRE CC,ADULTS,CSS - OXFORD,CATERING PROVISIONS,15/01/2024,9474754062,5.94,ALDI STORES 775-142
OXFORDSHIRE CC,CHILDREN'S & EDUCATION,EYNSHAM,BIRTHDAY ALLOWANCE,15/01/2024,9474754424,83.92,TEAM SPORT KARTING
OXFORDSHIRE CC,CHILDREN'S & EDUCATION,40 THE MOORS,OTHER TRANSPORT ARRANGEMENTS,15/01/2024,9474754426,4.50,STGCOACH/CTYLINK
OXFORDSHIRE CC,CHILDREN'S & EDUCATION,HOUSE PROJECT,CATERING PROVISIONS,15/01/2024,9474754516,13.45,SAINSBURYS S/MKTS
OXFORDSHIRE CC,ADULTS,CSS BICESTER,MATERIALS,15/01/2024,9474753988,2.99,AMZNMKTPLACE
OXFORDSHIRE CC,CHILDREN'S & EDUCATION,DIDCOT MOVE-ON HOME,CATERING PROVISIONS,15/01/2024,9474754172,9.32,SAINSBURYS S/MKTS
OXFORDSHIRE CC,ADULTS,CSS WANTAGE,ENTERTAINMENT EXPENSES,15/01/2024,9474754308,11.90,WWW.BETTER.ORG.UK
OXFORDSHIRE CC,ADULTS,CSS WANTAGE,ENTERTAINMENT EXPENSES,15/01/2024,9474754306,9.90,WWW.BETTER.ORG.UK
OXFORDSHIRE CC,CHILDREN'S & EDUCATION,PAUSE PROGRAMME,ENTERTAINMENT EXPENSES,15/01/2024,9474754572,19.40,CURZON OXFORD
OXFORDSHIRE CC,CHILDREN'S & EDUCATION,"	SENSS TRAINING",EDUCATIONAL AND VOCATIONAL TRAINING ,15/01/2024,9474754546,165.00,WP SIGNTOGETHERUK.COM
OXFORDSHIRE CC,CHILDREN'S & EDUCATION,"	DISABILITIES TEAM-C",HIRE OF ACCOMMODATION AND FACILITIES,15/01/2024,9474754030,88.72,TRAVELODGE
OXFORDSHIRE CC,CHILDREN'S & EDUCATION,"	LEAVING CARE SOUTH",CATERING,15/01/2024,9474754212,14.38,MCDONALDS983
OXFORDSHIRE CC,CHILDREN'S & EDUCATION,FSP NON-STAFFING - CENTRAL,CLOTHING AND UNIFORMS,15/01/2024,9474754422,84.99,SPORTSDIRECT.COM
OXFORDSHIRE CC,ENVIRONMENT AND PLACE,WASTE REDUCTION GEN,"PUBLICITY, PROMOTIONS AND ADVERTISEMENT",15/01/2024,9474754054,115.00,FACEBK 5ADJUVTB32
OXFORDSHIRE CC,RESOURCES,ICT OPERATIONS & MAI,PROFESSIONAL SUBSCRIPTIONS,15/01/2024,9474754452,226.79,INTERNATIONALWOMENSDAY
OXFORDSHIRE CC,ADULTS,CSS WALLINGFORD,CATERING PROVISIONS,15/01/2024,9474753964,9.85,WAITROSE 675
OXFORDSHIRE CC,CUSTOMER AND CULTURE,"MARKETING, COMMUNICATIONS & ENGAGEMENT",SUBSCRIPTIONS,15/01/2024,9474754328,690.40,MAILCHIMP
OXFORDSHIRE CC,ADULTS,CSS WALLINGFORD,"SUPPLIES, STATIONERY AND MATERIALS",15/01/2024,9474753968,14.65,KP STATIONERS
OXFORDSHIRE CC,CHILDREN'S & EDUCATION,CNTL EARLY HELP-RHIL,MATERIALS,15/01/2024,9474754446,148.95,WWW.ARGOS.CO.UK
OXFORDSHIRE CC,ADULTS,THAME E&A HOME,DOMESTIC AND CLEANING EQUIPMENT,15/01/2024,9474754298,"2,318.40",MIELE.CO.UK
OXFORDSHIRE CC,CHILDREN'S & EDUCATION,PAUSE PROGRAMME,CATERING,15/01/2024,9474754230,8.65,STARBUCKS BURFORD
OXFORDSHIRE CC,CHILDREN'S & EDUCATION,PAUSE PROGRAMME,OTHER TRANSPORT ARRANGEMENTS,15/01/2024,9474754576,5.20,RINGGO PARKING
OXFORDSHIRE CC,ADULTS,CSS - OXFORD,CATERING PROVISIONS,15/01/2024,9474754064,103.75,ALDI STORES 775-142
OXFORDSHIRE CC,CHILDREN'S & EDUCATION,PAUSE PROGRAMME,ENTERTAINMENT EXPENSES,15/01/2024,9474754574,22.00,CURZON OXFORD
OXFORDSHIRE CC,CHILDREN'S & EDUCATION,"	SEN/ICT EQUIPMENT",PURCHASE OF IT EQUIPMENT,15/01/2024,9474754548,299.00,AMAZON.CO.UK 9W92C0GR5
OXFORDSHIRE CC,ADULTS,CSS WITNEY,CATERING PROVISIONS,15/01/2024,9474754250,3.30,CO-OP GROUP 070582
OXFORDSHIRE CC,CUSTOMER AND CULTURE,SCHOOLS FM CATERING AREA 4,CATERING PROVISIONS,15/01/2024,9474754204,7.60,CO-OPERATIVE FOOD
OXFORDSHIRE CC,CHILDREN'S & EDUCATION,KINGFISHER,EDUCATIONAL AND VOCATIONAL TRAINING ,15/01/2024,9474754552,71.00,AA DRIVING SCHOOL
OXFORDSHIRE CC,CUSTOMER AND CULTURE,THAME LIBRARY,"NEWSPAPERS, PERIODICALS AND PUBLICATIONS",15/01/2024,9474754366,5.80,SAINSBURYS S/MKTS
OXFORDSHIRE CC,CHILDREN'S & EDUCATION,REQUIRES IMP (MAINT),EDUCATIONAL AND VOCATIONAL TRAINING ,15/01/2024,9474754134,40.00,NSPCC
OXFORDSHIRE CC,RESOURCES,ICT OPERATIONS & MAI,PURCHASE OF IT EQUIPMENT,15/01/2024,9474754468,305.66,AMZNMKTPLACE
OXFORDSHIRE CC,CHILDREN'S & EDUCATION,THAME E&A HOME,CATERING PROVISIONS,15/01/2024,9474754052,228.28,TESCO STORES 2038
OXFORDSHIRE CC,CUSTOMER AND CULTURE,BOTLEY LIBRARY,CATERING PROVISIONS,15/01/2024,9474754004,6.65,TESCO STORES 4780
OXFORDSHIRE CC,CUSTOMER AND CULTURE,BOTLEY LIBRARY,"NEWSPAPERS, PERIODICALS AND PUBLICATIONS",15/01/2024,9474754002,7.20,MARTIN MCCOLL
OXFORDSHIRE CC,CHILDREN'S & EDUCATION,CHILDREN IN CARE NON-STAFFING - NORTH,HIRE OF ACCOMMODATION AND FACILITIES,15/01/2024,9474754000,91.20,ROYAL SHIP
OXFORDSHIRE CC,RESOURCES,ICT OPERATIONS & MAI,PURCHASE OF IT EQUIPMENT,15/01/2024,9474754466,305.66,AMZNMKTPLACE
OXFORDSHIRE CC,RESOURCES,ICT OPERATIONS & MAI,PURCHASE OF IT EQUIPMENT,15/01/2024,9474754462,280.00,AMAZON.CO.UK PT03O84H5
OXFORDSHIRE CC,RESOURCES,ICT OPERATIONS & MAI,PURCHASE OF IT EQUIPMENT,15/01/2024,9474754464,449.50,AMZNMKTPLACE
OXFORDSHIRE CC,CHILDREN'S & EDUCATION,EYNSHAM,CATERING PROVISIONS,15/01/2024,9474753980,129.37,TESCO STORES 2008
OXFORDSHIRE CC,RESOURCES,ICT OPERATIONS & MAI,PURCHASE OF IT EQUIPMENT,15/01/2024,9474754456,588.00,AMAZON.CO.UK DV0VR4D55
OXFORDSHIRE CC,CHILDREN'S & EDUCATION,EYNSHAM,MATERIALS,15/01/2024,9474754118,3.99,AMZNMKTPLACE
OXFORDSHIRE CC,RESOURCES,ICT OPERATIONS & MAI,PURCHASE OF IT EQUIPMENT,15/01/2024,9474754454,8.99,AMZNMKTPLACE
OXFORDSHIRE CC,CHILDREN'S & EDUCATION,"	LOOKED AFTER CITY 2",OTHER TRANSPORT ARRANGEMENTS,15/01/2024,9474754240,2.00,OXFORD BUS COMPANY
OXFORDSHIRE CC,CHILDREN'S & EDUCATION,"	LOOKED AFTER CITY 2",OTHER TRANSPORT ARRANGEMENTS,15/01/2024,9474754242,2.00,OXFORD BUS COMPANY
OXFORDSHIRE CC,ADULTS,CSS WITNEY,CATERING PROVISIONS,15/01/2024,9474754252,1.00,NYA MOTOR FUEL LIMITED
OXFORDSHIRE CC,CHILDREN'S & EDUCATION,"	ALTERNATIVES TO CARE",MATERIALS,15/01/2024,9474754282,52.19,AMZNMKTPLACE
OXFORDSHIRE CC,CHILDREN'S & EDUCATION,"	RIVERSIDE CENTRE",CATERING,15/01/2024,9474754280,.90,BP MILTON HEIGHTS S/SE
OXFORDSHIRE CC,CHILDREN'S & EDUCATION,FSP NON-STAFFING - CENTRAL,FURNITURE,15/01/2024,9474754350,278.00,NORDINA HOME
OXFORDSHIRE CC,CUSTOMER AND CULTURE,CENTRAL LIBRARY,EQUIPMENT,15/01/2024,9474754348,-12.99,AMAZON.CO.UK
OXFORDSHIRE CC,CHILDREN'S & EDUCATION,"	LOOKED AFTER NORTH",CATERING,15/01/2024,9474754390,10.88,MCDONALDS
OXFORDSHIRE CC,CUSTOMER AND CULTURE,SCHOOLS FM CATERING AREA 4,MATERIALS,15/01/2024,9474754210,11.94,AMZNMKTPLACE
OXFORDSHIRE CC,CUSTOMER AND CULTURE,SCHOOLS FM CATERING AREA 4,MATERIALS,15/01/2024,9474754208,44.98,AMZNMKTPLACE
OXFORDSHIRE CC,CHILDREN'S & EDUCATION,"	OCCG GRANT",CATERING,15/01/2024,9474754566,10.30,STARBUCKS BICESTER
OXFORDSHIRE CC,CUSTOMER AND CULTURE,SCHOOLS FM CATERING AREA 4,MATERIALS,15/01/2024,9474754206,13.98,AMZNMKTPLACE
OXFORDSHIRE CC,CHILDREN'S & EDUCATION,OTFC TEAM,CATERING,15/01/2024,9474754404,12.27,MCDONALDS
OXFORDSHIRE CC,CHILDREN'S & EDUCATION,OTFC TEAM,OTHER TRANSPORT ARRANGEMENTS,15/01/2024,9474754402,1.90,CAR PARK CHARGES
OXFORDSHIRE CC,ADULTS,CSS BICESTER,MATERIALS,15/01/2024,9474754022,39.98,AMZNMKTPLACE
OXFORDSHIRE CC,CHILDREN'S & EDUCATION,FAMILY SOLUTIONS PLUS NON-STAFF � SOUTH,OTHER TRANSPORT ARRANGEMENTS,15/01/2024,9474754560,89.00,STAGECOACH SERVICES
OXFORDSHIRE CC,ADULTS,CSS - OXFORD,CATERING PROVISIONS,15/01/2024,9474754058,5.94,ALDI STORES 775-142
OXFORDSHIRE CC,ADULTS,CSS - OXFORD,CATERING PROVISIONS,15/01/2024,9474754056,7.28,ALDI STORES 775-142
OXFORDSHIRE CC,ADULTS,CSS WALLINGFORD,LICENCES,15/01/2024,9474753984,159.00,TVLICENSING.CO.UK
OXFORDSHIRE CC,CHILDREN'S & EDUCATION,CHILDREN IN CARE NON-STAFFING - CENTRL 1,HIRE OF ACCOMMODATION AND FACILITIES,15/01/2024,9474754016,81.99,PREMIER INN
OXFORDSHIRE CC,RESOURCES,OTHER,INSUR AD HOLD ACC-E,15/01/2024,9474754360,120.00,LOQATE
OXFORDSHIRE CC,CHILDREN'S & EDUCATION,"	LOOKED AFTER CITY 2",PAYMENTS TO TRANSPORT OPERATORS,15/01/2024,9474754244,-28.80,TRAINLINE
OXFORDSHIRE CC,ENVIRONMENT AND PLACE,MAINTENANCE STAFF,MATERIALS,12/01/2024,9467101430,28.94,AMZNMKTPLACE
OXFORDSHIRE CC,CUSTOMER AND CULTURE,SCHOOLS FM CATERING AREA 1,MATERIALS,12/01/2024,9467102224,69.95,AMZNMKTPLACE
OXFORDSHIRE CC,ADULTS,CSS WITNEY,CATERING PROVISIONS,12/01/2024,9467101708,35.70,MILK AND MORE (RECUR
OXFORDSHIRE CC,CUSTOMER AND CULTURE,SAMUELSON HOUSE,CATERING PROVISIONS,12/01/2024,9467100722,53.55,MILK AND MORE (RECUR
OXFORDSHIRE CC,CUSTOMER AND CULTURE,HOLTON SITE,CATERING PROVISIONS,12/01/2024,9467100454,17.50,MILK AND MORE (RECUR
OXFORDSHIRE CC,ENVIRONMENT AND PLACE,FLEET OPERATIONS,CATERING PROVISIONS,12/01/2024,9467100746,20.00,MILK AND MORE (RECUR
OXFORDSHIRE CC,CUSTOMER AND CULTURE,MUSEUMS COLLECTIONS,CATERING PROVISIONS,12/01/2024,9467101518,4.62,MILK AND MORE (RECUR
OXFORDSHIRE CC,CHILDREN'S & EDUCATION,"	LOOKED AFTER CITY 2",PAYMENTS TO TRANSPORT OPERATORS,12/01/2024,9467101188,32.65,TRAINLINE
OXFORDSHIRE CC,CHILDREN'S & EDUCATION,FSP NON-STAFFING - CENTRAL,OTHER TRANSPORT ARRANGEMENTS,12/01/2024,9467102572,35.00,SUMUP   SUPREME TAXIS
OXFORDSHIRE CC,CHILDREN'S & EDUCATION,"	LOOKED AFTER NORTH",VEHICLE FUEL,12/01/2024,9467102136,43.96,TESCO PAY AT PUMP 3954
OXFORDSHIRE CC,ENVIRONMENT AND PLACE,MAINTENANCE STAFF,MATERIALS,12/01/2024,9467101420,15.99,AMZNMKTPLACE
OXFORDSHIRE CC,CHILDREN'S & EDUCATION,DIDCOT MOVE-ON HOME,CATERING PROVISIONS,12/01/2024,9467102242,5.30,SAINSBURYS S/MKTS
OXFORDSHIRE CC,CHILDREN'S & EDUCATION,"	LEAVING CARE CITY 2",PAYMENT TO GOVERNMENT DEPARTMENTS,12/01/2024,9467102546,13.00,LONDON BOR'OF HILL
OXFORDSHIRE CC,CHILDREN'S & EDUCATION,40 THE MOORS,CATERING PROVISIONS,12/01/2024,9467102450,20.30,SAINSBURYS S/MKTS
OXFORDSHIRE CC,CHILDREN'S & EDUCATION,THAME E&A HOME,DOMESTIC SUPPLIES,12/01/2024,9467101086,11.90,ABBEY SPORTS CENTRE
OXFORDSHIRE CC,CHILDREN'S & EDUCATION,"	LOOKED AFTER CITY 2",PAYMENT TO GOVERNMENT DEPARTMENTS,12/01/2024,9467101196,58.50,HM PASSPORT OFFICE
OXFORDSHIRE CC,CHILDREN'S & EDUCATION,FSP NON-STAFFING - CENTRAL,OTHER TRANSPORT ARRANGEMENTS,12/01/2024,9467102562,36.50,WWW.DIGIDR  TAXIWWWDIG
OXFORDSHIRE CC,CHILDREN'S & EDUCATION,WITNEY,CATERING PROVISIONS,12/01/2024,9467102190,11.59,LIDL GB WITNEY
OXFORDSHIRE CC,PUBLIC HEALTH,CHILDREN IN CARE NON-STAFFING - SOUTH,OTHER EXPENSES,12/01/2024,9467100226,100.00,ASDA STORES LTD
OXFORDSHIRE CC,CHILDREN'S & EDUCATION,EYNSHAM,MATERIALS,12/01/2024,9467102288,229.99,VAX LIMITED
OXFORDSHIRE CC,CHILDREN'S & EDUCATION,UASC 16&17,MATERIALS,12/01/2024,9467100372,299.00,CYCLE KING
OXFORDSHIRE CC,CHILDREN'S & EDUCATION,UASC 16&17,MATERIALS,12/01/2024,9467100364,300.00,CYCLE KING
OXFORDSHIRE CC,ADULTS,CSS WITNEY,CATERING PROVISIONS,12/01/2024,9467102524,4.59,LIDL GB WITNEY
OXFORDSHIRE CC,ADULTS,CSS WITNEY,CATERING PROVISIONS,12/01/2024,9467102530,10.18,LIDL GB WITNEY
OXFORDSHIRE CC,ADULTS,PAUSE PROGRAMME,"SUPPLIES, STATIONERY AND MATERIALS",12/01/2024,9467100698,10.00,UNICARD LTD-BUS PASS
OXFORDSHIRE CC,CUSTOMER AND CULTURE,BUSINESS INTELLECTUAL PROPERTY CENTRE,PAYMENTS TO TRANSPORT OPERATORS,12/01/2024,9467101278,37.09,TRAINLINE
OXFORDSHIRE CC,ADULTS,CSS WALLINGFORD,CATERING PROVISIONS,12/01/2024,9467100176,11.13,WAITROSE 675
OXFORDSHIRE CC,ADULTS,CSS WALLINGFORD,CATERING PROVISIONS,12/01/2024,9467100176,11.12,WAITROSE 675
OXFORDSHIRE CC,CHILDREN'S & EDUCATION,UASC POST 18,PAYMENT TO GOVERNMENT DEPARTMENTS,12/01/2024,9467101926,82.00,2MAA042464584 TD E-PMT
OXFORDSHIRE CC,CUSTOMER AND CULTURE,SCHOOLS FM CATERING AREA 4,MATERIALS,12/01/2024,9467101008,27.96,AMZNMKTPLACE
OXFORDSHIRE CC,CHILDREN'S & EDUCATION,FSP NON-STAFFING - CENTRAL,OTHER TRANSPORT ARRANGEMENTS,12/01/2024,9467102396,85.50,OXFORD BUS TICKETS
OXFORDSHIRE CC,CHILDREN'S & EDUCATION,FAMILY SOLUTIONS PLUS NON-STAFF � SOUTH,PAYMENTS TO TRANSPORT OPERATORS,12/01/2024,9467101074,83.75,TRAINLINE
OXFORDSHIRE CC,CHILDREN'S & EDUCATION,"	LOOKED AFTER NORTH",OTHER TRANSPORT ARRANGEMENTS,12/01/2024,9467102130,8.90,M6 TOLL
OXFORDSHIRE CC,ADULTS,CSS - BANBURY,VEHICLE FUEL,12/01/2024,9467102464,40.00,SAINSBURYS PETROL
OXFORDSHIRE CC,CUSTOMER AND CULTURE,BICESTER LIBRARY,MATERIALS,12/01/2024,9467100978,168.80,BICESTER LOCAL
OXFORDSHIRE CC,ADULTS,CSS WANTAGE,ENTERTAINMENT EXPENSES,12/01/2024,9467101734,18.25,HOLLYWOOD BOWL
OXFORDSHIRE CC,ADULTS,CSS WANTAGE,ENTERTAINMENT EXPENSES,12/01/2024,9467101728,10.95,HOLLYWOOD BOWL
OXFORDSHIRE CC,CHILDREN'S & EDUCATION,VIRTUAL SCHOOL POST 16 PPP,PURCHASE OF IT EQUIPMENT,12/01/2024,9467101058,231.00,CURRYS BUSINESS
OXFORDSHIRE CC,CHILDREN'S & EDUCATION,EYNSHAM,OTHER TRANSPORT ARRANGEMENTS,12/01/2024,9467102310,24.50,STGCOACH/CTYLINK
OXFORDSHIRE CC,CHILDREN'S & EDUCATION,PAUSE PROGRAMME,CATERING,12/01/2024,9467101096,8.10,COSTA COFFEE 43010890
OXFORDSHIRE CC,CHILDREN'S & EDUCATION,VIRTUAL SCHOOL POST 16 PPP,PURCHASE OF IT EQUIPMENT,12/01/2024,9467101052,"2,310.00",CURRYS BUSINESS
OXFORDSHIRE CC,CHILDREN'S & EDUCATION,UASC 16&17,DRUGS AND MEDICAL SUPPLIES,12/01/2024,9467100320,24.59,"BOOTS,OXFORD"
OXFORDSHIRE CC,CHILDREN'S & EDUCATION,OTFC TEAM,CATERING,12/01/2024,9467102198,8.00,BOBA BROS
OXFORDSHIRE CC,CHILDREN'S & EDUCATION,40 THE MOORS,DRUGS AND MEDICAL SUPPLIES,12/01/2024,9467100680,5.50,BOOTS 0330
OXFORDSHIRE CC,CHILDREN'S & EDUCATION,40 THE MOORS,MATERIALS,12/01/2024,9467100674,11.99,ROBERT DYAS 136
OXFORDSHIRE CC,CUSTOMER AND CULTURE,HARD FM,PREMISES REPAIRS,12/01/2024,9467100344,64.38,BLINDS 2 GO LTD
OXFORDSHIRE CC,CHILDREN'S & EDUCATION,"DIDCOT CC, PARK ROAD",CATERING PROVISIONS,12/01/2024,9467101064,6.70,SAINSBURYS S/MKTS
OXFORDSHIRE CC,CHILDREN'S & EDUCATION,"	EDM",PURCHASE OF IT EQUIPMENT,12/01/2024,9467102594,229.51,AMZNMKTPLACE
OXFORDSHIRE CC,CHILDREN'S & EDUCATION,UASC POST 18,OTHER TRANSPORT ARRANGEMENTS,12/01/2024,9467101918,58.00,OXFORDBUS.CO.UK
OXFORDSHIRE CC,ADULTS,CSS WANTAGE,MATERIALS,12/01/2024,9467100158,44.60,AMZNMKTPLACE
OXFORDSHIRE CC,CHILDREN'S & EDUCATION,CHILDREN IN CARE NON-STAFFING - SOUTH,VEHICLE FUEL,12/01/2024,9467102178,21.01,ASDA PETROL-UPT 4203
OXFORDSHIRE CC,CUSTOMER AND CULTURE,HARD FM,PREMISES REPAIRS,12/01/2024,9467100824,49.80,2 COUSINS POWERED ACCE
OXFORDSHIRE CC,ADULTS,CSS WANTAGE,MATERIALS,12/01/2024,9467100168,39.18,AMZNMKTPLACE
OXFORDSHIRE CC,ADULTS,CSS - BANBURY,MATERIALS,12/01/2024,9467102116,140.99,ONE4ALL
OXFORDSHIRE CC,CHILDREN'S & EDUCATION,THAME E&A HOME,CATERING PROVISIONS,12/01/2024,9467100412,18.99,SAINSBURY S S/MKTS
OXFORDSHIRE CC,CHILDREN'S & EDUCATION,"	LOOKED AFTER CITY 2",MATERIALS,12/01/2024,9467101672,5.99,AMZNMKTPLACE
OXFORDSHIRE CC,ADULTS,CSS - OXFORD,DAY ACTIVITIES,12/01/2024,9467100330,5.95,WWW.BETTER.ORG.UK
OXFORDSHIRE CC,CHILDREN'S & EDUCATION,"	LOOKED AFTER NORTH",OTHER TRANSPORT ARRANGEMENTS,12/01/2024,9467102124,8.90,M6 TOLL
OXFORDSHIRE CC,CHILDREN'S & EDUCATION,VIRTUAL SCHOOL POST 16 PPP,EDUCATIONAL AND VOCATIONAL TRAINING ,12/01/2024,9467101044,375.00,ACTIVATE LEARNING -CC
OXFORDSHIRE CC,ADULTS,CSS WANTAGE,MATERIALS,12/01/2024,9467102606,13.96,REEDS DECORATING CENTR
OXFORDSHIRE CC,CHILDREN'S & EDUCATION,UASC 16&17,DRUGS AND MEDICAL SUPPLIES,12/01/2024,9467100376,5.25,SUPERDRUG STORES PLC
OXFORDSHIRE CC,RESOURCES,EYNSHAM,EQUIPMENT,12/01/2024,9467102684,6.50,EVENLODE DIY
OXFORDSHIRE CC,CUSTOMER AND CULTURE,THAME LIBRARY,GENERAL MAINTENANCE,12/01/2024,9467102048,22.94,AMZNMKTPLACE
OXFORDSHIRE CC,CHILDREN'S & EDUCATION,NTS UASC AGENCY,MATERIALS,12/01/2024,9467102440,16.47,AMZNMKTPLACE
OXFORDSHIRE CC,ADULTS,CSS WANTAGE,MATERIALS,12/01/2024,9467101740,7.99,AMZNMKTPLACE
OXFORDSHIRE CC,CHILDREN'S & EDUCATION,PAUSE PROGRAMME,CATERING PROVISIONS,12/01/2024,9467101102,10.05,RUMSEYS HANDMADE CHOCO
OXFORDSHIRE CC,ADULTS,CSS - ABINGDON,CATERING PROVISIONS,12/01/2024,9467100238,2.95,TESCO STORES 6519
OXFORDSHIRE CC,ADULTS,CSS WITNEY,CATERING PROVISIONS,12/01/2024,9467102508,7.80,CO-OP GROUP 070582
OXFORDSHIRE CC,CUSTOMER AND CULTURE,HARD FM,PREMISES REPAIRS,12/01/2024,9467100338,90.00,CARTERTON COBBLERS
OXFORDSHIRE CC,ADULTS,CSS WITNEY,MATERIALS,12/01/2024,9467102518,5.50,POUNDLAND LTD - 1912
OXFORDSHIRE CC,CHILDREN'S & EDUCATION,KINGFISHER,MATERIALS,12/01/2024,9467102620,100.00,VOUCHER EXPRESS
OXFORDSHIRE CC,CHILDREN'S & EDUCATION,FAMILY SOLUTIONS PLUS NON-STAFF � SOUTH,CATERING PROVISIONS,12/01/2024,9467101604,11.90,TESCO STORES 4377
OXFORDSHIRE CC,CUSTOMER AND CULTURE,SCHOOLS FM CATERING AREA 4,CATERING PROVISIONS,12/01/2024,9467101016,27.54,SAINSBURYS S/MKTS
OXFORDSHIRE CC,CHILDREN'S & EDUCATION,REACTIVE MAINTENANCE,PREMISES REPAIRS,12/01/2024,9467102472,65.94,HOWDENS - OXFORD D879
OXFORDSHIRE CC,CUSTOMER AND CULTURE,SCHOOLS FM CATERING AREA 1,CATERING PROVISIONS,12/01/2024,9467102216,4.20,TESCO STORES
OXFORDSHIRE CC,CUSTOMER AND CULTURE,THAME LIBRARY,"NEWSPAPERS, PERIODICALS AND PUBLICATIONS",12/01/2024,9467102054,5.80,SAINSBURYS S/MKTS
OXFORDSHIRE CC,CORPORATE CORE,,STATIONERY,12/01/2024,9467102076,8.30,LYRECO UK LTD
OXFORDSHIRE CC,CORPORATE CORE,,STATIONERY,12/01/2024,9467102092,4.97,LYRECO UK LTD
OXFORDSHIRE CC,CORPORATE CORE,,STATIONERY,12/01/2024,9467102106,7.03,LYRECO UK LTD
OXFORDSHIRE CC,CORPORATE CORE,,STATIONERY,12/01/2024,9467102084,38.03,LYRECO UK LTD
OXFORDSHIRE CC,ENVIRONMENT AND PLACE,NAT TRAILS GENERAL,CATERING PROVISIONS,12/01/2024,9467101216,3.50,CO OPERATIVE FOOD
OXFORDSHIRE CC,CHILDREN'S & EDUCATION,FSP NON-STAFFING - CENTRAL,PAYMENTS TO TRANSPORT OPERATORS,12/01/2024,9467102402,-41.40,WWW.GWR.COM
OXFORDSHIRE CC,CHILDREN'S & EDUCATION,"	LOOKED AFTER CITY 2",OTHER TRANSPORT ARRANGEMENTS,12/01/2024,9467101202,2.00,OXFORD BUS COMPANY
OXFORDSHIRE CC,ADULTS,CSS WITNEY,CATERING PROVISIONS,12/01/2024,9467101250,1.00,NYA SHELL
OXFORDSHIRE CC,CUSTOMER AND CULTURE,SCHOOLS FM CATERING AREA 2,MATERIALS,12/01/2024,9467100472,66.97,AMZNMKTPLACE
OXFORDSHIRE CC,CHILDREN'S & EDUCATION,THAME E&A HOME,CATERING PROVISIONS,12/01/2024,9467100354,5.70,THAME BP SF CONNECT
OXFORDSHIRE CC,CHILDREN'S & EDUCATION,THAME E&A HOME,CATERING,12/01/2024,9467100920,12.70,MCDONALDS
OXFORDSHIRE CC,RESOURCES,GREENLOG,HIRE OF ACCOMMODATION AND FACILITIES,12/01/2024,9467100464,123.30,NOVOTEL HOTELS
OXFORDSHIRE CC,ADULTS,CSS WALLINGFORD,MATERIALS,12/01/2024,9467100254,16.99,AMZNMKTPLACE
OXFORDSHIRE CC,ADULTS,CSS - OXFORD,CATERING PROVISIONS,12/01/2024,9467100604,12.57,ALDI STORES 775-142
OXFORDSHIRE CC,ADULTS,CSS - OXFORD,CATERING PROVISIONS,12/01/2024,9467100596,68.51,ALDI STORES 775-142
OXFORDSHIRE CC,CHILDREN'S & EDUCATION,40 THE MOORS,MATERIALS,11/01/2024,9461234584,19.99,AMZNMKTPLACE
OXFORDSHIRE CC,CHILDREN'S & EDUCATION,NTS UASC AGENCY,MATERIALS,11/01/2024,9461234488,25.98,AMAZON.CO.UK DB3CH2P05
OXFORDSHIRE CC,ADULTS,CSS WITNEY,MATERIALS,11/01/2024,9461231946,4.89,AMZNMKTPLACE
OXFORDSHIRE CC,CHILDREN'S & EDUCATION,THAME E&A HOME,MATERIALS,11/01/2024,9461232594,7.99,TESCO SUBSCRIPTION
OXFORDSHIRE CC,CHILDREN'S & EDUCATION,EYNSHAM,VEHICLE FUEL,11/01/2024,9461233250,4.20,TESCO PFS 2488
OXFORDSHIRE CC,CUSTOMER AND CULTURE,HEADINGTON LIBRARY,MATERIALS,11/01/2024,9461233540,22.94,AMZNMKTPLACE
OXFORDSHIRE CC,CHILDREN'S & EDUCATION,WITNEY,CATERING PROVISIONS,11/01/2024,9461234334,22.11,SAINSBURYS S/MKTS
OXFORDSHIRE CC,CHILDREN'S & EDUCATION,40 THE MOORS,MATERIALS,11/01/2024,9461234566,82.25,AMAZON.CO.UK IX0W64FD5
OXFORDSHIRE CC,CUSTOMER AND CULTURE,OXFORDSHIRE MUSEUM,MATERIALS,11/01/2024,9461233758,26.44,AMZNMKTPLACE
OXFORDSHIRE CC,CUSTOMER AND CULTURE,OXFORDSHIRE MUSEUM,MATERIALS,11/01/2024,9461233768,18.61,AMZNMKTPLACE
OXFORDSHIRE CC,CUSTOMER AND CULTURE,HARD FM,PREMISES REPAIRS,11/01/2024,9461233356,26.23,AMZNMKTPLACE
OXFORDSHIRE CC,CHILDREN'S & EDUCATION,40 THE MOORS,OTHER TRANSPORT ARRANGEMENTS,11/01/2024,9461234576,20.00,STGCOACH/CTYLINK
OXFORDSHIRE CC,CUSTOMER AND CULTURE,CENTRAL LIBRARY,EQUIPMENT,11/01/2024,9461233738,92.70,M-R-S COMMUNICATIONS L
OXFORDSHIRE CC,CHILDREN'S & EDUCATION,THAME E&A HOME,CATERING PROVISIONS,11/01/2024,9461232244,12.40,SAINSBURYS S/MKTS
OXFORDSHIRE CC,CHILDREN'S & EDUCATION,OTFC TEAM,ENTERTAINMENT EXPENSES,11/01/2024,9461234372,9.90,RIVERMEAD LEISURE COMP
OXFORDSHIRE CC,CHILDREN'S & EDUCATION,DIDCOT MOVE-ON HOME,CATERING PROVISIONS,11/01/2024,9461234406,36.89,SAINSBURYS SMKT
OXFORDSHIRE CC,CHILDREN'S & EDUCATION,UASC 16&17,CATERING,11/01/2024,9461232280,17.80,PUCCINOS EAST CROYDON
OXFORDSHIRE CC,CHILDREN'S & EDUCATION,"	LEAVING CARE CITY 2",OTHER EXPENSES,11/01/2024,9461232322,8.99,KFC
OXFORDSHIRE CC,PUBLIC HEALTH,CHILDREN IN CARE NON-STAFFING - SOUTH,OTHER TRANSPORT ARRANGEMENTS,11/01/2024,9461232010,10.00,NEALES TAXIS LTD
OXFORDSHIRE CC,CHILDREN'S & EDUCATION,OTFC TEAM,CATERING PROVISIONS,11/01/2024,9461234380,6.05,CO-OP GROUP 310626
OXFORDSHIRE CC,CHILDREN'S & EDUCATION,EYNSHAM,CATERING PROVISIONS,11/01/2024,9461232786,14.40,CO-OPERATIVE FOOD
OXFORDSHIRE CC,ADULTS,CSS WANTAGE,MATERIALS,11/01/2024,9461231980,33.95,AMZNMKTPLACE
OXFORDSHIRE CC,ADULTS,CSS - BANBURY,MATERIALS,11/01/2024,9461234250,36.39,AMZNMKTPLACE
OXFORDSHIRE CC,CUSTOMER AND CULTURE,CATERING MANAGEMENT SOFT FM,CATERING PROVISIONS,11/01/2024,9461232030,30.38,LIDL GB  EVESHAM
OXFORDSHIRE CC,CUSTOMER AND CULTURE,TRANSPORT GENERAL,VEHICLES AND PLANT - REPAIRS AND MAIN,11/01/2024,9461233408,112.00,PHILLIPS TYRES
OXFORDSHIRE CC,CHILDREN'S & EDUCATION,PAUSE PROGRAMME,CATERING,11/01/2024,9461233266,5.60,CHERWELL VALLEY COSTA
OXFORDSHIRE CC,CHILDREN'S & EDUCATION,PAUSE PROGRAMME,CATERING,11/01/2024,9461233266,5.25,CHERWELL VALLEY COSTA
OXFORDSHIRE CC,"COMMUNICATIONS, STRATEGY AND INSIGHT",STRATEGIC LEADERSHIP TEAM,PAYMENTS TO TRANSPORT OPERATORS,11/01/2024,9461234502,77.30,WWW.GWR.COM
OXFORDSHIRE CC,CHILDREN'S & EDUCATION,THAME E&A HOME,MATERIALS,11/01/2024,9461233396,28.99,AMZNMKTPLACE
OXFORDSHIRE CC,CHILDREN'S & EDUCATION,0-5 STDS & PROGRESS,MATERIALS,11/01/2024,9461232816,23.00,AMZNMKTPLACE
OXFORDSHIRE CC,CHILDREN'S & EDUCATION,0-5 STDS & PROGRESS,MATERIALS,11/01/2024,9461232824,29.88,AMZNMKTPLACE
OXFORDSHIRE CC,CHILDREN'S & EDUCATION,0-5 STDS & PROGRESS,MATERIALS,11/01/2024,9461232832,28.99,AMZNMKTPLACE
OXFORDSHIRE CC,CHILDREN'S & EDUCATION,FAMILY SOLUTIONS PLUS NON-STAFF - NORTH,OTHER TRANSPORT ARRANGEMENTS,11/01/2024,9461234384,4.50,OXFORDBUS.CO.UK
OXFORDSHIRE CC,PUBLIC HEALTH,TRANSPORT COSTS,TRANSPORT TO SCHOOL,11/01/2024,9461232004,94.80,A 2 B RADIO CARS
OXFORDSHIRE CC,CHILDREN'S & EDUCATION,FAMILY SOLUTIONS PLUS NON-STAFF - NORTH,PAYMENTS TO TRANSPORT OPERATORS,11/01/2024,9461234394,7.53,TRAINLINE
OXFORDSHIRE CC,CHILDREN'S & EDUCATION,CHILDREN IN CARE NON-STAFFING - NORTH,PAYMENT TO GOVERNMENT DEPARTMENTS,11/01/2024,9461232232,30.00,HMCTS WARWICKSHIRE128W
OXFORDSHIRE CC,ADULTS,INCOME TEAM,PAYMENT TO GOVERNMENT DEPARTMENTS,11/01/2024,9461232640,11.00,OXFORDSHIRE CC WEB1
OXFORDSHIRE CC,CHILDREN'S & EDUCATION,UASC 16&17,DRUGS AND MEDICAL SUPPLIES,11/01/2024,9461232270,9.76,BOOTS 0866
OXFORDSHIRE CC,PUBLIC HEALTH,CHILDREN IN CARE NON-STAFFING - SOUTH,PAYMENT TO GOVERNMENT DEPARTMENTS,11/01/2024,9461232018,146.00,GEN REGISTER OFFICE
OXFORDSHIRE CC,CHILDREN'S & EDUCATION,EYNSHAM,CATERING PROVISIONS,11/01/2024,9461234546,3.70,TESCO PFS 2488
OXFORDSHIRE CC,CHILDREN'S & EDUCATION,REACTIVE MAINTENANCE,PREMISES REPAIRS,11/01/2024,9461234828,36.28,B AND Q
OXFORDSHIRE CC,CHILDREN'S & EDUCATION,"	C&I ADVISORY SOUTH","SUPPLIES, STATIONERY AND MATERIALS",11/01/2024,9461235086,26.99,AMZNMKTPLACE
OXFORDSHIRE CC,CHILDREN'S & EDUCATION,"	C&I ADVISORY SOUTH","SUPPLIES, STATIONERY AND MATERIALS",11/01/2024,9461235078,49.49,AMZNMKTPLACE
OXFORDSHIRE CC,CHILDREN'S & EDUCATION,CHILDREN IN CARE NON-STAFFING - CENTRL 2,HIRE OF ACCOMMODATION AND FACILITIES,11/01/2024,9461232346,40.78,TRAVELODGE
OXFORDSHIRE CC,CHILDREN'S & EDUCATION,CHILDREN IN CARE NON-STAFFING - CENTRL 2,HIRE OF ACCOMMODATION AND FACILITIES,11/01/2024,9461232334,29.56,TRAVELODGE
OXFORDSHIRE CC,CHILDREN'S & EDUCATION,PAUSE PROGRAMME,ENTERTAINMENT EXPENSES,11/01/2024,9461233228,14.00,THE LIGHT CINEMAS BANB
OXFORDSHIRE CC,CUSTOMER AND CULTURE,HARD FM,PREMISES REPAIRS,11/01/2024,9461232162,206.28,HOWDENS - BANBURY D293
OXFORDSHIRE CC,ENVIRONMENT AND PLACE,COUNTRYSIDE PREMISES,MATERIALS,11/01/2024,9461233280,241.15,MACHINE MART WEB
OXFORDSHIRE CC,CHILDREN'S & EDUCATION,PAUSE PROGRAMME,MATERIALS,11/01/2024,9461233238,12.99,ZETTLE_ M-BITZ LTD T A
OXFORDSHIRE CC,CUSTOMER AND CULTURE,OPERATIONS,MATERIALS,11/01/2024,9461233620,6.99,AMZNMKTPLACE
OXFORDSHIRE CC,CUSTOMER AND CULTURE,OPERATIONS,MATERIALS,11/01/2024,9461233628,4.74,AMZNMKTPLACE
OXFORDSHIRE CC,CUSTOMER AND CULTURE,HISTORY SERVICE,"BOOKS, DVDS AND CDS",11/01/2024,9461234632,59.00,ORALHISTORY
OXFORDSHIRE CC,RESOURCES,GREENLOG,PAYMENTS TO TRANSPORT OPERATORS,11/01/2024,9461232418,77.30,CHILTERN RAILWAYS
OXFORDSHIRE CC,ADULTS,CSS WALLINGFORD,MATERIALS,11/01/2024,9461232044,79.99,AMZNMKTPLACE
OXFORDSHIRE CC,CHILDREN'S & EDUCATION,"	C&I ADVISORY SOUTH","SUPPLIES, STATIONERY AND MATERIALS",11/01/2024,9461235068,19.99,AMZNMKTPLACE
OXFORDSHIRE CC,CUSTOMER AND CULTURE,HARD FM,PREMISES REPAIRS,11/01/2024,9461232176,27.49,HALFORDS 0988
OXFORDSHIRE CC,CHILDREN'S & EDUCATION,QUALITY ASSURANCE SOUTH TEAM,HIRE OF ACCOMMODATION AND FACILITIES,11/01/2024,9461234960,10.20,TRAVELODGE
OXFORDSHIRE CC,CHILDREN'S & EDUCATION,PAUSE PROGRAMME,CATERING PROVISIONS,11/01/2024,9461235150,19.22,ASDA STORES 4920
OXFORDSHIRE CC,CHILDREN'S & EDUCATION,CHILDREN IN CARE NON-STAFFING - NORTH,MATERIALS,11/01/2024,9461232218,20.00,AMAZON.CO.UK 1W3BR7YE5
OXFORDSHIRE CC,CHILDREN'S & EDUCATION,"	HEARING IMPAIRMENT",MATERIALS,11/01/2024,9461233612,9.99,AMAZON.CO.UK AD6NW9UJ5
OXFORDSHIRE CC,CHILDREN'S & EDUCATION,"	HEARING IMPAIRMENT",MATERIALS,11/01/2024,9461233612,32.00,AMAZON.CO.UK AD6NW9UJ5
OXFORDSHIRE CC,CHILDREN'S & EDUCATION,"	HEARING IMPAIRMENT",MATERIALS,11/01/2024,9461233612,12.51,AMAZON.CO.UK AD6NW9UJ5
OXFORDSHIRE CC,CHILDREN'S & EDUCATION,"	HOME SUPPORT",LEGAL COSTS,11/01/2024,9461232628,75.00,WWW QDR SOLICITORS CO
OXFORDSHIRE CC,CHILDREN'S & EDUCATION,UASC 16&17,CATERING,11/01/2024,9461232258,6.80,ZETTLE_ LITTLE ITALY E
OXFORDSHIRE CC,CUSTOMER AND CULTURE,LIBRARY COLLECTIONS,"BOOKS, DVDS AND CDS",11/01/2024,9461232876,636.38,OVERDRIVE DIST
OXFORDSHIRE CC,CUSTOMER AND CULTURE,LIBRARY COLLECTIONS,"BOOKS, DVDS AND CDS",11/01/2024,9461232882,210.66,OVERDRIVE DIST
OXFORDSHIRE CC,CHILDREN'S & EDUCATION,PAUSE PROGRAMME,CATERING,11/01/2024,9461235134,7.70,GREGGS PLC
OXFORDSHIRE CC,CUSTOMER AND CULTURE,"MARKETING, COMMUNICATIONS & ENGAGEMENT","PUBLICITY, PROMOTIONS AND ADVERTISEMENT",11/01/2024,9461234028,500.00,FACEBK  QDKMBY39Z2
OXFORDSHIRE CC,CHILDREN'S & EDUCATION,KINGFISHER,CATERING PROVISIONS,11/01/2024,9461232086,50.00,TESCO GIFT CARD
OXFORDSHIRE CC,CHILDREN'S & EDUCATION,EYNSHAM,VEHICLE FUEL,11/01/2024,9461234592,8.00,TESCO PFS 2488
OXFORDSHIRE CC,CHILDREN'S & EDUCATION,CHILDREN IN CARE NON-STAFFING - NORTH,PRINTING,11/01/2024,9461232226,185.54,MOORCROFT GROUP
OXFORDSHIRE CC,PUBLIC HEALTH,CHILDREN IN CARE NON-STAFFING - SOUTH,PAYMENTS TO TRANSPORT OPERATORS,11/01/2024,9461231994,17.92,TRAINLINE
OXFORDSHIRE CC,CHILDREN'S & EDUCATION,THAME E&A HOME,MATERIALS,11/01/2024,9461232306,11.00,HOBBYCRAFT
OXFORDSHIRE CC,ENVIRONMENT AND PLACE,ROW MAINT,EQUIPMENT,11/01/2024,9461233288,14.41,HOPCROFTS HOLT SERVICE
OXFORDSHIRE CC,ADULTS,CSS BICESTER,VEHICLES AND PLANT - REPAIRS AND MAIN,11/01/2024,9461232378,26.00,HALFORDS E.COMM
OXFORDSHIRE CC,CHILDREN'S & EDUCATION,"	LEAVING CARE SOUTH",OTHER TRANSPORT ARRANGEMENTS,11/01/2024,9461234138,82.80,GWR OXFORD TO
OXFORDSHIRE CC,ADULTS,CSS WANTAGE,CATERING PROVISIONS,11/01/2024,9461231964,85.00,ICELAND
OXFORDSHIRE CC,CORPORATE CORE,,STATIONERY,11/01/2024,9461234212,167.44,LYRECO UK LTD
OXFORDSHIRE CC,CORPORATE CORE,,STATIONERY,11/01/2024,9461234226,41.52,LYRECO UK LTD
OXFORDSHIRE CC,CUSTOMER AND CULTURE,SCHOOLS FM CATERING AREA 2,CATERING PROVISIONS,11/01/2024,9461233378,11.35,TESCO STORES 2994
OXFORDSHIRE CC,CHILDREN'S & EDUCATION,"	SEN/ICT EQUIPMENT",IT SOFTWARE,11/01/2024,9461232768,38.52,PADDLE.NET SQUIRRELS
OXFORDSHIRE CC,CUSTOMER AND CULTURE,HISTORY SERVICE,FURNITURE,11/01/2024,9461234624,31.43,AMAZON.CO.UK 6K0OD0KQ5
OXFORDSHIRE CC,ADULTS,CSS WITNEY,ENTERTAINMENT EXPENSES,11/01/2024,9461233458,9.00,WWW.BETTER.ORG.UK
OXFORDSHIRE CC,CUSTOMER AND CULTURE,BUSINESS INTELLECTUAL PROPERTY CENTRE,CATERING PROVISIONS,11/01/2024,9461233550,13.50,SAINSBURYS S/MKTS
OXFORDSHIRE CC,CUSTOMER AND CULTURE,HARD FM,PREMISES REPAIRS,11/01/2024,9461232190,65.78,B & Q 1062
OXFORDSHIRE CC,CHILDREN'S & EDUCATION,FAMILY SOLUTIONS PLUS NON-STAFF - NORTH,CATERING PROVISIONS,11/01/2024,9461234812,31.75,CO-OPERATIVE FOOD
OXFORDSHIRE CC,ADULTS,CSS WANTAGE,CATERING PROVISIONS,11/01/2024,9461232072,19.65,ASDA STORES 5123
OXFORDSHIRE CC,CHILDREN'S & EDUCATION,40 THE MOORS,CATERING PROVISIONS,11/01/2024,9461234794,238.32,SAINSBURYS.CO.UK
OXFORDSHIRE CC,CHILDREN'S & EDUCATION,40 THE MOORS,CATERING PROVISIONS,11/01/2024,9461232662,7.98,AMZNMKTPLACE
OXFORDSHIRE CC,CHILDREN'S & EDUCATION,PAUSE PROGRAMME,OTHER TRANSPORT ARRANGEMENTS,11/01/2024,9461235142,1.00,PREMIER PARK SOL (E)
OXFORDSHIRE CC,CUSTOMER AND CULTURE,SAMUELSON HOUSE,CATERING PROVISIONS,11/01/2024,9461232844,-28.56,MILK AND MORE
OXFORDSHIRE CC,CUSTOMER AND CULTURE,REGISTRAR,"SUPPLIES, STATIONERY AND MATERIALS",11/01/2024,9461232804,-120.00,EB  OXFORD BEING READY
OXFORDSHIRE CC,CHILDREN'S & EDUCATION,NTS UASC AGENCY,MATERIALS,11/01/2024,9461234514,42.95,AMZNMKTPLACE
OXFORDSHIRE CC,ADULTS,CSS WANTAGE,MATERIALS,11/01/2024,9461231972,30.98,AMZNMKTPLACE
OXFORDSHIRE CC,CHILDREN'S & EDUCATION,NTS UASC AGENCY,MATERIALS,11/01/2024,9461234522,26.75,AMZNMKTPLACE
OXFORDSHIRE CC,RESOURCES,GREENLOG,HIRE OF ACCOMMODATION AND FACILITIES,11/01/2024,9461232410,273.60,NOVOTEL HOTELS
OXFORDSHIRE CC,CHILDREN'S & EDUCATION,NTS UASC AGENCY,MATERIALS,11/01/2024,9461234528,30.98,AMZNMKTPLACE
OXFORDSHIRE CC,CUSTOMER AND CULTURE,MUSEUMS COLLECTIONS,MATERIALS,11/01/2024,9461234740,45.09,AMZNMKTPLACE
OXFORDSHIRE CC,ADULTS,CSS - BANBURY,MATERIALS,11/01/2024,9461234258,1.97,AMZNMKTPLACE
OXFORDSHIRE CC,ADULTS,CSS WANTAGE,CATERING PROVISIONS,11/01/2024,9461233846,29.60,AMZNMKTPLACE
OXFORDSHIRE CC,CHILDREN'S & EDUCATION,NTS UASC AGENCY,MATERIALS,11/01/2024,9461234534,10.85,AMZNMKTPLACE
OXFORDSHIRE CC,CHILDREN'S & EDUCATION,40 THE MOORS,BIRTHDAY ALLOWANCE,10/01/2024,9456175510,114.04,SPORTS DIRECT
OXFORDSHIRE CC,CHILDREN'S & EDUCATION,40 THE MOORS,CATERING,10/01/2024,9456175512,59.91,JUST EAT
OXFORDSHIRE CC,CHILDREN'S & EDUCATION,40 THE MOORS,MATERIALS,10/01/2024,9456176522,14.99,SP TRAVELLING MAN UK
OXFORDSHIRE CC,CHILDREN'S & EDUCATION,40 THE MOORS,CATERING PROVISIONS,10/01/2024,9456175494,19.94,TESCO STORES 2788
OXFORDSHIRE CC,CHILDREN'S & EDUCATION,40 THE MOORS,CATERING PROVISIONS,10/01/2024,9456175502,15.99,TESCO STORES 2788
OXFORDSHIRE CC,CUSTOMER AND CULTURE,"MARKETING, COMMUNICATIONS & ENGAGEMENT","PUBLICITY, PROMOTIONS AND ADVERTISEMENT",10/01/2024,9456176532,500.00,GOOGLE ADS4896546035
OXFORDSHIRE CC,CHILDREN'S & EDUCATION,THAME E&A HOME,TELEPHONE - EQUIPMENT,10/01/2024,9456176074,12.00,GIFFGAFF
OXFORDSHIRE CC,CHILDREN'S & EDUCATION,THAME E&A HOME,CATERING,10/01/2024,9456176078,8.35,COSTA COFFEE 43011357
OXFORDSHIRE CC,ADULTS,CSS - ABINGDON,CATERING PROVISIONS,10/01/2024,9456175280,1.85,TESCO STORES 6519
OXFORDSHIRE CC,CHILDREN'S & EDUCATION,40 THE MOORS,OTHER EXPENSES,10/01/2024,9456175486,7.19,AMZNMKTPLACE
OXFORDSHIRE CC,ADULTS,THAME E&A HOME,OTHER MISC INC,10/01/2024,9456176324,50.25,SAINSBURYS S/MKTS
OXFORDSHIRE CC,ADULTS,CSS WANTAGE,MATERIALS,10/01/2024,9456177310,7.65,SAINSBURYS S/MKTS
OXFORDSHIRE CC,CHILDREN'S & EDUCATION,LEGAL BUDGET,LEGAL COSTS,10/01/2024,9456175332,300.00,JACKSON WEST SOLICITOR
OXFORDSHIRE CC,CHILDREN'S & EDUCATION,EET SERVICE,EDUCATIONAL AND VOCATIONAL TRAINING ,10/01/2024,9456176276,40.00,CONSTRUCTIONCERT
OXFORDSHIRE CC,CUSTOMER AND CULTURE,CENTRAL LIBRARY,EQUIPMENT,10/01/2024,9456176612,12.99,AMAZON.CO.UK JP7GJ8FQ5
OXFORDSHIRE CC,CHILDREN'S & EDUCATION,DIDCOT MOVE-ON HOME,CATERING PROVISIONS,10/01/2024,9456175694,11.73,SAINSBURYS S/MKTS
OXFORDSHIRE CC,CUSTOMER AND CULTURE,SCHOOLS FM CATERING AREA 1,MATERIALS,10/01/2024,9456176962,40.70,AMZNMKTPLACE
OXFORDSHIRE CC,CUSTOMER AND CULTURE,SCHOOLS FM CATERING AREA 1,MATERIALS,10/01/2024,9456176960,9.90,AMZNMKTPLACE
OXFORDSHIRE CC,CHILDREN'S & EDUCATION,NTS UASC AGENCY,MATERIALS,10/01/2024,9456177026,24.19,AMZNMKTPLACE
OXFORDSHIRE CC,PUBLIC HEALTH,CHILDREN IN CARE NON-STAFFING - SOUTH,HIRE OF ACCOMMODATION AND FACILITIES,10/01/2024,9456175250,102.99,PREMIER INN
OXFORDSHIRE CC,CHILDREN'S & EDUCATION,NTS UASC AGENCY,MATERIALS,10/01/2024,9456177016,12.10,AMZNMKTPLACE
OXFORDSHIRE CC,CHILDREN'S & EDUCATION,NTS UASC AGENCY,MATERIALS,10/01/2024,9456177022,4.24,AMZNMKTPLACE
OXFORDSHIRE CC,ADULTS,CSS WANTAGE,MATERIALS,10/01/2024,9456175208,59.38,AMZNMKTPLACE
OXFORDSHIRE CC,ADULTS,CSS WANTAGE,MATERIALS,10/01/2024,9456175220,8.50,AMZNMKTPLACE
OXFORDSHIRE CC,ADULTS,CSS WANTAGE,MATERIALS,10/01/2024,9456175216,22.00,AMZNMKTPLACE
OXFORDSHIRE CC,PUBLIC HEALTH,CHILDREN IN CARE NON-STAFFING - SOUTH,PAYMENT TO GOVERNMENT DEPARTMENTS,10/01/2024,9456175244,108.00,GEN REGISTER OFFICE
OXFORDSHIRE CC,CHILDREN'S & EDUCATION,UASC POST 18,SUBSCRIPTIONS,10/01/2024,9456176540,24.99,BUZZ GYM
OXFORDSHIRE CC,CHILDREN'S & EDUCATION,NRPF & HOMELESSNESS,HIRE OF ACCOMMODATION AND FACILITIES,10/01/2024,9456175970,612.00,PREMIER INN
OXFORDSHIRE CC,CHILDREN'S & EDUCATION,PAUSE PROGRAMME,CATERING,10/01/2024,9456177402,3.98,MCDONALDS
OXFORDSHIRE CC,ADULTS,CSS WANTAGE,ENTERTAINMENT EXPENSES,10/01/2024,9456176360,10.95,HOLLYWOOD BOWL
OXFORDSHIRE CC,ADULTS,CSS WANTAGE,ENTERTAINMENT EXPENSES,10/01/2024,9456176352,14.60,HOLLYWOOD BOWL
OXFORDSHIRE CC,CHILDREN'S & EDUCATION,PAUSE PROGRAMME,CATERING PROVISIONS,10/01/2024,9456177396,20.00,TESCO STORES 2008
OXFORDSHIRE CC,CUSTOMER AND CULTURE,SCHOOLS FM CATERING AREA 2,MATERIALS,10/01/2024,9456176060,10.98,AMZNMKTPLACE
OXFORDSHIRE CC,CHILDREN'S & EDUCATION,THAME E&A HOME,CATERING PROVISIONS,10/01/2024,9456176084,16.70,CO-OPERATIVE FOOD
OXFORDSHIRE CC,ADULTS,CSS WANTAGE,MATERIALS,10/01/2024,9456176376,71.80,AMZNMKTPLACE
OXFORDSHIRE CC,CHILDREN'S & EDUCATION,"	MALTFIELD HOUSE",CATERING PROVISIONS,10/01/2024,9456176624,15.00,SAINSBURYS S/MKTS
OXFORDSHIRE CC,CHILDREN'S & EDUCATION,HOUSE PROJECT,OTHER TRANSPORT ARRANGEMENTS,10/01/2024,9456177196,4.80,WESTGATE OXFORD CAR PA
OXFORDSHIRE CC,"COMMUNICATIONS, STRATEGY AND INSIGHT",CSC PROGRAMME TEAM,EDUCATIONAL AND VOCATIONAL TRAINING ,10/01/2024,9456175976,420.00,THE KNOWLEDGE ACADEMY
OXFORDSHIRE CC,ADULTS,CSS - BANBURY,ENTERTAINMENT EXPENSES,10/01/2024,9456176930,13.00,SPICEBALL LEISURE CENT
OXFORDSHIRE CC,CHILDREN'S & EDUCATION,"	MALTFIELD HOUSE",HARDWARE AND CROCKERY,10/01/2024,9456176620,23.52,B & Q 1176
OXFORDSHIRE CC,ADULTS,CSS - ABINGDON,CATERING PROVISIONS,10/01/2024,9456177390,9.00,SAINSBURY'S S/MKT
OXFORDSHIRE CC,CUSTOMER AND CULTURE,HISTORY SERVICE,FURNITURE,10/01/2024,9456177064,33.93,AMZNMKTPLACE
OXFORDSHIRE CC,CHILDREN'S & EDUCATION,UASC 16&17,DRUGS AND MEDICAL SUPPLIES,10/01/2024,9456175320,20.00,BOOTS 0472
OXFORDSHIRE CC,CUSTOMER AND CULTURE,WALLINGFORD LIBRARY,CATERING PROVISIONS,10/01/2024,9456176954,8.35,WAITROSE 675
OXFORDSHIRE CC,CHILDREN'S & EDUCATION,REACTIVE MAINTENANCE,PREMISES REPAIRS,10/01/2024,9456177112,6.65,B & Q 1176
OXFORDSHIRE CC,CHILDREN'S & EDUCATION,THAME E&A HOME,CATERING PROVISIONS,10/01/2024,9456175434,16.75,TESCO STORES 2008
OXFORDSHIRE CC,CUSTOMER AND CULTURE,SCHOOLS FM CATERING AREA 4,CATERING PROVISIONS,10/01/2024,9456175940,12.40,CO-OPERATIVE FOOD
OXFORDSHIRE CC,CUSTOMER AND CULTURE,"MARKETING, COMMUNICATIONS & ENGAGEMENT",STAFF SUBSISTENCE,10/01/2024,9456176534,198.38,HOTELSCOM7205206186495
OXFORDSHIRE CC,CUSTOMER AND CULTURE,HISTORY SERVICE,FURNITURE,10/01/2024,9456177058,14.93,AMZNMKTPLACE
OXFORDSHIRE CC,CHILDREN'S & EDUCATION,THAME E&A HOME,CATERING PROVISIONS,10/01/2024,9456175312,20.97,"KFC OXFORD, TEMPLARS S"
OXFORDSHIRE CC,CUSTOMER AND CULTURE,SCHOOLS FM CATERING AREA 2,MATERIALS,10/01/2024,9456175376,117.00,AMZNMKTPLACE
OXFORDSHIRE CC,CUSTOMER AND CULTURE,SCHOOLS FM CATERING AREA 4,CATERING PROVISIONS,10/01/2024,9456175944,7.90,CO-OPERATIVE FOOD
OXFORDSHIRE CC,ADULTS,FIELDWORK UASC,OTHER TRANSPORT ARRANGEMENTS,10/01/2024,9456175892,54.90,BANBURY STATION T/O
OXFORDSHIRE CC,CHILDREN'S & EDUCATION,REACTIVE MAINTENANCE,PREMISES REPAIRS,10/01/2024,9456177122,6.78,TOOLSTATION LTD
OXFORDSHIRE CC,CHILDREN'S & EDUCATION,PAUSE PROGRAMME,CATERING,10/01/2024,9456176004,9.10,COSTA COFFEE 43010951
OXFORDSHIRE CC,ENTERPRISEVC,,CAR LEASING - PRIVATE RENTALS,10/01/2024,9456176914,281.52,ENTERPRISE RENT-A-CAR
OXFORDSHIRE CC,ENTERPRISEVC,,CAR LEASING - PRIVATE RENTALS,10/01/2024,9456176908,281.52,ENTERPRISE RENT-A-CAR
OXFORDSHIRE CC,ENTERPRISEVC,,CAR LEASING - PRIVATE RENTALS,10/01/2024,9456176906,281.52,ENTERPRISE RENT-A-CAR
OXFORDSHIRE CC,ENTERPRISEVC,,CAR LEASING - PRIVATE RENTALS,10/01/2024,9456176900,389.52,ENTERPRISE RENT-A-CAR
OXFORDSHIRE CC,ENTERPRISEVC,,CAR LEASING - PRIVATE RENTALS,10/01/2024,9456176898,463.10,ENTERPRISE RENT-A-CAR
OXFORDSHIRE CC,ENTERPRISEVC,,CAR LEASING - PRIVATE RENTALS,10/01/2024,9456176896,389.52,ENTERPRISE RENT-A-CAR
OXFORDSHIRE CC,ENTERPRISEVC,,CAR LEASING - PRIVATE RENTALS,10/01/2024,9456176892,319.32,ENTERPRISE RENT-A-CAR
OXFORDSHIRE CC,ENTERPRISEVC,,CAR LEASING - PRIVATE RENTALS,10/01/2024,9456176890,281.52,ENTERPRISE RENT-A-CAR
OXFORDSHIRE CC,ENTERPRISEVC,,CAR LEASING - PRIVATE RENTALS,10/01/2024,9456176888,389.52,ENTERPRISE RENT-A-CAR
OXFORDSHIRE CC,ENTERPRISEVC,,CAR LEASING - PRIVATE RENTALS,10/01/2024,9456176886,389.52,ENTERPRISE RENT-A-CAR
OXFORDSHIRE CC,ENTERPRISEVC,,CAR LEASING - PRIVATE RENTALS,10/01/2024,9456176882,389.52,ENTERPRISE RENT-A-CAR
OXFORDSHIRE CC,ENTERPRISEVC,,CAR LEASING - PRIVATE RENTALS,10/01/2024,9456176878,389.52,ENTERPRISE RENT-A-CAR
OXFORDSHIRE CC,ENTERPRISEVC,,CAR LEASING - PRIVATE RENTALS,10/01/2024,9456176874,389.52,ENTERPRISE RENT-A-CAR
OXFORDSHIRE CC,ENTERPRISEVC,,CAR LEASING - PRIVATE RENTALS,10/01/2024,9456176872,389.52,ENTERPRISE RENT-A-CAR
OXFORDSHIRE CC,ENTERPRISEVC,,CAR LEASING - PRIVATE RENTALS,10/01/2024,9456176870,389.52,ENTERPRISE RENT-A-CAR
OXFORDSHIRE CC,ENTERPRISEVC,,CAR LEASING - PRIVATE RENTALS,10/01/2024,9456176868,389.52,ENTERPRISE RENT-A-CAR
OXFORDSHIRE CC,ENTERPRISEVC,,CAR LEASING - PRIVATE RENTALS,10/01/2024,9456176864,281.52,ENTERPRISE RENT-A-CAR
OXFORDSHIRE CC,ENTERPRISEVC,,CAR LEASING - PRIVATE RENTALS,10/01/2024,9456176860,389.52,ENTERPRISE RENT-A-CAR
OXFORDSHIRE CC,ENTERPRISEVC,,CAR LEASING - PRIVATE RENTALS,10/01/2024,9456176856,"2,160.00",ENTERPRISE RENT-A-CAR
OXFORDSHIRE CC,ENTERPRISEVC,,CAR LEASING - PRIVATE RENTALS,10/01/2024,9456176852,551.52,ENTERPRISE RENT-A-CAR
OXFORDSHIRE CC,ENTERPRISEVC,,CAR LEASING - PRIVATE RENTALS,10/01/2024,9456176848,389.52,ENTERPRISE RENT-A-CAR
OXFORDSHIRE CC,ENTERPRISEVC,,CAR LEASING - PRIVATE RENTALS,10/01/2024,9456176844,389.52,ENTERPRISE RENT-A-CAR
OXFORDSHIRE CC,ENTERPRISEVC,,CAR LEASING - PRIVATE RENTALS,10/01/2024,9456176842,"1,229.00",ENTERPRISE RENT-A-CAR
OXFORDSHIRE CC,ENTERPRISEVC,,CAR LEASING - PRIVATE RENTALS,10/01/2024,9456176838,389.52,ENTERPRISE RENT-A-CAR
OXFORDSHIRE CC,ENTERPRISEVC,,CAR LEASING - PRIVATE RENTALS,10/01/2024,9456176834,281.52,ENTERPRISE RENT-A-CAR
OXFORDSHIRE CC,ENTERPRISEVC,,CAR LEASING - PRIVATE RENTALS,10/01/2024,9456176830,389.52,ENTERPRISE RENT-A-CAR
OXFORDSHIRE CC,ENTERPRISEVC,,CAR LEASING - PRIVATE RENTALS,10/01/2024,9456176826,281.52,ENTERPRISE RENT-A-CAR
OXFORDSHIRE CC,ENTERPRISEVC,,CAR LEASING - PRIVATE RENTALS,10/01/2024,9456176820,281.52,ENTERPRISE RENT-A-CAR
OXFORDSHIRE CC,ENTERPRISEVC,,CAR LEASING - PRIVATE RENTALS,10/01/2024,9456176814,281.52,ENTERPRISE RENT-A-CAR
OXFORDSHIRE CC,ENTERPRISEVC,,CAR LEASING - PRIVATE RENTALS,10/01/2024,9456176812,389.52,ENTERPRISE RENT-A-CAR
OXFORDSHIRE CC,ENTERPRISEVC,,CAR LEASING - PRIVATE RENTALS,10/01/2024,9456176810,389.52,ENTERPRISE RENT-A-CAR
OXFORDSHIRE CC,ENTERPRISEVC,,CAR LEASING - PRIVATE RENTALS,10/01/2024,9456176804,"2,043.45",ENTERPRISE RENT-A-CAR
OXFORDSHIRE CC,ENTERPRISEVC,,CAR LEASING - PRIVATE RENTALS,10/01/2024,9456176800,281.52,ENTERPRISE RENT-A-CAR
OXFORDSHIRE CC,ENTERPRISEVC,,CAR LEASING - PRIVATE RENTALS,10/01/2024,9456176796,"1,400.09",ENTERPRISE RENT-A-CAR
OXFORDSHIRE CC,ENTERPRISEVC,,CAR LEASING - PRIVATE RENTALS,10/01/2024,9456176792,835.41,ENTERPRISE RENT-A-CAR
OXFORDSHIRE CC,ENTERPRISEVC,,CAR LEASING - PRIVATE RENTALS,10/01/2024,9456176786,389.52,ENTERPRISE RENT-A-CAR
OXFORDSHIRE CC,ENTERPRISEVC,,CAR LEASING - PRIVATE RENTALS,10/01/2024,9456176784,389.52,ENTERPRISE RENT-A-CAR
OXFORDSHIRE CC,ENTERPRISEVC,,CAR LEASING - PRIVATE RENTALS,10/01/2024,9456176780,581.77,ENTERPRISE RENT-A-CAR
OXFORDSHIRE CC,ENTERPRISEVC,,CAR LEASING - PRIVATE RENTALS,10/01/2024,9456176774,"1,063.17",ENTERPRISE RENT-A-CAR
OXFORDSHIRE CC,ENTERPRISEVC,,CAR LEASING - PRIVATE RENTALS,10/01/2024,9456176772,"2,313.93",ENTERPRISE RENT-A-CAR
OXFORDSHIRE CC,ENTERPRISEVC,,CAR LEASING - PRIVATE RENTALS,10/01/2024,9456176770,"1,404.00",ENTERPRISE RENT-A-CAR
OXFORDSHIRE CC,ADULTS,CSS WALLINGFORD,CATERING PROVISIONS,10/01/2024,9456175266,5.00,WAITROSE 675
OXFORDSHIRE CC,CUSTOMER AND CULTURE,WITNEY LIBRARY,"NEWSPAPERS, PERIODICALS AND PUBLICATIONS",10/01/2024,9456175728,50.23,PPOINT_ NEWSLINK WITNE
OXFORDSHIRE CC,CHILDREN'S & EDUCATION,REACTIVE MAINTENANCE,PREMISES REPAIRS,10/01/2024,9456177116,21.98,SCREWFIX DIR LTD
OXFORDSHIRE CC,CUSTOMER AND CULTURE,HENLEY LIBRARY,"NEWSPAPERS, PERIODICALS AND PUBLICATIONS",10/01/2024,9456176974,45.18,BRIGHTONS NEWSAGEN
OXFORDSHIRE CC,CHILDREN'S & EDUCATION,REACTIVE MAINTENANCE,PREMISES REPAIRS,10/01/2024,9456177108,8.55,B & Q 1176
OXFORDSHIRE CC,CHILDREN'S & EDUCATION,"	LEAVING CARE NORTH",PAYMENTS TO TRANSPORT OPERATORS,10/01/2024,9456177282,17.01,TRAINLINE
OXFORDSHIRE CC,CHILDREN'S & EDUCATION,CHILDREN IN CARE NON-STAFFING - CENTRL 2,PAYMENT TO GOVERNMENT DEPARTMENTS,10/01/2024,9456175362,22.00,OXFORDSHIRE CC WEB1
OXFORDSHIRE CC,ADULTS,CSS WANTAGE,MATERIALS,10/01/2024,9456176368,10.98,AMZNMKTPLACE
OXFORDSHIRE CC,CHILDREN'S & EDUCATION,FAMILY SOLUTIONS PLUS NON-STAFF - NORTH,PAYMENTS TO TRANSPORT OPERATORS,10/01/2024,9456176926,37.08,TRAINLINE
OXFORDSHIRE CC,CHILDREN'S & EDUCATION,CHILDREN IN CARE NON-STAFFING - NORTH,PAYMENTS TO TRANSPORT OPERATORS,10/01/2024,9456175300,22.92,TRAINLINE
OXFORDSHIRE CC,CHILDREN'S & EDUCATION,CHILDREN IN CARE NON-STAFFING - CENTRL 1,PAYMENTS TO TRANSPORT OPERATORS,10/01/2024,9456175358,24.24,TRAINLINE
OXFORDSHIRE CC,ADULTS,CSS WANTAGE,CATERING PROVISIONS,10/01/2024,9456176384,47.69,SAINSBURYS S/MKTS
OXFORDSHIRE CC,ADULTS,CSS WANTAGE,MATERIALS,10/01/2024,9456176372,11.90,AMZNMKTPLACE
OXFORDSHIRE CC,CHILDREN'S & EDUCATION,FAMILY SOLUTIONS PLUS NON-STAFF - NORTH,PAYMENTS TO TRANSPORT OPERATORS,10/01/2024,9456176922,17.01,TRAINLINE
OXFORDSHIRE CC,CUSTOMER AND CULTURE,COUNTY HALL,STATIONERY,10/01/2024,9456177202,7.89,AMZNMKTPLACE
OXFORDSHIRE CC,ADULTS,CSS - OXFORD,CATERING PROVISIONS,10/01/2024,9456175848,31.50,ALDI STORES 775-142
OXFORDSHIRE CC,CUSTOMER AND CULTURE,THAME LIBRARY,"NEWSPAPERS, PERIODICALS AND PUBLICATIONS",10/01/2024,9456176666,5.80,SAINSBURYS S/MKTS
OXFORDSHIRE CC,ENTERPRISEVC,,CAR LEASING - PRIVATE RENTALS,10/01/2024,9456176764,812.78,ENTERPRISE RENT-A-CAR
OXFORDSHIRE CC,ENTERPRISEVC,,CAR LEASING - PRIVATE RENTALS,10/01/2024,9456176758,53.00,ENTERPRISE RENT-A-CAR
OXFORDSHIRE CC,ENTERPRISEVC,,CAR LEASING - PRIVATE RENTALS,10/01/2024,9456176750,107.98,ENTERPRISE RENT-A-CAR
OXFORDSHIRE CC,ENTERPRISEVC,,CAR LEASING - PRIVATE RENTALS,10/01/2024,9456176744,119.95,ENTERPRISE RENT-A-CAR
OXFORDSHIRE CC,ENTERPRISEVC,,CAR LEASING - PRIVATE RENTALS,10/01/2024,9456176740,38.75,ENTERPRISE RENT-A-CAR
OXFORDSHIRE CC,ENTERPRISEVC,,CAR LEASING - PRIVATE RENTALS,10/01/2024,9456176734,774.58,ENTERPRISE RENT-A-CAR
OXFORDSHIRE CC,CHILDREN'S & EDUCATION,"	HEARING IMPAIRMENT",PRINTING,10/01/2024,9456176406,146.96,WWW.INFORMA.COM
OXFORDSHIRE CC,CUSTOMER AND CULTURE,OXFORDSHIRE MUSEUM,OTHER SERVICES,10/01/2024,9456176296,72.01,BREWERS ABINGDON
OXFORDSHIRE CC,CORPORATE CORE,,STATIONERY,10/01/2024,9456176706,123.38,LYRECO UK LTD
OXFORDSHIRE CC,CORPORATE CORE,,STATIONERY,10/01/2024,9456176714,46.55,LYRECO UK LTD
OXFORDSHIRE CC,CORPORATE CORE,,STATIONERY,10/01/2024,9456176684,135.22,LYRECO UK LTD
OXFORDSHIRE CC,CORPORATE CORE,,STATIONERY,10/01/2024,9456176692,36.38,LYRECO UK LTD
OXFORDSHIRE CC,CORPORATE CORE,,STATIONERY,10/01/2024,9456176696,8.22,LYRECO UK LTD
OXFORDSHIRE CC,CORPORATE CORE,,STATIONERY,10/01/2024,9456176724,91.43,LYRECO UK LTD
OXFORDSHIRE CC,CORPORATE CORE,,STATIONERY,10/01/2024,9456176700,42.91,LYRECO UK LTD
OXFORDSHIRE CC,CORPORATE CORE,,STATIONERY,10/01/2024,9456176720,53.13,LYRECO UK LTD
OXFORDSHIRE CC,ADULTS,CSS BICESTER,CATERING PROVISIONS,10/01/2024,9456175306,104.79,TESCO STORES 2162
OXFORDSHIRE CC,CUSTOMER AND CULTURE,COMMUNITY PARTNERSHIP TEAM,CATERING PROVISIONS,10/01/2024,9456175424,131.55,TESCO STORES 2008
OXFORDSHIRE CC,CHILDREN'S & EDUCATION,EYNSHAM,CATERING,10/01/2024,9456175254,101.27,TESCO STORES 2008
OXFORDSHIRE CC,ADULTS,CSS WANTAGE,CATERING PROVISIONS,10/01/2024,9456176364,271.28,ASDA GROCERIES ONLINE
OXFORDSHIRE CC,CUSTOMER AND CULTURE,CATERING MANAGEMENT SOFT FM,POSTAGE AND DELIVERY,10/01/2024,9456177100,.75,POST OFFICE COUNTER
OXFORDSHIRE CC,ADULTS,CSS WANTAGE,CATERING PROVISIONS,10/01/2024,9456176388,-99.81,ASDA GROCERIES ONLINE
OXFORDSHIRE CC,CHILDREN'S & EDUCATION,SEND CASEWORK TEAM,POSTAGE AND DELIVERY,10/01/2024,9456177302,.16,ROYAL MAIL GROUP LTD
OXFORDSHIRE CC,CHILDREN'S & EDUCATION,40 THE MOORS,MATERIALS,10/01/2024,9456175506,14.99,AMZNMKTPLACE
OXFORDSHIRE CC,CUSTOMER AND CULTURE,SCHOOLS FM CATERING AREA 1,MATERIALS,10/01/2024,9456176956,22.23,AMZNMKTPLACE
OXFORDSHIRE CC,CHILDREN'S & EDUCATION,40 THE MOORS,GENERAL REFUSE COLLECTION AND DISPOSAL,10/01/2024,9456175520,324.00,MCCARTHY MARLAND RECYC
OXFORDSHIRE CC,CHILDREN'S & EDUCATION,"	MALTFIELD HOUSE",SERVICE CHARGES - PREMISES,10/01/2024,9456176676,159.00,TVLICENSING.CO.UK
OXFORDSHIRE CC,CUSTOMER AND CULTURE,MUSIC UNALLOCABLE,VEHICLE FUEL,10/01/2024,9456177212,20.00,ASDA PETROL/UPT
OXFORDSHIRE CC,CHILDREN'S & EDUCATION,THAME E&A HOME,MATERIALS,09/01/2024,9451791098,11.99,AMZNMKTPLACE
OXFORDSHIRE CC,CHILDREN'S & EDUCATION,40 THE MOORS,CLOTHING AND UNIFORMS,09/01/2024,9451790662,107.98,FOOTASYLUM LIMITED
OXFORDSHIRE CC,CHILDREN'S & EDUCATION,40 THE MOORS,MATERIALS,09/01/2024,9451790686,129.99,WWW.ARGOS.CO.UK
OXFORDSHIRE CC,CHILDREN'S & EDUCATION,40 THE MOORS,CLOTHING AND UNIFORMS,09/01/2024,9451790658,76.18,FOOTASYLUM LIMITED
OXFORDSHIRE CC,CUSTOMER AND CULTURE,CATERING MANAGEMENT SOFT FM,MATERIALS,09/01/2024,9451791786,34.99,CURRYS SWINDON
OXFORDSHIRE CC,CHILDREN'S & EDUCATION,WITNEY,CATERING PROVISIONS,09/01/2024,9451791738,13.14,SAINSBURYS S/MKTS
OXFORDSHIRE CC,CHILDREN'S & EDUCATION,"	LEAVING CARE CITY 2",PAYMENTS TO TRANSPORT OPERATORS,09/01/2024,9451791106,80.00,BKG HOTEL AT BOOKING.C
OXFORDSHIRE CC,CHILDREN'S & EDUCATION,OTFC TEAM,CATERING,09/01/2024,9451791628,15.90,COSTA TEMPLARS
OXFORDSHIRE CC,CHILDREN'S & EDUCATION,THAME E&A HOME,CATERING,09/01/2024,9451790976,4.50,COSTA COFFEE 43010554
OXFORDSHIRE CC,CHILDREN'S & EDUCATION,40 THE MOORS,CATERING,09/01/2024,9451790668,8.00,STANLEYS SWEETS AND TR
OXFORDSHIRE CC,CHILDREN'S & EDUCATION,40 THE MOORS,HIRED AND CONTRACTED SERVICES,09/01/2024,9451790680,15.00,BARNETS BARBERS
OXFORDSHIRE CC,CHILDREN'S & EDUCATION,40 THE MOORS,HIRED AND CONTRACTED SERVICES,09/01/2024,9451790676,18.00,BARNETS BARBERS
OXFORDSHIRE CC,CHILDREN'S & EDUCATION,"	OCCG GRANT",CATERING PROVISIONS,09/01/2024,9451791938,5.00,TESCO STORES 2064
OXFORDSHIRE CC,CHILDREN'S & EDUCATION,KINGFISHER,MATERIALS,09/01/2024,9451790376,10.00,TESCO ONLINE
OXFORDSHIRE CC,CHILDREN'S & EDUCATION,NTS UASC AGENCY,MATERIALS,09/01/2024,9451791696,9.89,AMZNMKTPLACE
OXFORDSHIRE CC,CHILDREN'S & EDUCATION,NTS UASC AGENCY,MATERIALS,09/01/2024,9451791704,16.98,AMZNMKTPLACE
OXFORDSHIRE CC,CHILDREN'S & EDUCATION,NTS UASC AGENCY,MATERIALS,09/01/2024,9451791700,10.47,AMZNMKTPLACE
OXFORDSHIRE CC,CHILDREN'S & EDUCATION,DIDCOT MOVE-ON HOME,CATERING PROVISIONS,09/01/2024,9451791666,8.74,SAINSBURYS S/MKTS
OXFORDSHIRE CC,ENVIRONMENT AND PLACE,OCCG GRANT,MATERIALS,09/01/2024,9451791218,21.00,TIMPSON LTD
OXFORDSHIRE CC,CHILDREN'S & EDUCATION,KINGFISHER,MATERIALS,09/01/2024,9451790380,11.49,WWW.ARGOS.CO.UK
OXFORDSHIRE CC,ADULTS,CSS - ABINGDON,PAYMENT TO GOVERNMENT DEPARTMENTS,09/01/2024,9451791806,40.00,OXFORDSHIRE CC (M)
OXFORDSHIRE CC,CHILDREN'S & EDUCATION,40 THE MOORS,CATERING PROVISIONS,09/01/2024,9451791770,13.10,SAINSBURYS S/MKTS
OXFORDSHIRE CC,CUSTOMER AND CULTURE,CH REFURB PROJECT,EQUIPMENT,09/01/2024,9451791152,47.99,AMZNMKTPLACE
OXFORDSHIRE CC,CUSTOMER AND CULTURE,CH REFURB PROJECT,EQUIPMENT,09/01/2024,9451791146,29.49,AMZNMKTPLACE
OXFORDSHIRE CC,CHILDREN'S & EDUCATION,NTS UASC AGENCY,CATERING PROVISIONS,09/01/2024,9451791618,56.32,ALDI STORES 775-142
OXFORDSHIRE CC,CUSTOMER AND CULTURE,CH REFURB PROJECT,MATERIALS,09/01/2024,9451791154,23.58,AMZNMKTPLACE
OXFORDSHIRE CC,CHILDREN'S & EDUCATION,UASC 16&17,PAYMENTS TO TRANSPORT OPERATORS,09/01/2024,9451790456,98.65,BICESTER T/O
OXFORDSHIRE CC,CHILDREN'S & EDUCATION,HOUSE PROJECT,OTHER TRANSPORT ARRANGEMENTS,09/01/2024,9451791524,5.80,WESTGATE OXFORD CAR PA
OXFORDSHIRE CC,CHILDREN'S & EDUCATION,"	LEAVING CARE NORTH",CATERING,09/01/2024,9451791544,18.97,MCDONALDS
OXFORDSHIRE CC,ADULTS,CSS - BANBURY,VEHICLE FUEL,09/01/2024,9451791794,50.28,TESCO PFS 3920
OXFORDSHIRE CC,CHILDREN'S & EDUCATION,"	OCCG GRANT",CATERING PROVISIONS,09/01/2024,9451790776,8.10,CO-OPERATIVE FOOD
OXFORDSHIRE CC,CUSTOMER AND CULTURE,SCHOOLS FM CATERING AREA 2,MATERIALS,09/01/2024,9451791134,6.99,AMZNMKTPLACE
OXFORDSHIRE CC,CUSTOMER AND CULTURE,SCHOOLS FM CATERING AREA 2,MATERIALS,09/01/2024,9451791138,21.77,AMZNMKTPLACE
OXFORDSHIRE CC,CHILDREN'S & EDUCATION,"	ALTERNATIVES TO CARE",MATERIALS,09/01/2024,9451791284,735.00,AMZNMKTPLACE
OXFORDSHIRE CC,CHILDREN'S & EDUCATION,40 THE MOORS,CATERING PROVISIONS,09/01/2024,9451790672,1.85,TESCO STORES 2788
OXFORDSHIRE CC,CHILDREN'S & EDUCATION,NTS UASC AGENCY,CATERING PROVISIONS,09/01/2024,9451791684,30.84,AMAZON  203-7898501-45
OXFORDSHIRE CC,CUSTOMER AND CULTURE,KIDLINGTON LIBRARY,"NEWSPAPERS, PERIODICALS AND PUBLICATIONS",09/01/2024,9451791430,178.60,OXFORD HOUSE CAF?
OXFORDSHIRE CC,ADULTS,CSS - ABINGDON,CATERING PROVISIONS,09/01/2024,9451790338,33.40,TESCO STORES 2008
OXFORDSHIRE CC,ADULTS,PAUSE PROGRAMME,MATERIALS,09/01/2024,9451790770,8.00,THEWORKS.CO.UK
OXFORDSHIRE CC,CHILDREN'S & EDUCATION,THAME E&A HOME,CATERING PROVISIONS,09/01/2024,9451790970,5.55,MARKS&SPENCER PLC SF
OXFORDSHIRE CC,ADULTS,INCOME TEAM,PAYMENT TO GOVERNMENT DEPARTMENTS,09/01/2024,9451790630,1.50,FIND A WILL
OXFORDSHIRE CC,CHILDREN'S & EDUCATION,THAME E&A HOME,MATERIALS,09/01/2024,9451791096,26.31,AMZNMKTPLACE
OXFORDSHIRE CC,CHILDREN'S & EDUCATION,THAME E&A HOME,MATERIALS,09/01/2024,9451791092,23.70,AMZNMKTPLACE
OXFORDSHIRE CC,ENVIRONMENT AND PLACE,TVERC,POSTAGE AND DELIVERY,09/01/2024,9451790418,6.49,ROYAL MAIL GROUP LTD
OXFORDSHIRE CC,CHILDREN'S & EDUCATION,FAMILY SOLUTIONS PLUS NON-STAFF - NORTH,PAYMENTS TO TRANSPORT OPERATORS,09/01/2024,9451791636,53.39,TRAINLINE
OXFORDSHIRE CC,CHILDREN'S & EDUCATION,NTS UASC AGENCY,MATERIALS,09/01/2024,9451791688,115.80,AMZNMKTPLACE
OXFORDSHIRE CC,CHILDREN'S & EDUCATION,"	MALTFIELD HOUSE",FURNITURE,09/01/2024,9451791498,307.20,DUNELM SOFTFURNISHINGS
OXFORDSHIRE CC,CHILDREN'S & EDUCATION,CHILDREN IN CARE NON-STAFFING - NORTH,PAYMENT TO GOVERNMENT DEPARTMENTS,09/01/2024,9451790412,34.00,DVLA DRIVER ONLINE
OXFORDSHIRE CC,CHILDREN'S & EDUCATION,NTS UASC AGENCY,MATERIALS,09/01/2024,9451791692,49.99,AMZNMKTPLACE
OXFORDSHIRE CC,CHILDREN'S & EDUCATION,FAMILY SOLUTIONS PLUS NON-STAFF - NORTH,PAYMENTS TO VOLUNTARY BODIES,09/01/2024,9451791644,110.00,PAYPAL  WOMENSLIBER WO
OXFORDSHIRE CC,CUSTOMER AND CULTURE,REACTIVE MAINTENANCE,OTHER TRANSPORT ARRANGEMENTS,09/01/2024,9451791814,1.95,NCP BANBURY MARLBOROUG
OXFORDSHIRE CC,CUSTOMER AND CULTURE,SCHOOLS FM CATERING AREA 2,MATERIALS,09/01/2024,9451790524,28.32,AMZNMKTPLACE
OXFORDSHIRE CC,CHILDREN'S & EDUCATION,NTS UASC AGENCY,FURNITURE,09/01/2024,9451791708,20.98,TABLECLOTH SHOP
OXFORDSHIRE CC,CUSTOMER AND CULTURE,SCHOOLS FM CATERING AREA 2,MATERIALS,09/01/2024,9451790530,38.98,AMZNMKTPLACE
OXFORDSHIRE CC,CUSTOMER AND CULTURE,SCHOOLS FM CATERING AREA 2,MATERIALS,09/01/2024,9451790522,4.98,AMZNMKTPLACE
OXFORDSHIRE CC,CHILDREN'S & EDUCATION,CNTL ERLY HELP-BBLEY,MATERIALS,09/01/2024,9451791442,33.71,AMZNMKTPLACE
OXFORDSHIRE CC,CUSTOMER AND CULTURE,SCHOOLS FM CATERING AREA 1,CATERING PROVISIONS,09/01/2024,9451791656,2.65,CO-OPERATIVE FOOD
OXFORDSHIRE CC,CUSTOMER AND CULTURE,THAME LIBRARY,GENERAL MAINTENANCE,09/01/2024,9451791464,19.99,ROBERT DYAS THAME
OXFORDSHIRE CC,PUBLIC HEALTH,PUBLIC HEALTH GENERAL,PAYMENTS TO TRANSPORT OPERATORS,09/01/2024,9451790890,89.76,TRAINLINE
OXFORDSHIRE CC,CUSTOMER AND CULTURE,LIBRARY COLLECTIONS,"BOOKS, DVDS AND CDS",09/01/2024,9451790818,"1,209.17",OVERDRIVE DIST
OXFORDSHIRE CC,CUSTOMER AND CULTURE,LIBRARY COLLECTIONS,"BOOKS, DVDS AND CDS",09/01/2024,9451790822,"1,019.48",OVERDRIVE DIST
OXFORDSHIRE CC,CUSTOMER AND CULTURE,HARD FM,PREMISES REPAIRS,09/01/2024,9451790396,73.99,SCREWFIX DIR LTD
OXFORDSHIRE CC,CHILDREN'S & EDUCATION,NTS UASC AGENCY,MATERIALS,09/01/2024,9451791712,115.95,WWW.ARGOS.CO.UK
OXFORDSHIRE CC,ADULTS,CSS WITNEY,CATERING PROVISIONS,09/01/2024,9451791200,17.90,CO-OP GROUP 070582
OXFORDSHIRE CC,CHILDREN'S & EDUCATION,VIRTUAL SCHOOL POST 16 PPP,PURCHASE OF IT EQUIPMENT,09/01/2024,9451791078,250.00,AMAZON  205-0412443-52
OXFORDSHIRE CC,CHILDREN'S & EDUCATION,FSP NON-STAFFING - CENTRAL,MATERIALS,09/01/2024,9451791434,34.98,AMZNMKTPLACE
OXFORDSHIRE CC,ADULTS,CSS - OXFORD,CATERING PROVISIONS,09/01/2024,9451790442,3.70,ALDI STORES 775-142
OXFORDSHIRE CC,ADULTS,CSS - OXFORD,CATERING PROVISIONS,09/01/2024,9451790448,26.92,ALDI STORES 775-142
OXFORDSHIRE CC,ADULTS,CSS - OXFORD,MATERIALS,09/01/2024,9451790612,52.57,ALDI STORES 775-142
OXFORDSHIRE CC,RESOURCES,SCHOOLS FM CATERING AREA 2,CATERING PROVISIONS,09/01/2024,9451791586,6.20,SAINSBURYS S/MKTS
OXFORDSHIRE CC,ADULTS,CSS - OXFORD,CATERING PROVISIONS,09/01/2024,9451790604,5.94,ALDI STORES 775-142
OXFORDSHIRE CC,CUSTOMER AND CULTURE,RFID PROJECT,FURNITURE,09/01/2024,9451791160,125.89,SEATED FURNITURE LTD
OXFORDSHIRE CC,ENVIRONMENT AND PLACE,FLEET COSTS,VEHICLE - HIRE CHARGES,09/01/2024,9451790478,35.00,OCC CIVIL ENFORCEMENT
OXFORDSHIRE CC,CUSTOMER AND CULTURE,MUSEUMS COLLECTIONS,CATERING PROVISIONS,09/01/2024,9451791890,10.70,WWW.AMAZINGCRAFT.CO.UK
OXFORDSHIRE CC,CUSTOMER AND CULTURE,SCHOOLS FM CATERING AREA 1,VEHICLE FUEL,09/01/2024,9451791652,8.35,TESCO PFS 3418
OXFORDSHIRE CC,CUSTOMER AND CULTURE,THAME LIBRARY,"NEWSPAPERS, PERIODICALS AND PUBLICATIONS",09/01/2024,9451791468,5.80,SAINSBURYS S/MKTS
OXFORDSHIRE CC,ADULTS,CSS WANTAGE,ENTERTAINMENT EXPENSES,09/01/2024,9451791316,9.90,WWW.BETTER.ORG.UK
OXFORDSHIRE CC,CHILDREN'S & EDUCATION,BANBURY CC,CATERING PROVISIONS,09/01/2024,9451791776,4.35,ALDI 10 775
OXFORDSHIRE CC,CUSTOMER AND CULTURE,SCHOOLS FM CATERING AREA 1,CATERING PROVISIONS,09/01/2024,9451791662,24.87,SAINSBURYS S/MKTS
OXFORDSHIRE CC,ADULTS,CSS - ABINGDON,MATERIALS,09/01/2024,9451790388,22.34,ALDI STORES
OXFORDSHIRE CC,CHILDREN'S & EDUCATION,"BICESTER CC, LAUNTON RD",CATERING PROVISIONS,09/01/2024,9451791638,4.40,TESCO STORES 3143
OXFORDSHIRE CC,CORPORATE CORE,,STATIONERY,09/01/2024,9451791510,36.36,LYRECO UK LTD
OXFORDSHIRE CC,CORPORATE CORE,,STATIONERY,09/01/2024,9451791518,42.96,LYRECO UK LTD
OXFORDSHIRE CC,CORPORATE CORE,,STATIONERY,09/01/2024,9451791514,81.46,LYRECO UK LTD
OXFORDSHIRE CC,CORPORATE CORE,,STATIONERY,09/01/2024,9451791504,42.96,LYRECO UK LTD
OXFORDSHIRE CC,ADULTS,CSS - BANBURY,CATERING PROVISIONS,09/01/2024,9451791800,116.95,SAINSBURYS.CO.UK
OXFORDSHIRE CC,CHILDREN'S & EDUCATION,THAME E&A HOME,CATERING PROVISIONS,09/01/2024,9451790580,244.31,TESCO STORES 2038
OXFORDSHIRE CC,CHILDREN'S & EDUCATION,"	LEAVING CARE SOUTH",OTHER TRANSPORT ARRANGEMENTS,09/01/2024,9451790710,92.30,OXFORDBUS.CO.UK
OXFORDSHIRE CC,CHILDREN'S & EDUCATION,FAMILY SOLUTIONS PLUS NON-STAFF - NORTH,CATERING,09/01/2024,9451791534,56.25,WETHERSPOON HOTEL
OXFORDSHIRE CC,CHILDREN'S & EDUCATION,THAME E&A HOME,CATERING,09/01/2024,9451790866,21.20,THAME BP SF CONNECT
OXFORDSHIRE CC,CUSTOMER AND CULTURE,LEARNING & ACCESS,MATERIALS,09/01/2024,9451791764,7.98,AMZNMKTPLACE
OXFORDSHIRE CC,CUSTOMER AND CULTURE,BUSINESS INTELLECTUAL PROPERTY CENTRE,MATERIALS,08/01/2024,9445432814,140.01,AMZNMKTPLACE
OXFORDSHIRE CC,PUBLIC HEALTH,WITNEY,MATERIALS,08/01/2024,9445432254,12.67,AMZNMKTPLACE
OXFORDSHIRE CC,CHILDREN'S & EDUCATION,40 THE MOORS,CATERING,08/01/2024,9445433450,8.60,CO-OPERATIVE FOOD
OXFORDSHIRE CC,CHILDREN'S & EDUCATION,40 THE MOORS,RESIDENTIAL ACTIVITIES,08/01/2024,9445433446,35.41,HOLLYWOOD BOWL
OXFORDSHIRE CC,CHILDREN'S & EDUCATION,"	OCCG GRANT",OTHER EXPENSES,08/01/2024,9445433340,21.00,TIMPSON LTD
OXFORDSHIRE CC,CHILDREN'S & EDUCATION,"	OCCG GRANT",CATERING,08/01/2024,9445433352,28.19,SAINSBURYS S/MKTS
OXFORDSHIRE CC,CHILDREN'S & EDUCATION,DIDCOT MOVE-ON HOME,CATERING PROVISIONS,08/01/2024,9445433346,20.13,SAINSBURYS S/MKTS
OXFORDSHIRE CC,CHILDREN'S & EDUCATION,DIDCOT MOVE-ON HOME,CATERING PROVISIONS,08/01/2024,9445432586,7.80,SAINSBURYS S/MKTS
OXFORDSHIRE CC,ADULTS,CSS - BANBURY,MATERIALS,08/01/2024,9445433252,15.99,AMZNMKTPLACE
OXFORDSHIRE CC,CHILDREN'S & EDUCATION,"	RESIDENTIAL STRATEGY",HIRE OF ACCOMMODATION AND FACILITIES,08/01/2024,9445433044,364.52,RIIZEROOMS
OXFORDSHIRE CC,CUSTOMER AND CULTURE,OPERATIONS,MATERIALS,08/01/2024,9445432840,23.89,AMZNMKTPLACE
OXFORDSHIRE CC,CHILDREN'S & EDUCATION,"	ALTERNATIVES TO CARE",MATERIALS,08/01/2024,9445432922,39.99,AMZNMKTPLACE
OXFORDSHIRE CC,CHILDREN'S & EDUCATION,"	ALTERNATIVES TO CARE",MATERIALS,08/01/2024,9445432926,39.99,AMZNMKTPLACE
OXFORDSHIRE CC,ADULTS,UASC 16&17,RESIDENTIAL ACTIVITIES,08/01/2024,9445432652,25.00,RESULTS HEALTH CLUBS (
OXFORDSHIRE CC,CUSTOMER AND CULTURE,HARD FM,PREMISES REPAIRS,08/01/2024,9445433618,20.80,SP WWW.EB3FX.CO.UK
OXFORDSHIRE CC,CHILDREN'S & EDUCATION,CHILDREN IN CARE COUNCIL,CATERING PROVISIONS,08/01/2024,9445432320,23.40,M&S SIMPLY FOOD - SSP
OXFORDSHIRE CC,CHILDREN'S & EDUCATION,CHILDREN IN CARE COUNCIL,CATERING PROVISIONS,08/01/2024,9445432324,2.00,BOOTS 1916
OXFORDSHIRE CC,CHILDREN'S & EDUCATION,THAME E&A HOME,ENTERTAINMENT EXPENSES,08/01/2024,9445432612,17.98,VUE CINEMAS
OXFORDSHIRE CC,ADULTS,THAME E&A HOME,OTHER TRANSPORT ARRANGEMENTS,08/01/2024,9445432240,2.10,PARKING-AQUA VALE
OXFORDSHIRE CC,CHILDREN'S & EDUCATION,"	ALTERNATIVES TO CARE",MATERIALS,08/01/2024,9445432896,39.99,AMZNMKTPLACE
OXFORDSHIRE CC,CHILDREN'S & EDUCATION,40 THE MOORS,CATERING PROVISIONS,08/01/2024,9445432616,8.63,SPAR GREATER LEYS
OXFORDSHIRE CC,CHILDREN'S & EDUCATION,DIDCOT MOVE-ON HOME,CATERING PROVISIONS,08/01/2024,9445432578,12.65,SAINSBURYS S/MKTS
OXFORDSHIRE CC,CHILDREN'S & EDUCATION,"	ALTERNATIVES TO CARE",MATERIALS,08/01/2024,9445432912,39.99,AMZNMKTPLACE
OXFORDSHIRE CC,CHILDREN'S & EDUCATION,"	ALTERNATIVES TO CARE",MATERIALS,08/01/2024,9445432904,39.99,AMZNMKTPLACE
OXFORDSHIRE CC,CHILDREN'S & EDUCATION,40 THE MOORS,MATERIALS,08/01/2024,9445433440,12.10,ASDA STORES 5123
OXFORDSHIRE CC,CHILDREN'S & EDUCATION,EYNSHAM,CATERING PROVISIONS,08/01/2024,9445433460,110.79,SAINSBURYS S/MKTS
OXFORDSHIRE CC,ADULTS,CSS - BANBURY,MATERIALS,08/01/2024,9445433246,14.99,AMZNMKTPLACE
OXFORDSHIRE CC,CHILDREN'S & EDUCATION,"	SEN/ICT EQUIPMENT",IT SOFTWARE,08/01/2024,9445432500,4.08,COWRITER
OXFORDSHIRE CC,ADULTS,THAME E&A HOME,RESIDENTIAL ACTIVITIES,08/01/2024,9445432236,40.50,EVERYONE ACTIVE-DOM
OXFORDSHIRE CC,CHILDREN'S & EDUCATION,THAME E&A HOME,CATERING PROVISIONS,08/01/2024,9445432594,30.68,ASDA SUPERSTORE
OXFORDSHIRE CC,CUSTOMER AND CULTURE,REACTIVE MAINTENANCE,PREMISES REPAIRS,08/01/2024,9445432748,34.99,ESSO BICESTER SERVICES
OXFORDSHIRE CC,CHILDREN'S & EDUCATION,CHILDREN IN CARE COUNCIL,CATERING PROVISIONS,08/01/2024,9445432328,19.05,PRET A MANGER
OXFORDSHIRE CC,CUSTOMER AND CULTURE,"MARKETING, COMMUNICATIONS & ENGAGEMENT",LICENCES,08/01/2024,9445433062,86.40,ISTOCK.COM
OXFORDSHIRE CC,CUSTOMER AND CULTURE,CAMBRIDGE TERRACE,OTHER PREMISES RELATED COSTS,08/01/2024,9445432758,9.46,AMZNMKTPLACE
OXFORDSHIRE CC,CHILDREN'S & EDUCATION,THAME E&A HOME,DOMESTIC SUPPLIES,08/01/2024,9445432710,2.25,POSTCOMBE SVS STN
OXFORDSHIRE CC,CUSTOMER AND CULTURE,RFID PROJECT,FURNITURE,08/01/2024,9445433114,34.56,WF EDUCATION GROUP LTD
OXFORDSHIRE CC,CUSTOMER AND CULTURE,THAME LIBRARY,"NEWSPAPERS, PERIODICALS AND PUBLICATIONS",08/01/2024,9445433194,7.50,SAINSBURYS S/MKTS
OXFORDSHIRE CC,CHILDREN'S & EDUCATION,EYNSHAM,CATERING PROVISIONS,08/01/2024,9445432224,-105.93,TESCO STORES 2008
OXFORDSHIRE CC,CHILDREN'S & EDUCATION,CHILDREN IN CARE NON-STAFFING - NORTH,PAYMENTS TO TRANSPORT OPERATORS,08/01/2024,9445433544,-69.80,TRAINLINE
OXFORDSHIRE CC,CHILDREN'S & EDUCATION,40 THE MOORS,MATERIALS,08/01/2024,9445433430,106.98,CURRYS ONLINE
OXFORDSHIRE CC,CHILDREN'S & EDUCATION,THAME E&A HOME,DOMESTIC SUPPLIES,08/01/2024,9445432698,10.50,RUSH HIGH WYCOMBE
OXFORDSHIRE CC,CHILDREN'S & EDUCATION,THAME E&A HOME,DOMESTIC SUPPLIES,08/01/2024,9445432696,3.30,RUSH HIGH WYCOMBE
OXFORDSHIRE CC,CHILDREN'S & EDUCATION,THAME E&A HOME,DOMESTIC SUPPLIES,08/01/2024,9445432690,3.00,RUSH HIGH WYCOMBE
OXFORDSHIRE CC,CHILDREN'S & EDUCATION,WITNEY,CATERING PROVISIONS,08/01/2024,9445433312,2.85,SAINSBURYS S/MKTS
OXFORDSHIRE CC,ENVIRONMENT AND PLACE,OCCG GRANT,DRUGS AND MEDICAL SUPPLIES,08/01/2024,9445432802,11.47,SUPERDRUG STORES PLC
OXFORDSHIRE CC,CHILDREN'S & EDUCATION,40 THE MOORS,CATERING,08/01/2024,9445433434,18.05,SAINSBURYS S/MKTS
OXFORDSHIRE CC,CUSTOMER AND CULTURE,COUNTY HALL,MATERIALS,08/01/2024,9445433560,8.35,AMZNMKTPLACE
OXFORDSHIRE CC,CUSTOMER AND CULTURE,COUNTY HALL,STATIONERY,08/01/2024,9445433556,7.51,AMZNMKTPLACE
OXFORDSHIRE CC,CHILDREN'S & EDUCATION,40 THE MOORS,FURNITURE,08/01/2024,9445433420,121.50,IKEA LTD 185 MILTON KE
OXFORDSHIRE CC,CHILDREN'S & EDUCATION,40 THE MOORS,FIXTURES & FITTINGS,08/01/2024,9445433530,3.50,TESCO STORES 2788
OXFORDSHIRE CC,CHILDREN'S & EDUCATION,KINGFISHER,CATERING PROVISIONS,08/01/2024,9445432260,100.00,TESCO GIFT CARD
OXFORDSHIRE CC,CHILDREN'S & EDUCATION,EYNSHAM,CATERING PROVISIONS,08/01/2024,9445432730,13.95,CO-OPERATIVE FOOD
OXFORDSHIRE CC,CUSTOMER AND CULTURE,CAMBRIDGE TERRACE,OTHER PREMISES RELATED COSTS,08/01/2024,9445432764,4.20,TESCO STORES 2990
OXFORDSHIRE CC,ENVIRONMENT AND PLACE,ORGANISATIONAL DEV'T,EDUCATIONAL AND VOCATIONAL TRAINING ,08/01/2024,9445433328,68.40,ECCTIS LTD
OXFORDSHIRE CC,CHILDREN'S & EDUCATION,THAME E&A HOME,DOMESTIC SUPPLIES,08/01/2024,9445432704,56.50,RUSH HIGH WYCOMBE
OXFORDSHIRE CC,CHILDREN'S & EDUCATION,EYNSHAM,MATERIALS,08/01/2024,9445432548,19.99,AMZNMKTPLACE
OXFORDSHIRE CC,CHILDREN'S & EDUCATION,"	OCCG GRANT",MATERIALS,08/01/2024,9445433668,29.98,WWW.ARGOS.CO.UK
OXFORDSHIRE CC,CHILDREN'S & EDUCATION,"	OCCG GRANT",MATERIALS,08/01/2024,9445433658,71.10,WWW.ARGOS.CO.UK
OXFORDSHIRE CC,CUSTOMER AND CULTURE,"MARKETING, COMMUNICATIONS & ENGAGEMENT",LICENCES,08/01/2024,9445433056,11.42,PODBEAN.COM
OXFORDSHIRE CC,CHILDREN'S & EDUCATION,UASC 16&17,"SUPPLIES, STATIONERY AND MATERIALS",08/01/2024,9445432268,22.50,MARKS&SPENCER PLC
OXFORDSHIRE CC,ADULTS,UASC POST 18,OTHER EXPENSES,08/01/2024,9445432632,2.20,CEWE  BOOTS OXFORD COW
OXFORDSHIRE CC,CHILDREN'S & EDUCATION,40 THE MOORS,CATERING PROVISIONS,08/01/2024,9445433502,95.50,SAINSBURY'S S/MKT
OXFORDSHIRE CC,ADULTS,UASC POST 18,STATIONERY,08/01/2024,9445432638,5.50,CEWE  BOOTS OXFORD COW
OXFORDSHIRE CC,ADULTS,UASC POST 18,BIRTHDAY ALLOWANCE,08/01/2024,9445432644,8.00,TESCO STORES 2990
OXFORDSHIRE CC,RESOURCES,ICT OPERATIONS & MAI,MATERIALS,08/01/2024,9445433304,"2,156.00",AMZNMKTPLACE
OXFORDSHIRE CC,CUSTOMER AND CULTURE,MUSEUMS COLLECTIONS,STATIONERY,08/01/2024,9445433488,5.99,AMZNMKTPLACE
OXFORDSHIRE CC,ADULTS,UASC POST 18,BIRTHDAY ALLOWANCE,08/01/2024,9445432648,9.67,ATIF SUPERSTORE
OXFORDSHIRE CC,CHILDREN'S & EDUCATION,FSP NON-STAFFING - CENTRAL,MATERIALS,08/01/2024,9445433480,17.99,WWW.ARGOS.CO.UK
OXFORDSHIRE CC,ADULTS,PAUSE PROGRAMME,MATERIALS,08/01/2024,9445432532,23.00,AMZNMKTPLACE
OXFORDSHIRE CC,CUSTOMER AND CULTURE,SCHOOLS FM CATERING AREA 1,MATERIALS,08/01/2024,9445432668,35.98,AMZNMKTPLACE
OXFORDSHIRE CC,CHILDREN'S & EDUCATION,PAUSE PROGRAMME,CATERING,08/01/2024,9445432726,4.12,MCDONALDS
OXFORDSHIRE CC,CHILDREN'S & EDUCATION,EYNSHAM,MATERIALS,08/01/2024,9445432542,38.99,AMZNMKTPLACE
OXFORDSHIRE CC,CHILDREN'S & EDUCATION,NTS UASC AGENCY,MATERIALS,08/01/2024,9445433394,25.98,AMAZON.CO.UK R39YS6IU5
OXFORDSHIRE CC,CUSTOMER AND CULTURE,SCHOOLS FM CATERING AREA 1,MATERIALS,08/01/2024,9445432670,81.91,AMZNMKTPLACE
OXFORDSHIRE CC,PUBLIC HEALTH,WITNEY,CATERING PROVISIONS,08/01/2024,9445432248,44.32,LIDL GB WITNEY
OXFORDSHIRE CC,CHILDREN'S & EDUCATION,"	LOOKED AFTER NORTH",VEHICLE FUEL,08/01/2024,9445433286,40.61,ESSO ERMONT WAY SSTN
OXFORDSHIRE CC,CHILDREN'S & EDUCATION,40 THE MOORS,MATERIALS,08/01/2024,9445432606,9.99,WALLYS TOYSHOP
OXFORDSHIRE CC,CHILDREN'S & EDUCATION,FAMILY SOLUTIONS PLUS NON-STAFF � SOUTH,PAYMENTS TO TRANSPORT OPERATORS,08/01/2024,9445433386,83.75,TRAINLINE
OXFORDSHIRE CC,CHILDREN'S & EDUCATION,THAME E&A HOME,DRUGS AND MEDICAL SUPPLIES,08/01/2024,9445432602,4.75,"BOOTS,THAME"
OXFORDSHIRE CC,CHILDREN'S & EDUCATION,PAUSE PROGRAMME,CATERING,08/01/2024,9445432722,8.60,COSTA COFFEE 43010890
OXFORDSHIRE CC,CHILDREN'S & EDUCATION,PAUSE PROGRAMME,HOSPITALITY EXPENSES,08/01/2024,9445433674,16.39,TANDEM
OXFORDSHIRE CC,CHILDREN'S & EDUCATION,40 THE MOORS,CATERING PROVISIONS,08/01/2024,9445433508,34.77,SAINSBURYS S/MKTS
OXFORDSHIRE CC,CHILDREN'S & EDUCATION,THAME E&A HOME,CATERING PROVISIONS,08/01/2024,9445432298,25.55,COSTA THAME
OXFORDSHIRE CC,CHILDREN'S & EDUCATION,40 THE MOORS,MATERIALS,08/01/2024,9445433518,20.00,ARGOS KIDLINGTON INSID
OXFORDSHIRE CC,CUSTOMER AND CULTURE,DIDOCT LIBRARY,"NEWSPAPERS, PERIODICALS AND PUBLICATIONS",08/01/2024,9445432680,92.80,PPOINT_ AMIN NEWSAGENT
OXFORDSHIRE CC,ADULTS,CSS - OXFORD,CATERING PROVISIONS,08/01/2024,9445432388,2.97,ALDI STORES 775-142
OXFORDSHIRE CC,CHILDREN'S & EDUCATION,40 THE MOORS,DRUGS AND MEDICAL SUPPLIES,08/01/2024,9445433496,43.97,SUPERDRUG STORES PLC
OXFORDSHIRE CC,ADULTS,PAUSE PROGRAMME,MATERIALS,08/01/2024,9445432526,20.86,AMZNMKTPLACE
OXFORDSHIRE CC,CUSTOMER AND CULTURE,BUSINESS DEVELOPMENT,PAYMENTS TO OTHER ESTABLISHMENTS,08/01/2024,9445433276,322.92,WESTMINSTER INSIGHT
OXFORDSHIRE CC,CHILDREN'S & EDUCATION,40 THE MOORS,FURNITURE,08/01/2024,9445432434,81.98,WWW.ARGOS.CO.UK
OXFORDSHIRE CC,CHILDREN'S & EDUCATION,CHILDREN IN CARE NON-STAFFING - NORTH,PAYMENTS TO TRANSPORT OPERATORS,08/01/2024,9445433540,73.05,TRAINLINE
OXFORDSHIRE CC,CUSTOMER AND CULTURE,THAME LIBRARY,"NEWSPAPERS, PERIODICALS AND PUBLICATIONS",08/01/2024,9445433188,5.60,SAINSBURYS S/MKTS
OXFORDSHIRE CC,CORPORATE CORE,,STATIONERY,08/01/2024,9445433224,97.38,LYRECO UK LTD
OXFORDSHIRE CC,CORPORATE CORE,,STATIONERY,08/01/2024,9445433216,109.69,LYRECO UK LTD
OXFORDSHIRE CC,CHILDREN'S & EDUCATION,CHILDREN IN CARE NON-STAFFING - NORTH,OTHER TRANSPORT ARRANGEMENTS,08/01/2024,9445433534,30.00,GLOUCESTERTAXIS.COM
